BodyName,ServiceAreaCategorisation,ServiceDivisionCategorisation,ExpensesType,Date,TransactionNumber,Amount,CapitalorRevenue,SupplierName,MerchantCategory
Peterborough City Council,Adults,Independent Sector Placements,Services,03/09/2018,30184253,2659.52,Revenue,Alysia Caring Ltd T/a Cherry Blossom care Home,Residential Care
Peterborough City Council,Adults,Independent Sector Placements,Services,03/09/2018,30184254,2142.86,Revenue,FIELD HOUSE (EYE) LTD,Residential Care
Peterborough City Council,Adults,Independent Sector Placements,Services,03/09/2018,30184255,976.01,Revenue,FIELD HOUSE (EYE) LTD,Residential Care
Peterborough City Council,Financial Services,Insurance,Services,03/09/2018,30188073,1229.00,Revenue,Weightmans LLP,Legal Costs
Peterborough City Council,Financial Services,Insurance,Services,03/09/2018,30188589,3473.00,Revenue,Weightmans LLP,Legal Costs
Peterborough City Council,Financial Services,Insurance,Services,03/09/2018,30188669,1909.00,Revenue,Weightmans LLP,Legal Costs
Peterborough City Council,Commissioning and Commercial Operations,Early Years & Quality Improvement,Services,03/09/2018,30189720,8971.20,Revenue,The Peterborough School Limited,Grant Payment
Peterborough City Council,Marketing & Communications,Marketing & Communications,Services,03/09/2018,30190105,865.80,Revenue,Signs Express,Signs
Peterborough City Council,Marketing & Communications,Marketing & Communications,Services,03/09/2018,30190106,759.87,Revenue,Signs Express,Signs
Peterborough City Council,Children's & Safeguarding,Children's Social Care,Agency Staff,03/09/2018,30190202,5848.96,Revenue,HCL Social Care Ltd,External Temporary Staff
Peterborough City Council,Corporate,Corporate,Non Revenue,03/09/2018,30190249,700.00,Capital,Barker Storey Matthews,Consultants Fees
Peterborough City Council,Adults,Mental Capacity Act & DoLs,Services,03/09/2018,30190587,2829.80,Revenue,Dr Nauman Khalil Ltd,Hired Services
Peterborough City Council,Westcombe Engineering,Westcombe Engineering,"Tools, Equipment, Furniture & Materials",03/09/2018,30190646,2085.76,Revenue,Haas Automation,Equipment Repairs
Peterborough City Council,Communities,Community Capacity,Services,03/09/2018,30190751,1211.40,Revenue,WN Li & YP Li,Service Charge
Peterborough City Council,Communities,Cultural Services,Services,03/09/2018,30190757,7000.00,Revenue,Phace CIC,Hired Services
Peterborough City Council,Communities,Housing,Services,03/09/2018,30190769,12721.33,Revenue,DA Rosalia Hotel,Temporary Accommodation Costs
Peterborough City Council,Corporate,Corporate,Non Revenue,03/09/2018,30190796,1722.24,Capital,Enterprise Managed Services Limited,Building And Site Works
Peterborough City Council,Peterborough Highway Services,Transport & Infrastructure Commissioning,Services,03/09/2018,30190917,188901.95,Revenue,Stagecoach in Peterborough,Contractors
Peterborough City Council,Adults,Independent Sector Placements,Services,03/09/2018,30190951,1072.08,Revenue,FIELD HOUSE (EYE) LTD,Residential Care
Peterborough City Council,Corporate,Corporate,Non Revenue,03/09/2018,30191314,3149.99,Capital,Total Hygiene Ltd,Grant Payment
Peterborough City Council,Financial Services,Insurance,Premises Insurances,03/09/2018,30191793,8000.00,Revenue,JLT speciality Ltd,Insurance Premiums
Peterborough City Council,Financial Services,Insurance,Services,03/09/2018,30191858,667.00,Revenue,Browne Jacobson,Legal Costs
Peterborough City Council,Financial Services,Insurance,Services,03/09/2018,30191859,1173.85,Revenue,Browne Jacobson,Legal Costs
Peterborough City Council,Financial Services,Insurance,Services,03/09/2018,30191860,975.85,Revenue,Browne Jacobson,Legal Costs
Peterborough City Council,Communities,Housing,Services,03/09/2018,30192026,669.81,Revenue,Woodcock Holmes,Financial Assistance
Peterborough City Council,Financial Services,Insurance,Services,03/09/2018,30192071,2063.50,Revenue,Browne Jacobson,Legal Costs
Peterborough City Council,Financial Services,Insurance,Services,03/09/2018,30192072,12996.50,Revenue,Browne Jacobson,Legal Costs
Peterborough City Council,Communities,Parking,Services,03/09/2018,30192252,5056.00,Revenue,24181-TEC-Bulk-Issue,Hired Services
Peterborough City Council,Financial Services,Insurance,Insurance,03/09/2018,30192265,2459.96,Revenue,Redacted Personal Data,Insurance Claims
Peterborough City Council,Adults,Independent Sector Placements,Services,03/09/2018,30192421,666.40,Revenue,Axiom Housing Association Ltd,Home Care
Peterborough City Council,Adults,Independent Sector Placements,Services,03/09/2018,30192431,-624.75,Revenue,Axiom Housing Association Ltd,Home Care
Peterborough City Council,Communities,Cohesion,Services,03/09/2018,30192452,750.00,Revenue,Redacted Personal Data,Financial Assistance
Peterborough City Council,Communities,Cohesion,Services,03/09/2018,30192454,750.00,Revenue,Record Property Solutions,Financial Assistance
Peterborough City Council,Communities,Cohesion,Services,03/09/2018,30192456,575.00,Revenue,Record Property Solutions,Financial Assistance
Peterborough City Council,Communities,Cohesion,Services,03/09/2018,30192458,625.00,Revenue,Record Property Solutions,Financial Assistance
Peterborough City Council,Communities,Cohesion,Services,03/09/2018,30192459,625.00,Revenue,Rightroom Lettings Ltd,Financial Assistance
Peterborough City Council,Communities,Cohesion,Services,03/09/2018,30192461,800.00,Revenue,Hope Into Action,Financial Assistance
Peterborough City Council,Communities,Cohesion,Services,03/09/2018,30192463,575.00,Revenue,Redacted Personal Data,Financial Assistance
Peterborough City Council,Communities,Cohesion,Services,03/09/2018,30192464,625.00,Revenue,Record Property Solutions,Financial Assistance
Peterborough City Council,Communities,Cohesion,Services,03/09/2018,30192465,800.00,Revenue,Rightroom Lettings Ltd,Financial Assistance
Peterborough City Council,Communities,Cohesion,Services,03/09/2018,30192466,750.00,Revenue,Redacted Personal Data,Financial Assistance
Peterborough City Council,Commissioning and Commercial Operations,Clare Lodge,Agency Staff,03/09/2018,30192483,1831.67,Revenue,Southview Building Solutions Ltd,External Temporary Staff
Peterborough City Council,Education,Financing - Resources,Services,03/09/2018,30192530,47047.78,Revenue,Treloar School,Education Expenses
Peterborough City Council,Education,Financing - Resources,Services,03/09/2018,30192532,47047.78,Revenue,Treloar School,Education Expenses
Peterborough City Council,Adults,Independent Sector Placements,Services,03/09/2018,30192662,2767.86,Revenue,PSYCARE LIMITED,Residential Care
Peterborough City Council,Adults,Independent Sector Placements,Services,03/09/2018,30192663,5092.86,Revenue,PSYCARE LIMITED,Residential Care
Peterborough City Council,Adults,Independent Sector Placements,Services,03/09/2018,30192664,1826.79,Revenue,PSYCARE LIMITED,Residential Care
Peterborough City Council,Adults,Independent Sector Placements,Services,03/09/2018,30192665,5535.71,Revenue,PSYCARE LIMITED,Residential Care
Peterborough City Council,Communities,Housing,Services,03/09/2018,30192666,650.00,Revenue,Redacted Personal Data,Financial Assistance
Peterborough City Council,Adults,Independent Sector Placements,Services,03/09/2018,8000124364,606.90,Revenue,MEARS GROUP,Home Care
Peterborough City Council,Adults,Independent Sector Placements,Services,03/09/2018,8000124366,1716.15,Revenue,MEARS GROUP,Home Care
Peterborough City Council,Adults,Independent Sector Placements,Services,03/09/2018,8000124370,705.94,Revenue,MEARS GROUP,Home Care
Peterborough City Council,Adults,Independent Sector Placements,Services,03/09/2018,8000124523,967.50,Revenue,Cross Keys Homes,Home Care
Peterborough City Council,Adults,Independent Sector Placements,Services,03/09/2018,8000124526,558.39,Revenue,Hales Group Ltd,Home Care
Peterborough City Council,Adults,Independent Sector Placements,Services,03/09/2018,8000124527,1832.60,Revenue,Axiom Housing Association Ltd,Home Care
Peterborough City Council,Adults,Independent Sector Placements,Services,03/09/2018,8000124529,797.90,Revenue,Hales Group Ltd,Home Care
Peterborough City Council,Adults,Independent Sector Placements,Services,03/09/2018,8000124530,818.16,Revenue,Hales Group Ltd,Home Care
Peterborough City Council,Adults,Independent Sector Placements,Services,03/09/2018,8000124531,818.16,Revenue,Hales Group Ltd,Home Care
Peterborough City Council,Adults,Independent Sector Placements,Services,03/09/2018,8000124532,1010.97,Revenue,Hales Group Ltd,Home Care
Peterborough City Council,Adults,Independent Sector Placements,Services,03/09/2018,8000124533,2786.18,Revenue,Hales Group Ltd,Home Care
Peterborough City Council,Adults,Independent Sector Placements,Services,03/09/2018,8000124534,729.02,Revenue,Hales Group Ltd,Home Care
Peterborough City Council,Adults,Independent Sector Placements,Services,03/09/2018,8000124535,717.36,Revenue,Hales Group Ltd,Home Care
Peterborough City Council,Adults,Independent Sector Placements,Services,03/09/2018,8000124536,702.90,Revenue,Atlas Care Services Ltd,Home Care
Peterborough City Council,Adults,Independent Sector Placements,Services,03/09/2018,8000124541,550.00,Revenue,PRESTIGE NURSING LIMITED,Home Care
Peterborough City Council,Adults,Independent Sector Placements,Services,03/09/2018,8000124542,823.25,Revenue,PRESTIGE NURSING LIMITED,Home Care
Peterborough City Council,Regulatory Services,Regulatory Services,Services,05/09/2018,30183877,552.00,Revenue,Cambridge Ethnic Community Forum,Grant Payment
Peterborough City Council,Corporate,Corporate,Non Revenue,05/09/2018,30189547,2689.18,Capital,Garfield Builders Ltd,Building And Site Works
Peterborough City Council,Corporate Items,Corporate Services,Services,05/09/2018,30190532,6750.00,Revenue,East of England LGA,Consultants Fees
Peterborough City Council,Adults,Independent Sector Placements,Services,05/09/2018,30190582,1259.55,Revenue,Goldcare Homes t/a The Tudors Care Home,Residential Care
Peterborough City Council,Peterborough Highway Services,Network and Traffic Management,Services,05/09/2018,30190588,1781.88,Revenue,Johnston Press Midlands Division,Advertising
Peterborough City Council,Peterborough Highway Services,Network and Traffic Management,Services,05/09/2018,30190590,646.58,Revenue,Johnston Press Midlands Division,Advertising
Peterborough City Council,Commissioning and Commercial Operations,Commissioning,Services,05/09/2018,30190602,3092.55,Revenue,BDP Social Care Ltd,Hired Services
Peterborough City Council,Children's & Safeguarding,Early Help ASC/CSC,Services,05/09/2018,30190603,1745.15,Revenue,BDP Social Care Ltd,Hired Services
Peterborough City Council,Legal Services,Legal Services,Agency Staff,05/09/2018,30190606,2062.50,Revenue,Venn Group Ltd,External Temporary Staff
Peterborough City Council,Legal Services,Legal Services,Agency Staff,05/09/2018,30190608,601.60,Revenue,Venn Group Ltd,External Temporary Staff
Peterborough City Council,Legal Services,Legal Services,Agency Staff,05/09/2018,30190609,730.55,Revenue,Venn Group Ltd,External Temporary Staff
Peterborough City Council,Peterborough Highway Services,Network and Traffic Management,Services,05/09/2018,30190679,689.68,Revenue,Johnston Press Midlands Division,Advertising
Peterborough City Council,Peterborough Highway Services,Network and Traffic Management,Services,05/09/2018,30190683,775.89,Revenue,Johnston Press Midlands Division,Advertising
Peterborough City Council,Peterborough Highway Services,Network and Traffic Management,Services,05/09/2018,30190688,775.89,Revenue,Johnston Press Midlands Division,Advertising
Peterborough City Council,City Centre Management,"Markets, Tourism & Events",Services,05/09/2018,30190709,1350.00,Revenue,Software Major Ltd,IT Services
Peterborough City Council,Children's & Safeguarding,Children's Social Care,Agency Staff,05/09/2018,30190714,1406.00,Revenue,NonStop Recruitment Ltd,External Temporary Staff
Peterborough City Council,Peterborough Serco Strategic Partnership,PSSP Retained Services,Services,05/09/2018,30190745,4603.40,Revenue,Whistl UK Ltd,Postage
Peterborough City Council,Education,Special Educational Needs / Inclusion,Services,05/09/2018,30190749,2600.00,Revenue,1st Planner Ltd,Hired Services
Peterborough City Council,Peterborough Highway Services,Highway & Drainage Control,Agency Staff,05/09/2018,30190754,1593.90,Revenue,Matchtech,External Temporary Staff
Peterborough City Council,Education,Special Educational Needs / Inclusion,Services,05/09/2018,30190759,2500.00,Revenue,Caireen Sutherland Consultancy,Consultants Fees
Peterborough City Council,Adults,Home Services Delivery Model,Third Party Payments,05/09/2018,30190763,2933.36,Revenue,NACRO,Grant-Third Party
Peterborough City Council,Coroners Service,Coroners Service,Third Party Payments,05/09/2018,30190794,40605.34,Revenue,Cambridgeshire County Council,Third Party Payments - Contract
Peterborough City Council,Westcombe Engineering,Westcombe Engineering,"Tools, Equipment, Furniture & Materials",05/09/2018,30190809,1127.90,Revenue,AALCO,Items For Resale
Peterborough City Council,Legal Services,Legal Services,Services,05/09/2018,30190822,550.00,Revenue,"Elliott, Ms Margot",Legal Costs
Peterborough City Council,Children's & Safeguarding,Child Health,"Tools, Equipment, Furniture & Materials",05/09/2018,30190870,1053.00,Revenue,Bakare Beds Ltd,Furniture & Equipment 
Peterborough City Council,Legal Services,Legal Services,Services,05/09/2018,30190881,559.95,Revenue,The Psychological Service,Expert Witnesses
Peterborough City Council,Legal Services,Legal Services,Services,05/09/2018,30190925,550.00,Revenue,"Martignetti, Mr Ian",Legal Costs
Peterborough City Council,Adults,Community Team,Agency Staff,05/09/2018,30190953,1221.00,Revenue,Medicare First Ltd,External Temporary Staff
Peterborough City Council,Adults,Finance,Services,05/09/2018,30190974,3000.00,Revenue,Solutions 4 Health Ltd,Hired Services
Peterborough City Council,Children's & Safeguarding,Access to Resources & Specialist Commissioning,Services,05/09/2018,30190995,9000.00,Revenue,A & T Home Limited,Boarding Out Allowances
Peterborough City Council,Adults,Mental Capacity Act & DoLs,Services,05/09/2018,30191109,1898.00,Revenue,Raj Medical Consultancy Limited,Hired Services
Peterborough City Council,Adults,Independent Sector Placements,Services,05/09/2018,30191115,1630.00,Revenue,ABBEYGATE REST HOME,Residential Care
Peterborough City Council,Adults,Independent Sector Placements,Services,05/09/2018,30191120,952.00,Revenue,Sahara Community Care Services Limited,Home Care
Peterborough City Council,Adults,Independent Sector Placements,Services,05/09/2018,30191136,2737.04,Revenue,Alysia Caring Ltd T/a Cherry Blossom care Home,Residential Care
Peterborough City Council,Adults,Independent Sector Placements,Services,05/09/2018,30191137,1883.32,Revenue,Alysia Caring Ltd T/a Cherry Blossom care Home,Residential Care
Peterborough City Council,Adults,Independent Sector Placements,Services,05/09/2018,30191141,766.50,Revenue,Sahara Community Care Services Limited,Home Care
Peterborough City Council,Adults,Independent Sector Placements,Services,05/09/2018,30191147,2352.00,Revenue,Sahara Community Care Services Limited,Home Care
Peterborough City Council,Adults,Independent Sector Placements,Services,05/09/2018,30191153,2547.88,Revenue,Alysia Caring Ltd T/a Cherry Blossom care Home,Residential Care
Peterborough City Council,Adults,Independent Sector Placements,Services,05/09/2018,30191154,3100.00,Revenue,Alysia Caring Ltd T/a Cherry Blossom care Home,Residential Care
Peterborough City Council,Adults,Independent Sector Placements,Services,05/09/2018,30191155,2744.00,Revenue,Sahara Community Care Services Limited,Home Care
Peterborough City Council,Adults,Independent Sector Placements,Services,05/09/2018,30191157,980.00,Revenue,Sahara Community Care Services Limited,Home Care
Peterborough City Council,Adults,Independent Sector Placements,Services,05/09/2018,30191161,896.00,Revenue,Sahara Community Care Services Limited,Home Care
Peterborough City Council,Adults,Independent Sector Placements,Services,05/09/2018,30191165,1078.00,Revenue,Sahara Community Care Services Limited,Home Care
Peterborough City Council,Adults,Independent Sector Placements,Services,05/09/2018,30191173,2930.04,Revenue,Alysia Caring Ltd T/a Cherry Blossom care Home,Residential Care
Peterborough City Council,Adults,Independent Sector Placements,Services,05/09/2018,30191174,900.00,Revenue,Alysia Caring Ltd T/a Cherry Blossom care Home,Residential Care
Peterborough City Council,Adults,Independent Sector Placements,Services,05/09/2018,30191175,2460.04,Revenue,Alysia Caring Ltd T/a Cherry Blossom care Home,Residential Care
Peterborough City Council,Adults,Independent Sector Placements,Services,05/09/2018,30191176,2825.04,Revenue,Alysia Caring Ltd T/a Cherry Blossom care Home,Residential Care
Peterborough City Council,Adults,Independent Sector Placements,Services,05/09/2018,30191177,1204.00,Revenue,Sahara Community Care Services Limited,Home Care
Peterborough City Council,Constitutional Services,Democratic Services,Services,05/09/2018,30191178,617.00,Revenue,Bull & Co Ltd,Hired Services
Peterborough City Council,Adults,Independent Sector Placements,Services,05/09/2018,30191179,602.00,Revenue,Sahara Community Care Services Limited,Home Care
Peterborough City Council,Corporate,Corporate,Non Revenue,05/09/2018,30191189,280712.08,Capital,Coulson & Son Ltd,Building And Site Works
Peterborough City Council,Adults,Independent Sector Placements,Services,05/09/2018,30191208,1847.60,Revenue,Alysia Caring Ltd T/a Cherry Blossom care Home,Residential Care
Peterborough City Council,Adults,Independent Sector Placements,Services,05/09/2018,30191209,1023.84,Revenue,Alysia Caring Ltd T/a Cherry Blossom care Home,Residential Care
Peterborough City Council,Adults,Independent Sector Placements,Services,05/09/2018,30191211,1773.88,Revenue,Alysia Caring Ltd T/a Cherry Blossom care Home,Residential Care
Peterborough City Council,Adults,Independent Sector Placements,Services,05/09/2018,30191212,1883.32,Revenue,Alysia Caring Ltd T/a Cherry Blossom care Home,Residential Care
Peterborough City Council,Adults,Independent Sector Placements,Services,05/09/2018,30191213,3100.00,Revenue,Alysia Caring Ltd T/a Cherry Blossom care Home,Residential Care
Peterborough City Council,Adults,Independent Sector Placements,Services,05/09/2018,30191215,2128.00,Revenue,Alysia Caring Ltd T/a Cherry Blossom care Home,Residential Care
Peterborough City Council,Adults,Independent Sector Placements,Services,05/09/2018,30191218,2128.00,Revenue,Alysia Caring Ltd T/a Cherry Blossom care Home,Residential Care
Peterborough City Council,Adults,Independent Sector Placements,Services,05/09/2018,30191225,546.00,Revenue,Sahara Community Care Services Limited,Home Care
Peterborough City Council,Adults,Independent Sector Placements,Services,05/09/2018,30191228,896.00,Revenue,Sahara Community Care Services Limited,Home Care
Peterborough City Council,Adults,Independent Sector Placements,Services,05/09/2018,30191231,1176.00,Revenue,Sahara Community Care Services Limited,Home Care
Peterborough City Council,Corporate Property,Office Accomodation,Repair & Maintenance of Buildings,05/09/2018,30191473,5704.27,Revenue,Baker Perkins Ltd,Service Charges - Premises
Peterborough City Council,Commissioning and Commercial Operations,Clare Lodge,Agency Staff,05/09/2018,30191488,1968.00,Revenue,Wrixon Care Services,External Temporary Staff
Peterborough City Council,Commissioning and Commercial Operations,Clare Lodge,Agency Staff,05/09/2018,30191489,1208.00,Revenue,Wrixon Care Services,External Temporary Staff
Peterborough City Council,Commissioning and Commercial Operations,Clare Lodge,Agency Staff,05/09/2018,30191490,896.00,Revenue,Wrixon Care Services,External Temporary Staff
Peterborough City Council,Commissioning and Commercial Operations,Clare Lodge,Agency Staff,05/09/2018,30191491,1328.00,Revenue,Wrixon Care Services,External Temporary Staff
Peterborough City Council,Commissioning and Commercial Operations,Clare Lodge,Agency Staff,05/09/2018,30191492,528.00,Revenue,Wrixon Care Services,External Temporary Staff
Peterborough City Council,Commissioning and Commercial Operations,Clare Lodge,Agency Staff,05/09/2018,30191503,1288.00,Revenue,Wrixon Care Services,External Temporary Staff
Peterborough City Council,Children's & Safeguarding,Access to Resources & Specialist Commissioning,Services,05/09/2018,30191507,1750.00,Revenue,BDP Social Care Ltd,Hired Services
Peterborough City Council,Adults,Independent Sector Placements,Services,05/09/2018,30191537,5149.76,Revenue,LEONARD CHESHIRE DISABILITY,Residential Care
Peterborough City Council,Westcombe Engineering,Westcombe Engineering,"Tools, Equipment, Furniture & Materials",05/09/2018,30191804,588.55,Revenue,Peterborough Blasting Ltd,Items For Resale
Peterborough City Council,Corporate,Corporate,Non Revenue,05/09/2018,30191836,25656.67,Capital,UK Power Networks (operations) Ltd,Building And Site Works
Peterborough City Council,Adults,Independent Sector Placements,Services,05/09/2018,30191881,685.80,Revenue,Red Rock Partnership Ltd,Day Care
Peterborough City Council,Adults,Finance,Agency Staff,05/09/2018,30192158,2433.60,Revenue,Reed Specialist Recruitment Limited,External Temporary Staff
Peterborough City Council,Adults,Independent Sector Placements,Services,05/09/2018,30192166,952.00,Revenue,Axiom Housing Association Ltd,Home Care
Peterborough City Council,Adults,Strategic Commissioning - Management,Agency Staff,05/09/2018,30192183,501.17,Revenue,Reed Specialist Recruitment Limited,External Temporary Staff
Peterborough City Council,Westcombe Engineering,Westcombe Engineering,"Tools, Equipment, Furniture & Materials",05/09/2018,30192300,993.84,Revenue,Barron Clark Castings Ltd,Items For Resale
Peterborough City Council,Westcombe Engineering,Westcombe Engineering,"Tools, Equipment, Furniture & Materials",05/09/2018,30192301,1145.00,Revenue,Barron Clark Castings Ltd,Items For Resale
Peterborough City Council,Westcombe Engineering,Westcombe Engineering,"Tools, Equipment, Furniture & Materials",05/09/2018,30192303,1082.64,Revenue,Barron Clark Castings Ltd,Items For Resale
Peterborough City Council,Adults,Block Contracts,Third Party Payments,05/09/2018,30192391,2152.08,Revenue,Hales Group Ltd,Third Party Payments - Contract
Peterborough City Council,Legal Services,Legal Services,Services,05/09/2018,30192401,1614.80,Revenue,Child&Family Psychological Assessment Svs,Expert Witnesses
Peterborough City Council,Adults,Independent Sector Placements,Services,05/09/2018,30192422,1832.60,Revenue,Axiom Housing Association Ltd,Home Care
Peterborough City Council,Adults,Block Contracts,Services,05/09/2018,30192425,8326.00,Revenue,Skills for Care Solutions Ltd,Hired Services
Peterborough City Council,Corporate,Corporate,Non Revenue,05/09/2018,30192455,2268.60,Capital,Reed Specialist Recruitment Limited,Consultants Fees
Peterborough City Council,Corporate,Corporate,Non Revenue,05/09/2018,30192524,13844.97,Capital,Manor Roofing Limited,Building And Site Works
Peterborough City Council,Education,Special Educational Needs / Inclusion,Services,05/09/2018,30192542,2975.00,Revenue,Lind Associates,Consultants Fees
Peterborough City Council,HR,HR WFD & Training,Services,05/09/2018,30192554,500.00,Revenue,"EDGE Services,The Manual Handling Training Co.Ltd",Course Instructors Fees
Peterborough City Council,Commissioning and Commercial Operations,Early Years & Quality Improvement,Services,05/09/2018,30192610,900.00,Revenue,British Assoc for Early Childhood Education.T/a Early Education,Training
Peterborough City Council,Corporate,Corporate,Non Revenue,05/09/2018,30192628,1194.00,Capital,Richard Masham Building Services,Grant Payment
Peterborough City Council,Legal Services,Legal Services,Agency Staff,05/09/2018,30192649,975.25,Revenue,Giant Professional Limited,External Temporary Staff
Peterborough City Council,Parking Services,Parking Services,Agency Staff,05/09/2018,30192696,1022.20,Revenue,Reed Specialist Recruitment Limited,External Temporary Staff
Peterborough City Council,"Waste, Cleansing and Open Spaces",Waste & Operational Svs Mgmt,Energy Costs,05/09/2018,30192718,528.19,Revenue,British Gas Business,Electricity
Peterborough City Council,Corporate Property,Office Accomodation,Energy Costs,05/09/2018,30192719,2784.94,Revenue,British Gas Business,Electricity
Peterborough City Council,Education,Pupil Referral Unit,Energy Costs,05/09/2018,30192719,654.14,Revenue,British Gas Business,Electricity
Peterborough City Council,"Waste, Cleansing and Open Spaces",Waste & Operational Svs Mgmt,Energy Costs,05/09/2018,30192719,662.41,Revenue,British Gas Business,Electricity
Peterborough City Council,City Centre Management,"Markets, Tourism & Events",Energy Costs,05/09/2018,30192720,537.41,Revenue,British Gas Business,Electricity
Peterborough City Council,Corporate Property,Office Accomodation,Energy Costs,05/09/2018,30192721,1030.62,Revenue,British Gas Business,Electricity
Peterborough City Council,City Centre Management,"Markets, Tourism & Events",Energy Costs,05/09/2018,30192737,959.67,Revenue,British Gas Business,Electricity
Peterborough City Council,Children's & Safeguarding,Child Health,Energy Costs,05/09/2018,30192741,586.82,Revenue,British Gas Business,Electricity
Peterborough City Council,Peterborough Highway Services,Transport & Infrastructure Commissioning,Energy Costs,05/09/2018,30192743,5870.75,Revenue,E.ON Energy,Electricity
Peterborough City Council,Westcombe Engineering,Westcombe Engineering,Energy Costs,05/09/2018,30192770,-1583.43,Revenue,British Gas Business,Electricity
Peterborough City Council,Westcombe Engineering,Westcombe Engineering,Energy Costs,05/09/2018,30192770,846.65,Revenue,British Gas Business,Electricity
Peterborough City Council,Children's & Safeguarding,Child Health,Energy Costs,05/09/2018,30192771,699.74,Revenue,British Gas Business,Electricity
Peterborough City Council,City Centre Management,"Markets, Tourism & Events",Energy Costs,05/09/2018,30192771,613.81,Revenue,British Gas Business,Electricity
Peterborough City Council,Peterborough Highway Services,Highway & Drainage Control,Agency Staff,05/09/2018,30192788,1497.60,Revenue,Reed Specialist Recruitment Limited,External Temporary Staff
Peterborough City Council,Adults,Independent Sector Placements,Services,05/09/2018,30192793,13197.14,Revenue,Glenholme Healthcare Limited,Residential Care
Peterborough City Council,Adults,Independent Sector Placements,Services,05/09/2018,30192794,1832.60,Revenue,Axiom Housing Association Ltd,Home Care
Peterborough City Council,Adults,Independent Sector Placements,Services,05/09/2018,30192797,4962.90,Revenue,PossAbilities CIC,Home Care
Peterborough City Council,Adults,Independent Sector Placements,Services,05/09/2018,30192798,4962.90,Revenue,PossAbilities CIC,Home Care
Peterborough City Council,Adults,Independent Sector Placements,Services,05/09/2018,30192799,3474.03,Revenue,PossAbilities CIC,Home Care
Peterborough City Council,Adults,Independent Sector Placements,Services,05/09/2018,30192800,3474.03,Revenue,PossAbilities CIC,Home Care
Peterborough City Council,Financial Services,Finance,Agency Staff,05/09/2018,30192812,657.86,Revenue,Reed Specialist Recruitment Limited,External Temporary Staff
Peterborough City Council,Commissioning and Commercial Operations,Clare Lodge,Agency Staff,05/09/2018,30192826,704.50,Revenue,Reed Specialist Recruitment Limited,External Temporary Staff
Peterborough City Council,Commissioning and Commercial Operations,Clare Lodge,Agency Staff,05/09/2018,30192827,675.75,Revenue,Reed Specialist Recruitment Limited,External Temporary Staff
Peterborough City Council,Communities,Cultural Services,Customer and client receipts - Fees & Charges,05/09/2018,30192834,4378.94,Revenue,Vivacity Culture and Leisure,Fees And Charges
Peterborough City Council,Peterborough Highway Services,Highway Services - HoS,Agency Staff,05/09/2018,30192842,1172.81,Revenue,Reed Specialist Recruitment Limited,External Temporary Staff
Peterborough City Council,Peterborough Highway Services,Highway & Drainage Control,Agency Staff,05/09/2018,30192845,1235.80,Revenue,Reed Specialist Recruitment Limited,External Temporary Staff
Peterborough City Council,Adults,Independent Sector Placements,Services,05/09/2018,30192856,749.70,Revenue,Axiom Housing Association Ltd,Home Care
Peterborough City Council,Financial Services,Insurance,Services,05/09/2018,30192868,2475.00,Revenue,"Harris, Mr Paul",Hired Services
Peterborough City Council,Corporate Property,Office Accomodation,Premises Insurances,05/09/2018,30192879,1377.79,Revenue,Beeson Wright Ltd,Insurance - Premises
Peterborough City Council,Children's & Safeguarding,Access to Resources & Specialist Commissioning,Services,05/09/2018,30192899,1980.00,Revenue,Florinee Homes Ltd,Boarding Out Allowances
Peterborough City Council,Adults,Independent Sector Placements,Services,05/09/2018,30192904,6674.40,Revenue,SOCIAL CARE SOLUTIONS LTD,Home Care
Peterborough City Council,Adults,Independent Sector Placements,Services,05/09/2018,30192908,3740.12,Revenue,SOCIAL CARE SOLUTIONS LTD,Home Care
Peterborough City Council,Adults,Independent Sector Placements,Services,05/09/2018,30192909,1932.00,Revenue,SOCIAL CARE SOLUTIONS LTD,Home Care
Peterborough City Council,Adults,Independent Sector Placements,Services,05/09/2018,30192910,6591.00,Revenue,SOCIAL CARE SOLUTIONS LTD,Home Care
Peterborough City Council,Adults,Independent Sector Placements,Services,05/09/2018,30192911,4463.20,Revenue,SOCIAL CARE SOLUTIONS LTD,Home Care
Peterborough City Council,Adults,Independent Sector Placements,Services,05/09/2018,30192912,3000.00,Revenue,SOCIAL CARE SOLUTIONS LTD,Home Care
Peterborough City Council,Adults,Independent Sector Placements,Services,05/09/2018,30192914,2472.64,Revenue,SOCIAL CARE SOLUTIONS LTD,Home Care
Peterborough City Council,Adults,Independent Sector Placements,Services,05/09/2018,30192915,2462.44,Revenue,SOCIAL CARE SOLUTIONS LTD,Home Care
Peterborough City Council,Adults,Independent Sector Placements,Services,05/09/2018,30192916,7700.40,Revenue,SOCIAL CARE SOLUTIONS LTD,Home Care
Peterborough City Council,Legal Services,Legal Services,Agency Staff,05/09/2018,30192917,1823.04,Revenue,Reed Specialist Recruitment Limited,External Temporary Staff
Peterborough City Council,Adults,Independent Sector Placements,Services,05/09/2018,30192918,6426.00,Revenue,SOCIAL CARE SOLUTIONS LTD,Home Care
Peterborough City Council,Adults,Independent Sector Placements,Services,05/09/2018,30192922,3210.64,Revenue,SOCIAL CARE SOLUTIONS LTD,Home Care
Peterborough City Council,Adults,Independent Sector Placements,Services,05/09/2018,30192923,3000.00,Revenue,SOCIAL CARE SOLUTIONS LTD,Home Care
Peterborough City Council,Adults,Independent Sector Placements,Services,05/09/2018,30192924,2462.44,Revenue,SOCIAL CARE SOLUTIONS LTD,Home Care
Peterborough City Council,Adults,Independent Sector Placements,Services,05/09/2018,30192926,900.00,Revenue,SOCIAL CARE SOLUTIONS LTD,Home Care
Peterborough City Council,Adults,Independent Sector Placements,Services,05/09/2018,30192927,7700.40,Revenue,SOCIAL CARE SOLUTIONS LTD,Home Care
Peterborough City Council,Legal Services,Legal Services,Agency Staff,05/09/2018,30192928,2025.38,Revenue,Reed Specialist Recruitment Limited,External Temporary Staff
Peterborough City Council,Adults,Independent Sector Placements,Services,05/09/2018,30192929,2472.64,Revenue,SOCIAL CARE SOLUTIONS LTD,Home Care
Peterborough City Council,Communities,Service Director - Adults & Communities,Third Party Payments,05/09/2018,30192948,1288.00,Revenue,Enterprise Managed Services Limited,Grant-Third Party
Peterborough City Council,Corporate,Corporate,Non Revenue,05/09/2018,30192979,621074.07,Balance Sheet,Teachers Pensions,Pensions
Peterborough City Council,Children's & Safeguarding,Access to Resources & Specialist Commissioning,Agency Staff,05/09/2018,30192980,915.20,Revenue,HCL Social Care Ltd,External Temporary Staff
Peterborough City Council,Children's & Safeguarding,Children's Social Care,Agency Staff,05/09/2018,30193032,6136.43,Revenue,Service Care Solutions Ltd,External Temporary Staff
Peterborough City Council,Peterborough Highway Services,Transport & Infrastructure Commissioning,Services,05/09/2018,30193040,6824.72,Revenue,Stagecoach in Peterborough,Contractors
Peterborough City Council,Corporate Property,Office Accomodation,Repair & Maintenance of Buildings,05/09/2018,30193695,9720.00,Revenue,Abbott-Wade Ltd,Premises Repairs
Peterborough City Council,Adults,Independent Sector Placements,Services,05/09/2018,8000122824,749.70,Revenue,Axiom Housing Association Ltd,Home Care
Peterborough City Council,Adults,Independent Sector Placements,Services,05/09/2018,8000122825,749.70,Revenue,Axiom Housing Association Ltd,Home Care
Peterborough City Council,Adults,Independent Sector Placements,Services,05/09/2018,8000122828,749.70,Revenue,Axiom Housing Association Ltd,Home Care
Peterborough City Council,Adults,Independent Sector Placements,Services,05/09/2018,8000122831,666.40,Revenue,Axiom Housing Association Ltd,Home Care
Peterborough City Council,Adults,Independent Sector Placements,Services,05/09/2018,8000122837,511.70,Revenue,Axiom Housing Association Ltd,Home Care
Peterborough City Council,Adults,Independent Sector Placements,Services,05/09/2018,8000122839,583.10,Revenue,Axiom Housing Association Ltd,Home Care
Peterborough City Council,Adults,Independent Sector Placements,Services,05/09/2018,8000122842,1249.50,Revenue,Axiom Housing Association Ltd,Home Care
Peterborough City Council,Adults,Independent Sector Placements,Services,05/09/2018,8000122843,583.10,Revenue,Axiom Housing Association Ltd,Home Care
Peterborough City Council,Adults,Independent Sector Placements,Services,05/09/2018,8000122850,1499.40,Revenue,Axiom Housing Association Ltd,Home Care
Peterborough City Council,Adults,Independent Sector Placements,Services,05/09/2018,8000122852,1582.70,Revenue,Axiom Housing Association Ltd,Home Care
Peterborough City Council,Adults,Independent Sector Placements,Services,05/09/2018,8000122854,583.10,Revenue,Axiom Housing Association Ltd,Home Care
Peterborough City Council,Adults,Independent Sector Placements,Services,05/09/2018,8000122858,511.70,Revenue,Axiom Housing Association Ltd,Home Care
Peterborough City Council,Adults,Independent Sector Placements,Services,05/09/2018,8000122859,583.10,Revenue,Axiom Housing Association Ltd,Home Care
Peterborough City Council,Adults,Independent Sector Placements,Services,05/09/2018,8000122860,952.00,Revenue,Axiom Housing Association Ltd,Home Care
Peterborough City Council,Adults,Independent Sector Placements,Services,05/09/2018,8000122862,1594.60,Revenue,Axiom Housing Association Ltd,Home Care
Peterborough City Council,Adults,Independent Sector Placements,Services,05/09/2018,8000122866,749.70,Revenue,Axiom Housing Association Ltd,Home Care
Peterborough City Council,Adults,Independent Sector Placements,Services,05/09/2018,8000122867,916.30,Revenue,Axiom Housing Association Ltd,Home Care
Peterborough City Council,Adults,Independent Sector Placements,Services,05/09/2018,8000122869,666.40,Revenue,Axiom Housing Association Ltd,Home Care
Peterborough City Council,Adults,Independent Sector Placements,Services,05/09/2018,8000123092,666.40,Revenue,Axiom Housing Association Ltd,Home Care
Peterborough City Council,Adults,Independent Sector Placements,Services,05/09/2018,8000123094,654.50,Revenue,Axiom Housing Association Ltd,Home Care
Peterborough City Council,Adults,Independent Sector Placements,Services,05/09/2018,8000123095,749.70,Revenue,Axiom Housing Association Ltd,Home Care
Peterborough City Council,Adults,Independent Sector Placements,Services,05/09/2018,8000123096,1499.40,Revenue,Axiom Housing Association Ltd,Home Care
Peterborough City Council,Adults,Independent Sector Placements,Services,05/09/2018,8000123100,1252.48,Revenue,Axiom Housing Association Ltd,Home Care
Peterborough City Council,Adults,Independent Sector Placements,Services,05/09/2018,8000123102,583.10,Revenue,Axiom Housing Association Ltd,Home Care
Peterborough City Council,Adults,Independent Sector Placements,Services,05/09/2018,8000123106,749.70,Revenue,Axiom Housing Association Ltd,Home Care
Peterborough City Council,Adults,Independent Sector Placements,Services,05/09/2018,8000123107,583.10,Revenue,Axiom Housing Association Ltd,Home Care
Peterborough City Council,Adults,Independent Sector Placements,Services,05/09/2018,8000123108,928.20,Revenue,Axiom Housing Association Ltd,Home Care
Peterborough City Council,Adults,Independent Sector Placements,Services,05/09/2018,8000123112,856.80,Revenue,Axiom Housing Association Ltd,Home Care
Peterborough City Council,Adults,Independent Sector Placements,Services,05/09/2018,8000123331,840.25,Revenue,Sagecare Ltd,Home Care
Peterborough City Council,Adults,Independent Sector Placements,Services,05/09/2018,8000123332,697.50,Revenue,Sagecare Ltd,Home Care
Peterborough City Council,Adults,Independent Sector Placements,Services,05/09/2018,8000123336,630.00,Revenue,Sagecare Ltd,Home Care
Peterborough City Council,Adults,Independent Sector Placements,Services,05/09/2018,8000123338,735.00,Revenue,Sagecare Ltd,Home Care
Peterborough City Council,Adults,Independent Sector Placements,Services,05/09/2018,8000123345,869.72,Revenue,Sagecare Ltd,Home Care
Peterborough City Council,Adults,Independent Sector Placements,Services,05/09/2018,8000123347,2522.52,Revenue,Sagecare Ltd,Home Care
Peterborough City Council,Adults,Independent Sector Placements,Services,05/09/2018,8000123353,582.12,Revenue,Sagecare Ltd,Home Care
Peterborough City Council,Adults,Independent Sector Placements,Services,05/09/2018,8000123360,720.72,Revenue,Sagecare Ltd,Home Care
Peterborough City Council,Adults,Independent Sector Placements,Services,05/09/2018,8000123364,862.79,Revenue,Sagecare Ltd,Home Care
Peterborough City Council,Adults,Independent Sector Placements,Services,05/09/2018,8000123366,970.20,Revenue,Sagecare Ltd,Home Care
Peterborough City Council,Adults,Independent Sector Placements,Services,05/09/2018,8000123368,679.14,Revenue,Sagecare Ltd,Home Care
Peterborough City Council,Adults,Independent Sector Placements,Services,05/09/2018,8000123371,942.48,Revenue,Sagecare Ltd,Home Care
Peterborough City Council,Adults,Independent Sector Placements,Services,05/09/2018,8000123376,589.51,Revenue,Sagecare Ltd,Home Care
Peterborough City Council,Adults,Independent Sector Placements,Services,05/09/2018,8000123384,682.61,Revenue,Sagecare Ltd,Home Care
Peterborough City Council,Adults,Independent Sector Placements,Services,05/09/2018,8000123385,1067.22,Revenue,Sagecare Ltd,Home Care
Peterborough City Council,Adults,Independent Sector Placements,Services,05/09/2018,8000123387,512.82,Revenue,Sagecare Ltd,Home Care
Peterborough City Council,Adults,Independent Sector Placements,Services,05/09/2018,8000123390,568.26,Revenue,Sagecare Ltd,Home Care
Peterborough City Council,Adults,Independent Sector Placements,Services,05/09/2018,8000123391,637.56,Revenue,Sagecare Ltd,Home Care
Peterborough City Council,Adults,Independent Sector Placements,Services,05/09/2018,8000123394,970.20,Revenue,Sagecare Ltd,Home Care
Peterborough City Council,Adults,Independent Sector Placements,Services,05/09/2018,8000123398,1940.40,Revenue,Sagecare Ltd,Home Care
Peterborough City Council,Adults,Independent Sector Placements,Services,05/09/2018,8000123404,679.14,Revenue,Sagecare Ltd,Home Care
Peterborough City Council,Adults,Independent Sector Placements,Services,05/09/2018,8000123406,862.79,Revenue,Sagecare Ltd,Home Care
Peterborough City Council,Adults,Independent Sector Placements,Services,05/09/2018,8000123411,1552.32,Revenue,Sagecare Ltd,Home Care
Peterborough City Council,Adults,Independent Sector Placements,Services,05/09/2018,8000123415,1940.40,Revenue,Sagecare Ltd,Home Care
Peterborough City Council,Adults,Independent Sector Placements,Services,05/09/2018,8000123416,1555.79,Revenue,Sagecare Ltd,Home Care
Peterborough City Council,Adults,Independent Sector Placements,Services,05/09/2018,8000123418,1337.49,Revenue,Sagecare Ltd,Home Care
Peterborough City Council,Adults,Independent Sector Placements,Services,05/09/2018,8000123420,873.18,Revenue,Sagecare Ltd,Home Care
Peterborough City Council,Adults,Independent Sector Placements,Services,05/09/2018,8000123422,564.80,Revenue,Sagecare Ltd,Home Care
Peterborough City Council,Adults,Independent Sector Placements,Services,05/09/2018,8000123423,873.18,Revenue,Sagecare Ltd,Home Care
Peterborough City Council,Adults,Independent Sector Placements,Services,05/09/2018,8000123424,1251.88,Revenue,Sagecare Ltd,Home Care
Peterborough City Council,Adults,Independent Sector Placements,Services,05/09/2018,8000123425,744.98,Revenue,Sagecare Ltd,Home Care
Peterborough City Council,Adults,Independent Sector Placements,Services,05/09/2018,8000123427,502.43,Revenue,Sagecare Ltd,Home Care
Peterborough City Council,Adults,Independent Sector Placements,Services,05/09/2018,8000123428,1871.10,Revenue,Sagecare Ltd,Home Care
Peterborough City Council,Adults,Independent Sector Placements,Services,05/09/2018,8000123429,1794.87,Revenue,Sagecare Ltd,Home Care
Peterborough City Council,Adults,Independent Sector Placements,Services,05/09/2018,8000123431,970.20,Revenue,Sagecare Ltd,Home Care
Peterborough City Council,Adults,Independent Sector Placements,Services,05/09/2018,8000123434,1746.36,Revenue,Sagecare Ltd,Home Care
Peterborough City Council,Adults,Independent Sector Placements,Services,05/09/2018,8000123439,582.12,Revenue,Sagecare Ltd,Home Care
Peterborough City Council,Adults,Independent Sector Placements,Services,05/09/2018,8000123440,845.46,Revenue,Sagecare Ltd,Home Care
Peterborough City Council,Adults,Independent Sector Placements,Services,05/09/2018,8000123443,777.08,Revenue,Sagecare Ltd,Home Care
Peterborough City Council,Adults,Independent Sector Placements,Services,05/09/2018,8000123446,1399.86,Revenue,Sagecare Ltd,Home Care
Peterborough City Council,Adults,Independent Sector Placements,Services,05/09/2018,8000123447,970.20,Revenue,Sagecare Ltd,Home Care
Peterborough City Council,Adults,Independent Sector Placements,Services,05/09/2018,8000123449,691.15,Revenue,Sagecare Ltd,Home Care
Peterborough City Council,Adults,Independent Sector Placements,Services,05/09/2018,8000123452,2106.72,Revenue,Sagecare Ltd,Home Care
Peterborough City Council,Adults,Independent Sector Placements,Services,05/09/2018,8000123453,607.53,Revenue,Sagecare Ltd,Home Care
Peterborough City Council,Adults,Independent Sector Placements,Services,05/09/2018,8000123454,963.27,Revenue,Sagecare Ltd,Home Care
Peterborough City Council,Adults,Independent Sector Placements,Services,05/09/2018,8000123455,2328.48,Revenue,Sagecare Ltd,Home Care
Peterborough City Council,Adults,Independent Sector Placements,Services,05/09/2018,8000123457,769.23,Revenue,Sagecare Ltd,Home Care
Peterborough City Council,Adults,Independent Sector Placements,Services,05/09/2018,8000123608,679.14,Revenue,Sagecare Ltd,Home Care
Peterborough City Council,Adults,Independent Sector Placements,Services,05/09/2018,8000123662,1017.45,Revenue,Axiom Housing Association Ltd,Home Care
Peterborough City Council,Adults,Independent Sector Placements,Services,05/09/2018,8000124380,966.60,Revenue,MEARS GROUP,Home Care
Peterborough City Council,Adults,Independent Sector Placements,Services,05/09/2018,8000124382,702.45,Revenue,MEARS GROUP,Home Care
Peterborough City Council,Adults,Independent Sector Placements,Services,05/09/2018,8000124386,1397.70,Revenue,MEARS GROUP,Home Care
Peterborough City Council,Adults,Independent Sector Placements,Services,05/09/2018,8000124387,1112.85,Revenue,MEARS GROUP,Home Care
Peterborough City Council,Adults,Independent Sector Placements,Services,05/09/2018,8000124388,1421.55,Revenue,MEARS GROUP,Home Care
Peterborough City Council,Adults,Independent Sector Placements,Services,05/09/2018,8000124389,1065.00,Revenue,MEARS GROUP,Home Care
Peterborough City Council,Adults,Independent Sector Placements,Services,05/09/2018,8000124390,532.50,Revenue,MEARS GROUP,Home Care
Peterborough City Council,Adults,Independent Sector Placements,Services,05/09/2018,8000124391,612.15,Revenue,MEARS GROUP,Home Care
Peterborough City Council,Adults,Independent Sector Placements,Services,05/09/2018,8000124394,1124.85,Revenue,MEARS GROUP,Home Care
Peterborough City Council,Adults,Independent Sector Placements,Services,05/09/2018,8000124395,834.60,Revenue,MEARS GROUP,Home Care
Peterborough City Council,Adults,Independent Sector Placements,Services,05/09/2018,8000124396,547.95,Revenue,MEARS GROUP,Home Care
Peterborough City Council,Adults,Independent Sector Placements,Services,05/09/2018,8000124400,760.80,Revenue,MEARS GROUP,Home Care
Peterborough City Council,Adults,Independent Sector Placements,Services,05/09/2018,8000124403,516.45,Revenue,MEARS GROUP,Home Care
Peterborough City Council,Adults,Independent Sector Placements,Services,05/09/2018,8000124409,1773.30,Revenue,MEARS GROUP,Home Care
Peterborough City Council,Adults,Independent Sector Placements,Services,05/09/2018,8000124415,755.10,Revenue,MEARS GROUP,Home Care
Peterborough City Council,Adults,Independent Sector Placements,Services,05/09/2018,8000124420,514.35,Revenue,MEARS GROUP,Home Care
Peterborough City Council,Adults,Independent Sector Placements,Services,05/09/2018,8000124423,999.60,Revenue,MEARS GROUP,Home Care
Peterborough City Council,Adults,Independent Sector Placements,Services,05/09/2018,8000124426,1681.35,Revenue,MEARS GROUP,Home Care
Peterborough City Council,Adults,Independent Sector Placements,Services,05/09/2018,8000124429,653.70,Revenue,MEARS GROUP,Home Care
Peterborough City Council,Adults,Independent Sector Placements,Services,05/09/2018,8000124433,846.30,Revenue,MEARS GROUP,Home Care
Peterborough City Council,Adults,Independent Sector Placements,Services,05/09/2018,8000124434,1434.15,Revenue,MEARS GROUP,Home Care
Peterborough City Council,Adults,Independent Sector Placements,Services,05/09/2018,8000124435,523.80,Revenue,MEARS GROUP,Home Care
Peterborough City Council,Adults,Independent Sector Placements,Services,05/09/2018,8000124440,543.00,Revenue,MEARS GROUP,Home Care
Peterborough City Council,Adults,Independent Sector Placements,Services,05/09/2018,8000124441,515.55,Revenue,MEARS GROUP,Home Care
Peterborough City Council,Adults,Independent Sector Placements,Services,05/09/2018,8000124442,1083.30,Revenue,MEARS GROUP,Home Care
Peterborough City Council,Adults,Independent Sector Placements,Services,05/09/2018,8000124446,547.20,Revenue,MEARS GROUP,Home Care
Peterborough City Council,Adults,Independent Sector Placements,Services,05/09/2018,8000124448,532.50,Revenue,MEARS GROUP,Home Care
Peterborough City Council,Adults,Independent Sector Placements,Services,05/09/2018,8000124454,625.80,Revenue,MEARS GROUP,Home Care
Peterborough City Council,Adults,Independent Sector Placements,Services,05/09/2018,8000124455,651.45,Revenue,MEARS GROUP,Home Care
Peterborough City Council,Adults,Independent Sector Placements,Services,05/09/2018,8000124466,826.20,Revenue,MEARS GROUP,Home Care
Peterborough City Council,Adults,Independent Sector Placements,Services,05/09/2018,8000124469,539.25,Revenue,MEARS GROUP,Home Care
Peterborough City Council,Adults,Independent Sector Placements,Services,05/09/2018,8000124470,711.90,Revenue,MEARS GROUP,Home Care
Peterborough City Council,Adults,Independent Sector Placements,Services,05/09/2018,8000124471,508.35,Revenue,MEARS GROUP,Home Care
Peterborough City Council,Adults,Independent Sector Placements,Services,05/09/2018,8000124472,2066.55,Revenue,MEARS GROUP,Home Care
Peterborough City Council,Adults,Independent Sector Placements,Services,05/09/2018,8000124473,515.55,Revenue,MEARS GROUP,Home Care
Peterborough City Council,Adults,Independent Sector Placements,Services,05/09/2018,8000124475,1268.40,Revenue,MEARS GROUP,Home Care
Peterborough City Council,Adults,Independent Sector Placements,Services,05/09/2018,8000124476,791.40,Revenue,MEARS GROUP,Home Care
Peterborough City Council,Adults,Independent Sector Placements,Services,05/09/2018,8000124478,820.65,Revenue,MEARS GROUP,Home Care
Peterborough City Council,Adults,Independent Sector Placements,Services,05/09/2018,8000124482,869.70,Revenue,MEARS GROUP,Home Care
Peterborough City Council,Adults,Independent Sector Placements,Services,05/09/2018,8000124483,900.30,Revenue,MEARS GROUP,Home Care
Peterborough City Council,Adults,Independent Sector Placements,Services,05/09/2018,8000124490,1398.60,Revenue,MEARS GROUP,Home Care
Peterborough City Council,Adults,Independent Sector Placements,Services,05/09/2018,8000124493,518.40,Revenue,MEARS GROUP,Home Care
Peterborough City Council,Adults,Independent Sector Placements,Services,05/09/2018,8000124495,550.20,Revenue,MEARS GROUP,Home Care
Peterborough City Council,Adults,Independent Sector Placements,Services,05/09/2018,8000124497,739.65,Revenue,MEARS GROUP,Home Care
Peterborough City Council,Adults,Independent Sector Placements,Services,05/09/2018,8000124498,555.45,Revenue,MEARS GROUP,Home Care
Peterborough City Council,Adults,Independent Sector Placements,Services,05/09/2018,8000124500,829.80,Revenue,MEARS GROUP,Home Care
Peterborough City Council,Adults,Independent Sector Placements,Services,05/09/2018,8000124507,575.70,Revenue,MEARS GROUP,Home Care
Peterborough City Council,Adults,Independent Sector Placements,Services,05/09/2018,8000124509,2107.20,Revenue,MEARS GROUP,Home Care
Peterborough City Council,Adults,Independent Sector Placements,Services,05/09/2018,8000124512,827.56,Revenue,MEARS GROUP,Home Care
Peterborough City Council,Adults,Independent Sector Placements,Services,05/09/2018,8000124517,782.90,Revenue,MEARS GROUP,Home Care
Peterborough City Council,Adults,Independent Sector Placements,Services,05/09/2018,8000124519,670.60,Revenue,MEARS GROUP,Home Care
Peterborough City Council,Adults,Independent Sector Placements,Services,05/09/2018,8000124520,849.61,Revenue,MEARS GROUP,Home Care
Peterborough City Council,Adults,Independent Sector Placements,Services,05/09/2018,8000124528,666.40,Revenue,Axiom Housing Association Ltd,Home Care
Peterborough City Council,Adults,Independent Sector Placements,Social Services,05/09/2018,8000124552,1952.41,Revenue,Redacted Personal Data,Adult Social Care Direct Payments
Peterborough City Council,Adults,Independent Sector Placements,Social Services,05/09/2018,8000124553,921.40,Revenue,Redacted Personal Data,Adult Social Care Direct Payments
Peterborough City Council,Adults,Independent Sector Placements,Social Services,05/09/2018,8000124555,975.51,Revenue,Redacted Personal Data,Adult Social Care Direct Payments
Peterborough City Council,Adults,Independent Sector Placements,Social Services,05/09/2018,8000124556,706.48,Revenue,Redacted Personal Data,Adult Social Care Direct Payments
Peterborough City Council,Adults,Independent Sector Placements,Social Services,05/09/2018,8000124558,673.85,Revenue,Redacted Personal Data,Adult Social Care Direct Payments
Peterborough City Council,Adults,Independent Sector Placements,Social Services,05/09/2018,8000124559,4367.80,Revenue,Redacted Personal Data,Adult Social Care Direct Payments
Peterborough City Council,Adults,Independent Sector Placements,Social Services,05/09/2018,8000124561,1008.66,Revenue,Redacted Personal Data,Adult Social Care Direct Payments
Peterborough City Council,Adults,Independent Sector Placements,Social Services,05/09/2018,8000124563,583.22,Revenue,Redacted Personal Data,Adult Social Care Direct Payments
Peterborough City Council,Adults,Independent Sector Placements,Social Services,05/09/2018,8000124564,939.72,Revenue,Redacted Personal Data,Adult Social Care Direct Payments
Peterborough City Council,Adults,Independent Sector Placements,Social Services,05/09/2018,8000124567,1938.08,Revenue,Redacted Personal Data,Adult Social Care Direct Payments
Peterborough City Council,Adults,Independent Sector Placements,Social Services,05/09/2018,8000124568,4848.19,Revenue,Redacted Personal Data,Adult Social Care Direct Payments
Peterborough City Council,Adults,Independent Sector Placements,Social Services,05/09/2018,8000124569,2268.84,Revenue,Redacted Personal Data,Adult Social Care Direct Payments
Peterborough City Council,Adults,Independent Sector Placements,Social Services,05/09/2018,8000124570,1170.89,Revenue,Redacted Personal Data,Adult Social Care Direct Payments
Peterborough City Council,Corporate,Corporate,Non Revenue,05/09/2018,8000126297,208763.40,Capital,Weightmans LLP,Land & Building Acquisition
Peterborough City Council,Children's & Safeguarding,Commissioning - CSC,Third Party Payments,05/09/2018,8000126297,681035.67,Revenue,IAS TACT,Third Party Payments - Contract
Peterborough City Council,Peterborough Highway Services,Transport & Infrastructure Commissioning,Premises Insurances,07/09/2018,30179046,1002.19,Revenue,Jones Lang LaSalle,Insurance Premiums
Peterborough City Council,Corporate,Corporate,Non Revenue,07/09/2018,30188239,2500.00,Capital,NPS Peterborough Ltd,Consultants Fees
Peterborough City Council,Energy,Environment Capital,Services,07/09/2018,30188252,1732.50,Revenue,NPS Peterborough Ltd,Consultants Fees
Peterborough City Council,Adults,Independent Sector Placements,Services,07/09/2018,30188555,2413.40,Revenue,Linkage Community Trust Limited,Residential Care
Peterborough City Council,Adults,Independent Sector Placements,Services,07/09/2018,30190428,1605.48,Revenue,Avery House (Peterborough) t/a Brighterkind,Residential Care
Peterborough City Council,Adults,Independent Sector Placements,Services,07/09/2018,30190429,1623.84,Revenue,Avery House (Peterborough) t/a Brighterkind,Residential Care
Peterborough City Council,Adults,Independent Sector Placements,Services,07/09/2018,30190430,1531.76,Revenue,Avery House (Peterborough) t/a Brighterkind,Residential Care
Peterborough City Council,Development and Construction,Development Management,Agency Staff,07/09/2018,30190473,1568.80,Revenue,Reed Specialist Recruitment Limited,External Temporary Staff
Peterborough City Council,Adults,Independent Sector Placements,Services,07/09/2018,30190493,2301.88,Revenue,Avery House (Peterborough) t/a Brighterkind,Residential Care
Peterborough City Council,Development and Construction,Planning Compliance,Agency Staff,07/09/2018,30190509,1014.13,Revenue,Reed Specialist Recruitment Limited,External Temporary Staff
Peterborough City Council,Children's & Safeguarding,Children's Social Care,Agency Staff,07/09/2018,30190719,1406.00,Revenue,NonStop Recruitment Ltd,External Temporary Staff
Peterborough City Council,Children's & Safeguarding,Child Health,Services,07/09/2018,30190899,3404.39,Revenue,Circles Network,Purchased Social Care Services
Peterborough City Council,"Waste, Cleansing and Open Spaces",Waste Management,Services,07/09/2018,30190929,400539.27,Revenue,Viridor Peterborough Ltd,Waste Disposal
Peterborough City Council,Communities,Community Safety,Services,07/09/2018,30190944,550.00,Revenue,Westcotec Limited,Road Safety
Peterborough City Council,Legal Services,Legal Services,Services,07/09/2018,30190945,1856.50,Revenue,Lincolnshire County Council,Legal Costs
Peterborough City Council,HR,HR,Services,07/09/2018,30190972,2600.00,Revenue,Reed Business Information Ltd,Subscriptions
Peterborough City Council,Adults,Independent Sector Placements,Services,07/09/2018,30191003,14588.00,Revenue,Decoy Farm,Residential Care
Peterborough City Council,Adults,Independent Sector Placements,Services,07/09/2018,30191067,1305.48,Revenue,Goldcare Homes t/a The Tudors Care Home,Residential Care
Peterborough City Council,Adults,Independent Sector Placements,Services,07/09/2018,30191071,942.96,Revenue,Goldcare Homes t/a The Tudors Care Home,Residential Care
Peterborough City Council,Adults,Independent Sector Placements,Services,07/09/2018,30191072,1188.68,Revenue,Goldcare Homes t/a The Tudors Care Home,Residential Care
Peterborough City Council,Adults,Independent Sector Placements,Services,07/09/2018,30191073,1023.84,Revenue,Goldcare Homes t/a The Tudors Care Home,Residential Care
Peterborough City Council,Adults,Independent Sector Placements,Services,07/09/2018,30191075,1061.36,Revenue,Goldcare Homes t/a The Tudors Care Home,Residential Care
Peterborough City Council,Adults,Independent Sector Placements,Services,07/09/2018,30191076,1369.48,Revenue,Goldcare Homes t/a The Tudors Care Home,Residential Care
Peterborough City Council,Adults,Independent Sector Placements,Services,07/09/2018,30191077,670.04,Revenue,Goldcare Homes t/a The Tudors Care Home,Residential Care
Peterborough City Council,Adults,Independent Sector Placements,Services,07/09/2018,30191078,1559.60,Revenue,Goldcare Homes t/a The Tudors Care Home,Residential Care
Peterborough City Council,Westcombe Engineering,Westcombe Engineering,"Tools, Equipment, Furniture & Materials",07/09/2018,30191184,892.50,Revenue,Olis Machine Tools Ltd,Equipment Repairs
Peterborough City Council,Adults,Independent Sector Placements,Services,07/09/2018,30191200,1800.00,Revenue,FIELD HOUSE (EYE) LTD,Residential Care
Peterborough City Council,Adults,Independent Sector Placements,Services,07/09/2018,30191247,1542.86,Revenue,FIELD HOUSE (EYE) LTD,Residential Care
Peterborough City Council,Adults,Independent Sector Placements,Services,07/09/2018,30191273,1107.60,Revenue,Mencap,Home Care
Peterborough City Council,Adults,Independent Sector Placements,Services,07/09/2018,30191274,7439.20,Revenue,Mencap,Home Care
Peterborough City Council,Adults,Independent Sector Placements,Services,07/09/2018,30191275,979.80,Revenue,Mencap,Home Care
Peterborough City Council,Corporate,Corporate,Non Revenue,07/09/2018,30191346,1985.00,Capital,EMS Stairlifts,Grant Payment
Peterborough City Council,Development and Construction,Development Management,Agency Staff,07/09/2018,30191359,1568.80,Revenue,Reed Specialist Recruitment Limited,External Temporary Staff
Peterborough City Council,Development and Construction,Development Management,Agency Staff,07/09/2018,30191361,1000.21,Revenue,Reed Specialist Recruitment Limited,External Temporary Staff
Peterborough City Council,Adults,Independent Sector Placements,Services,07/09/2018,30191401,2215.20,Revenue,Mencap,Home Care
Peterborough City Council,Adults,Independent Sector Placements,Services,07/09/2018,30191402,852.00,Revenue,Mencap,Home Care
Peterborough City Council,Adults,Independent Sector Placements,Services,07/09/2018,30191404,568.00,Revenue,Mencap,Home Care
Peterborough City Council,Adults,Independent Sector Placements,Services,07/09/2018,30191405,1476.80,Revenue,Mencap,Home Care
Peterborough City Council,Adults,Independent Sector Placements,Services,07/09/2018,30191408,852.00,Revenue,Mencap,Home Care
Peterborough City Council,Adults,Independent Sector Placements,Services,07/09/2018,30191409,3687.04,Revenue,Mencap,Home Care
Peterborough City Council,Adults,Independent Sector Placements,Services,07/09/2018,30191411,562.40,Revenue,Mencap,Home Care
Peterborough City Council,Adults,Independent Sector Placements,Services,07/09/2018,30191412,681.60,Revenue,Mencap,Home Care
Peterborough City Council,Adults,Independent Sector Placements,Services,07/09/2018,30191413,1500.64,Revenue,Mencap,Home Care
Peterborough City Council,Adults,Independent Sector Placements,Services,07/09/2018,30191414,6287.60,Revenue,Mencap,Residential Care
Peterborough City Council,Adults,Independent Sector Placements,Services,07/09/2018,30191415,8106.00,Revenue,Mencap,Home Care
Peterborough City Council,Adults,Independent Sector Placements,Services,07/09/2018,30191417,1940.68,Revenue,Mencap,Home Care
Peterborough City Council,Adults,Independent Sector Placements,Services,07/09/2018,30191419,7277.40,Revenue,Mencap,Home Care
Peterborough City Council,Adults,Independent Sector Placements,Services,07/09/2018,30191420,695.80,Revenue,Mencap,Home Care
Peterborough City Council,Adults,Independent Sector Placements,Services,07/09/2018,30191421,2223.00,Revenue,Mencap,Home Care
Peterborough City Council,Adults,Independent Sector Placements,Services,07/09/2018,30191423,1636.80,Revenue,Mencap,Home Care
Peterborough City Council,Adults,Independent Sector Placements,Services,07/09/2018,30191424,6543.32,Revenue,Mencap,Home Care
Peterborough City Council,Adults,Independent Sector Placements,Services,07/09/2018,30191446,2440.00,Revenue,Thera East Anglia,Day Care
Peterborough City Council,Adults,Independent Sector Placements,Services,07/09/2018,30191447,860.00,Revenue,Thera East Anglia,Day Care
Peterborough City Council,Adults,Independent Sector Placements,Services,07/09/2018,30191448,1952.00,Revenue,Thera East Anglia,Day Care
Peterborough City Council,Adults,Independent Sector Placements,Services,07/09/2018,30191450,1260.00,Revenue,Thera East Anglia,Day Care
Peterborough City Council,Adults,Independent Sector Placements,Services,07/09/2018,30191451,860.00,Revenue,Thera East Anglia,Day Care
Peterborough City Council,Adults,Independent Sector Placements,Services,07/09/2018,30191453,3515.00,Revenue,Thera East Anglia,Day Care
Peterborough City Council,Adults,Independent Sector Placements,Services,07/09/2018,30191454,504.00,Revenue,Thera East Anglia,Day Care
Peterborough City Council,Adults,Independent Sector Placements,Services,07/09/2018,30191455,1008.00,Revenue,Thera East Anglia,Day Care
Peterborough City Council,Adults,Independent Sector Placements,Services,07/09/2018,30191456,2440.00,Revenue,Thera East Anglia,Day Care
Peterborough City Council,Adults,Independent Sector Placements,Services,07/09/2018,30191457,688.00,Revenue,Thera East Anglia,Day Care
Peterborough City Council,Adults,Independent Sector Placements,Services,07/09/2018,30191458,549.00,Revenue,Thera East Anglia,Day Care
Peterborough City Council,Adults,Independent Sector Placements,Services,07/09/2018,30191459,2440.00,Revenue,Thera East Anglia,Day Care
Peterborough City Council,Adults,Independent Sector Placements,Services,07/09/2018,30191461,1260.00,Revenue,Thera East Anglia,Day Care
Peterborough City Council,Adults,Independent Sector Placements,Services,07/09/2018,30191462,2440.00,Revenue,Thera East Anglia,Day Care
Peterborough City Council,Adults,Independent Sector Placements,Services,07/09/2018,30191463,1260.00,Revenue,Thera East Anglia,Day Care
Peterborough City Council,Adults,Independent Sector Placements,Services,07/09/2018,30191464,504.00,Revenue,Thera East Anglia,Day Care
Peterborough City Council,Adults,Independent Sector Placements,Services,07/09/2018,30191465,1464.00,Revenue,Thera East Anglia,Day Care
Peterborough City Council,Adults,Independent Sector Placements,Services,07/09/2018,30191466,2440.00,Revenue,Thera East Anglia,Day Care
Peterborough City Council,Adults,Independent Sector Placements,Services,07/09/2018,30191467,2440.00,Revenue,Thera East Anglia,Day Care
Peterborough City Council,Adults,Independent Sector Placements,Services,07/09/2018,30191508,1269.48,Revenue,Avery House (Peterborough) t/a Brighterkind,Residential Care
Peterborough City Council,Adults,Independent Sector Placements,Services,07/09/2018,30191509,919.04,Revenue,Avery House (Peterborough) t/a Brighterkind,Residential Care
Peterborough City Council,Adults,Independent Sector Placements,Services,07/09/2018,30191513,1281.48,Revenue,Avery House (Peterborough) t/a Brighterkind,Residential Care
Peterborough City Council,Adults,Independent Sector Placements,Services,07/09/2018,30191514,947.48,Revenue,Avery House (Peterborough) t/a Brighterkind,Residential Care
Peterborough City Council,Adults,Independent Sector Placements,Services,07/09/2018,30191515,1269.48,Revenue,Avery House (Peterborough) t/a Brighterkind,Residential Care
Peterborough City Council,Adults,Independent Sector Placements,Services,07/09/2018,30191516,1473.20,Revenue,Avery House (Peterborough) t/a Brighterkind,Residential Care
Peterborough City Council,Adults,Independent Sector Placements,Services,07/09/2018,30191517,1610.56,Revenue,Avery House (Peterborough) t/a Brighterkind,Residential Care
Peterborough City Council,Adults,Independent Sector Placements,Services,07/09/2018,30191518,1211.16,Revenue,Avery House (Peterborough) t/a Brighterkind,Residential Care
Peterborough City Council,Adults,Independent Sector Placements,Services,07/09/2018,30191519,1089.96,Revenue,Avery House (Peterborough) t/a Brighterkind,Residential Care
Peterborough City Council,Adults,Independent Sector Placements,Services,07/09/2018,30191520,834.76,Revenue,Avery House (Peterborough) t/a Brighterkind,Residential Care
Peterborough City Council,Adults,Independent Sector Placements,Services,07/09/2018,30191521,2179.24,Revenue,Avery House (Peterborough) t/a Brighterkind,Residential Care
Peterborough City Council,Adults,Independent Sector Placements,Services,07/09/2018,30191522,1269.48,Revenue,Avery House (Peterborough) t/a Brighterkind,Residential Care
Peterborough City Council,Adults,Independent Sector Placements,Services,07/09/2018,30191523,2210.60,Revenue,Avery House (Peterborough) t/a Brighterkind,Residential Care
Peterborough City Council,Adults,Independent Sector Placements,Services,07/09/2018,30191525,973.92,Revenue,Avery House (Peterborough) t/a Brighterkind,Residential Care
Peterborough City Council,Adults,Independent Sector Placements,Services,07/09/2018,30191526,1869.48,Revenue,Avery House (Peterborough) t/a Brighterkind,Residential Care
Peterborough City Council,Adults,Independent Sector Placements,Services,07/09/2018,30191527,932.68,Revenue,Avery House (Peterborough) t/a Brighterkind,Residential Care
Peterborough City Council,Adults,Independent Sector Placements,Services,07/09/2018,30191528,1656.52,Revenue,Avery House (Peterborough) t/a Brighterkind,Residential Care
Peterborough City Council,Adults,Independent Sector Placements,Services,07/09/2018,30191529,883.84,Revenue,Avery House (Peterborough) t/a Brighterkind,Residential Care
Peterborough City Council,Adults,Independent Sector Placements,Services,07/09/2018,30191530,1237.64,Revenue,Avery House (Peterborough) t/a Brighterkind,Residential Care
Peterborough City Council,Adults,Independent Sector Placements,Services,07/09/2018,30191532,2215.10,Revenue,Avery House (Peterborough) t/a Brighterkind,Residential Care
Peterborough City Council,Adults,Independent Sector Placements,Services,07/09/2018,30191533,1495.84,Revenue,Avery House (Peterborough) t/a Brighterkind,Residential Care
Peterborough City Council,Adults,Independent Sector Placements,Services,07/09/2018,30191534,1159.12,Revenue,Avery House (Peterborough) t/a Brighterkind,Residential Care
Peterborough City Council,Adults,Independent Sector Placements,Services,07/09/2018,30191559,8767.56,Revenue,Home From Home Care Limited,Residential Care
Peterborough City Council,Adults,Independent Sector Placements,Services,07/09/2018,30191561,10856.48,Revenue,Home From Home Care Limited,Residential Care
Peterborough City Council,Adults,Independent Sector Placements,Services,07/09/2018,30191562,7860.68,Revenue,Home From Home Care Limited,Residential Care
Peterborough City Council,Adults,Independent Sector Placements,Services,07/09/2018,30191563,2440.00,Revenue,Thera East Anglia,Day Care
Peterborough City Council,Adults,Independent Sector Placements,Services,07/09/2018,30191567,3000.00,Revenue,FIELD HOUSE (EYE) LTD,Residential Care
Peterborough City Council,Adults,Independent Sector Placements,Services,07/09/2018,30191568,10800.00,Revenue,Consensus Support Services Ltd,Residential Care
Peterborough City Council,Adults,Independent Sector Placements,Services,07/09/2018,30191570,3869.88,Revenue,Consensus Support Services Ltd,Residential Care
Peterborough City Council,Adults,Independent Sector Placements,Services,07/09/2018,30191610,3200.00,Revenue,EXCELCARE GLENNFIELD HOUSE,Residential Care
Peterborough City Council,Adults,Independent Sector Placements,Services,07/09/2018,30191611,1680.00,Revenue,EXCELCARE GLENNFIELD HOUSE,Residential Care
Peterborough City Council,Adults,Independent Sector Placements,Services,07/09/2018,30191612,3720.00,Revenue,EXCELCARE GLENNFIELD HOUSE,Residential Care
Peterborough City Council,Adults,Independent Sector Placements,Services,07/09/2018,30191613,2540.00,Revenue,EXCELCARE GLENNFIELD HOUSE,Residential Care
Peterborough City Council,Adults,Independent Sector Placements,Services,07/09/2018,30191615,2442.20,Revenue,Benell Care Services Ltd,Residential Care
Peterborough City Council,Adults,Independent Sector Placements,Services,07/09/2018,30191616,1811.24,Revenue,Excelcare Aliwal Manor,Residential Care
Peterborough City Council,Adults,Independent Sector Placements,Services,07/09/2018,30191684,780.40,Revenue,Swanton Community Support,Home Care
Peterborough City Council,Adults,Independent Sector Placements,Services,07/09/2018,30191807,1069.60,Revenue,K2 CARE LTD,Home Care
Peterborough City Council,Adults,Independent Sector Placements,Services,07/09/2018,30191808,2376.50,Revenue,K2 CARE LTD,Home Care
Peterborough City Council,Adults,Independent Sector Placements,Services,07/09/2018,30191810,2916.20,Revenue,K2 CARE LTD,Home Care
Peterborough City Council,Adults,Independent Sector Placements,Services,07/09/2018,30191812,1379.00,Revenue,K2 CARE LTD,Home Care
Peterborough City Council,Adults,Independent Sector Placements,Services,07/09/2018,30191814,868.55,Revenue,K2 CARE LTD,Home Care
Peterborough City Council,Adults,Independent Sector Placements,Services,07/09/2018,30191816,1365.50,Revenue,K2 CARE LTD,Home Care
Peterborough City Council,Adults,Independent Sector Placements,Services,07/09/2018,30191817,630.00,Revenue,K2 CARE LTD,Home Care
Peterborough City Council,Adults,Independent Sector Placements,Services,07/09/2018,30191818,973.00,Revenue,K2 CARE LTD,Home Care
Peterborough City Council,Adults,Independent Sector Placements,Services,07/09/2018,30191819,2907.34,Revenue,K2 CARE LTD,Home Care
Peterborough City Council,Adults,Independent Sector Placements,Services,07/09/2018,30191820,644.00,Revenue,K2 CARE LTD,Home Care
Peterborough City Council,Adults,Independent Sector Placements,Services,07/09/2018,30191821,952.00,Revenue,K2 CARE LTD,Home Care
Peterborough City Council,Adults,Independent Sector Placements,Services,07/09/2018,30191823,1176.00,Revenue,K2 CARE LTD,Home Care
Peterborough City Council,Adults,Independent Sector Placements,Services,07/09/2018,30191824,1562.17,Revenue,K2 CARE LTD,Home Care
Peterborough City Council,Adults,Independent Sector Placements,Services,07/09/2018,30191872,4160.60,Revenue,Voyage,Home Care
Peterborough City Council,Adults,Independent Sector Placements,Services,07/09/2018,30191876,1394.16,Revenue,The Regard Partnership Limited,Residential Care
Peterborough City Council,Adults,Independent Sector Placements,Services,07/09/2018,30191883,1869.48,Revenue,The Cedars Bourne Care Home,Residential Care
Peterborough City Council,Adults,Independent Sector Placements,Services,07/09/2018,30191893,3423.52,Revenue,Sanctuary Home Care Ltd (Southwood House),Residential Care
Peterborough City Council,Adults,Independent Sector Placements,Services,07/09/2018,30191968,901.82,Revenue,K2 CARE LTD,Home Care
Peterborough City Council,Adults,Independent Sector Placements,Services,07/09/2018,30191969,2153.20,Revenue,K2 CARE LTD,Home Care
Peterborough City Council,Adults,Independent Sector Placements,Services,07/09/2018,30191994,4559.00,Revenue,Voyage,Home Care
Peterborough City Council,Adults,Independent Sector Placements,Services,07/09/2018,30191995,4160.60,Revenue,Voyage,Home Care
Peterborough City Council,Commissioning and Commercial Operations,Early Years & Quality Improvement,Services,07/09/2018,30192021,834.00,Revenue,Fenland First Aid Services Ltd,Training
Peterborough City Council,Peterborough Highway Services,Highway Services - HoS,Agency Staff,07/09/2018,30192160,1172.81,Revenue,Reed Specialist Recruitment Limited,External Temporary Staff
Peterborough City Council,Development and Construction,Development Management,Agency Staff,07/09/2018,30192163,1000.21,Revenue,Reed Specialist Recruitment Limited,External Temporary Staff
Peterborough City Council,Development and Construction,Planning Compliance,Agency Staff,07/09/2018,30192169,681.63,Revenue,Reed Specialist Recruitment Limited,External Temporary Staff
Peterborough City Council,Development and Construction,Development Management,Agency Staff,07/09/2018,30192179,1568.80,Revenue,Reed Specialist Recruitment Limited,External Temporary Staff
Peterborough City Council,Education,Special Educational Needs / Inclusion,Agency Staff,07/09/2018,30192288,3366.00,Revenue,Sanctuary Personnel Ltd,External Temporary Staff
Peterborough City Council,Education,Special Educational Needs / Inclusion,Agency Staff,07/09/2018,30192289,2244.00,Revenue,Sanctuary Personnel Ltd,External Temporary Staff
Peterborough City Council,Westcombe Engineering,Westcombe Engineering,"Tools, Equipment, Furniture & Materials",07/09/2018,30192307,1145.00,Revenue,Barron Clark Castings Ltd,Items For Resale
Peterborough City Council,Westcombe Engineering,Westcombe Engineering,"Tools, Equipment, Furniture & Materials",07/09/2018,30192334,541.32,Revenue,Barron Clark Castings Ltd,Items For Resale
Peterborough City Council,Westcombe Engineering,Westcombe Engineering,"Tools, Equipment, Furniture & Materials",07/09/2018,30192335,715.20,Revenue,Barron Clark Castings Ltd,Items For Resale
Peterborough City Council,Peterborough Serco Strategic Partnership,PSSP Retained Services,Services,07/09/2018,30192387,1699.52,Revenue,Whistl UK Ltd,Postage
Peterborough City Council,Corporate Property,Office Accomodation,Cleaning & Domestic Supplies,07/09/2018,30192519,-810.07,Revenue,PHS Group Plc,Hygiene Supplies
Peterborough City Council,Commissioning and Commercial Operations,Clare Lodge,Cleaning & Domestic Supplies,07/09/2018,30192613,652.51,Revenue,Bunzl UK Ltd t/a Industrial Supplies,Cleaning Materials
Peterborough City Council,Communities,Housing,Services,07/09/2018,30192724,900.00,Revenue,Skyline Property Investments Ltd,Financial Assistance
Peterborough City Council,Communities,Housing,Services,07/09/2018,30192725,1500.00,Revenue,Skyline Property Investments Ltd,Financial Assistance
Peterborough City Council,Corporate,Corporate,Non Revenue,07/09/2018,30192774,2583.60,Capital,Reed Specialist Recruitment Limited,Consultants Fees
Peterborough City Council,Development and Construction,Planning Compliance,Agency Staff,07/09/2018,30192783,764.75,Revenue,Reed Specialist Recruitment Limited,External Temporary Staff
Peterborough City Council,Legal Services,Legal Services,Agency Staff,07/09/2018,30192818,1743.30,Revenue,Reed Specialist Recruitment Limited,External Temporary Staff
Peterborough City Council,Commissioning and Commercial Operations,Clare Lodge,Agency Staff,07/09/2018,30192821,1092.69,Revenue,Reed Specialist Recruitment Limited,External Temporary Staff
Peterborough City Council,Commissioning and Commercial Operations,Clare Lodge,Agency Staff,07/09/2018,30192822,829.10,Revenue,Reed Specialist Recruitment Limited,External Temporary Staff
Peterborough City Council,Peterborough Highway Services,Transport & Infrastructure Commissioning,Repair & Maintenance of Buildings,07/09/2018,30192871,18750.00,Revenue,Jones Lang LaSalle,Service Charges - Premises
Peterborough City Council,Children's & Safeguarding,Access to Resources & Specialist Commissioning,Services,07/09/2018,30192897,840.00,Revenue,Florinee Homes Ltd,Boarding Out Allowances
Peterborough City Council,Adults,Independent Sector Placements,Services,07/09/2018,30193054,930.00,Revenue,Axiom Housing Association Ltd,Home Care
Peterborough City Council,Adults,Independent Sector Placements,Services,07/09/2018,30193055,583.10,Revenue,Axiom Housing Association Ltd,Home Care
Peterborough City Council,Adults,Independent Sector Placements,Services,07/09/2018,30193056,2338.56,Revenue,Barchester Healthcare (Werrington Lodge),Residential Care
Peterborough City Council,Adults,Independent Sector Placements,Services,07/09/2018,30193057,3784.00,Revenue,Community Care Solutions Ltd,Residential Care
Peterborough City Council,Adults,Independent Sector Placements,Services,07/09/2018,30193058,8049.72,Revenue,Community Care Solutions Ltd,Residential Care
Peterborough City Council,Adults,Independent Sector Placements,Services,07/09/2018,30193059,5600.00,Revenue,Community Care Solutions Ltd,Residential Care
Peterborough City Council,Adults,Independent Sector Placements,Services,07/09/2018,30193060,5600.00,Revenue,Community Care Solutions Ltd,Residential Care
Peterborough City Council,Adults,Independent Sector Placements,Services,07/09/2018,30193061,1758.94,Revenue,K2 CARE LTD,Home Care
Peterborough City Council,Adults,Independent Sector Placements,Services,07/09/2018,30193062,5600.00,Revenue,Community Care Solutions Ltd,Residential Care
Peterborough City Council,Adults,Independent Sector Placements,Services,07/09/2018,30193063,1199.57,Revenue,K2 CARE LTD,Home Care
Peterborough City Council,Adults,Independent Sector Placements,Services,07/09/2018,30193065,8049.72,Revenue,Community Care Solutions Ltd,Residential Care
Peterborough City Council,Adults,Independent Sector Placements,Services,07/09/2018,30193066,8049.72,Revenue,Community Care Solutions Ltd,Residential Care
Peterborough City Council,Adults,Independent Sector Placements,Services,07/09/2018,30193068,8049.72,Revenue,Community Care Solutions Ltd,Residential Care
Peterborough City Council,Adults,Independent Sector Placements,Services,07/09/2018,30193069,3767.20,Revenue,Community Care Solutions Ltd,Residential Care
Peterborough City Council,Adults,Independent Sector Placements,Services,07/09/2018,30193072,3767.20,Revenue,Community Care Solutions Ltd,Residential Care
Peterborough City Council,Adults,Independent Sector Placements,Services,07/09/2018,30193073,5600.00,Revenue,Community Care Solutions Ltd,Residential Care
Peterborough City Council,Adults,Independent Sector Placements,Services,07/09/2018,30193077,3767.20,Revenue,Community Care Solutions Ltd,Residential Care
Peterborough City Council,Adults,Independent Sector Placements,Services,07/09/2018,30193079,3767.20,Revenue,Community Care Solutions Ltd,Residential Care
Peterborough City Council,Adults,Independent Sector Placements,Services,07/09/2018,30193084,1418.57,Revenue,PHILIA LODGE REST HOME,Residential Care
Peterborough City Council,Adults,Independent Sector Placements,Services,07/09/2018,30193085,5714.00,Revenue,Sense,Residential Care
Peterborough City Council,Adults,Independent Sector Placements,Services,07/09/2018,30193086,2096.12,Revenue,Mayfield Residential Home,Residential Care
Peterborough City Council,Children's & Safeguarding,Access to Resources & Specialist Commissioning,Services,07/09/2018,30193094,1680.00,Revenue,Florinee Homes Ltd,Boarding Out Allowances
Peterborough City Council,Children's & Safeguarding,Access to Resources & Specialist Commissioning,Services,07/09/2018,30193125,20150.00,Revenue,Hillcrest Children Serv(2)Ltd t/a Options BESD (1) Ltd,Boarding Out Allowances
Peterborough City Council,Adults,Independent Sector Placements,Services,07/09/2018,30193143,685.28,Revenue,"ATCHISON, MR ALAN",Residential Care
Peterborough City Council,Adults,Independent Sector Placements,Services,07/09/2018,30193145,3200.00,Revenue,"ATCHISON, MR ALAN",Residential Care
Peterborough City Council,Adults,Independent Sector Placements,Services,07/09/2018,30193147,660.00,Revenue,"ATCHISON, MR ALAN",Residential Care
Peterborough City Council,Adults,Independent Sector Placements,Services,07/09/2018,30193150,2345.20,Revenue,"ATCHISON, MR ALAN",Residential Care
Peterborough City Council,Adults,Independent Sector Placements,Services,07/09/2018,30193151,3625.08,Revenue,"ATCHISON, MR ALAN",Residential Care
Peterborough City Council,Adults,Independent Sector Placements,Services,07/09/2018,30193153,2794.32,Revenue,"ATCHISON, MR ALAN",Residential Care
Peterborough City Council,Adults,Independent Sector Placements,Services,07/09/2018,30193154,4904.00,Revenue,"ATCHISON, MR ALAN",Residential Care
Peterborough City Council,Adults,Independent Sector Placements,Services,07/09/2018,30193157,1954.32,Revenue,"ATCHISON, MR ALAN",Residential Care
Peterborough City Council,Adults,Independent Sector Placements,Services,07/09/2018,30193159,1954.32,Revenue,"ATCHISON, MR ALAN",Residential Care
Peterborough City Council,Adults,Independent Sector Placements,Services,07/09/2018,30193161,3812.84,Revenue,"ATCHISON, MR ALAN",Residential Care
Peterborough City Council,Adults,Independent Sector Placements,Services,07/09/2018,30193162,3103.92,Revenue,"ATCHISON, MR ALAN",Residential Care
Peterborough City Council,Adults,Independent Sector Placements,Services,07/09/2018,30193163,660.00,Revenue,"ATCHISON, MR ALAN",Residential Care
Peterborough City Council,Adults,Independent Sector Placements,Services,07/09/2018,30193164,4288.00,Revenue,"ATCHISON, MR ALAN",Residential Care
Peterborough City Council,Adults,Independent Sector Placements,Services,07/09/2018,30193165,3065.60,Revenue,"ATCHISON, MR ALAN",Residential Care
Peterborough City Council,Adults,Independent Sector Placements,Services,07/09/2018,30193166,2162.28,Revenue,"ATCHISON, MR ALAN",Residential Care
Peterborough City Council,Adults,Independent Sector Placements,Services,07/09/2018,30193167,2337.52,Revenue,"ATCHISON, MR ALAN",Residential Care
Peterborough City Council,Adults,Independent Sector Placements,Services,07/09/2018,30193168,2162.24,Revenue,"ATCHISON, MR ALAN",Residential Care
Peterborough City Council,Adults,Independent Sector Placements,Services,07/09/2018,30193169,3625.08,Revenue,"ATCHISON, MR ALAN",Residential Care
Peterborough City Council,Adults,Independent Sector Placements,Services,07/09/2018,30193170,1822.20,Revenue,PHILIA LODGE REST HOME,Residential Care
Peterborough City Council,Adults,Independent Sector Placements,Services,07/09/2018,30193171,4391.48,Revenue,"ATCHISON, MR ALAN",Residential Care
Peterborough City Council,Adults,Independent Sector Placements,Services,07/09/2018,30193172,5234.52,Revenue,"ATCHISON, MR ALAN",Residential Care
Peterborough City Council,Adults,Independent Sector Placements,Services,07/09/2018,30193173,2648.00,Revenue,PHILIA LODGE REST HOME,Residential Care
Peterborough City Council,Adults,Independent Sector Placements,Services,07/09/2018,30193174,756.00,Revenue,"ATCHISON, MR ALAN",Residential Care
Peterborough City Council,Adults,Independent Sector Placements,Services,07/09/2018,30193175,2648.00,Revenue,PHILIA LODGE REST HOME,Residential Care
Peterborough City Council,Adults,Independent Sector Placements,Services,07/09/2018,30193176,1975.60,Revenue,PHILIA LODGE REST HOME,Residential Care
Peterborough City Council,Children's & Safeguarding,Access to Resources & Specialist Commissioning,Services,07/09/2018,30193177,15948.88,Revenue,Cambian Childcare Ltd,Boarding Out Allowances
Peterborough City Council,Children's & Safeguarding,Access to Resources & Specialist Commissioning,Services,07/09/2018,30193178,2208.13,Revenue,Cambian Childcare Ltd,Boarding Out Allowances
Peterborough City Council,Adults,Independent Sector Placements,Services,07/09/2018,30193179,1236.72,Revenue,PHILIA LODGE REST HOME,Residential Care
Peterborough City Council,Adults,Independent Sector Placements,Services,07/09/2018,30193180,2648.00,Revenue,PHILIA LODGE REST HOME,Residential Care
Peterborough City Council,Adults,Independent Sector Placements,Services,07/09/2018,30193181,2648.00,Revenue,PHILIA LODGE REST HOME,Residential Care
Peterborough City Council,Adults,Independent Sector Placements,Services,07/09/2018,30193182,1674.44,Revenue,PHILIA LODGE REST HOME,Residential Care
Peterborough City Council,Adults,Independent Sector Placements,Services,07/09/2018,30193183,2648.00,Revenue,PHILIA LODGE REST HOME,Residential Care
Peterborough City Council,Children's & Safeguarding,Access to Resources & Specialist Commissioning,Services,07/09/2018,30193184,1422.85,Revenue,PC Homes,Boarding Out Allowances
Peterborough City Council,Children's & Safeguarding,Access to Resources & Specialist Commissioning,Services,07/09/2018,30193188,1422.85,Revenue,PC Homes,Boarding Out Allowances
Peterborough City Council,Children's & Safeguarding,Access to Resources & Specialist Commissioning,Services,07/09/2018,30193192,1422.85,Revenue,PC Homes,Boarding Out Allowances
Peterborough City Council,Children's & Safeguarding,Access to Resources & Specialist Commissioning,Services,07/09/2018,30193199,1422.85,Revenue,PC Homes,Boarding Out Allowances
Peterborough City Council,Children's & Safeguarding,Access to Resources & Specialist Commissioning,Services,07/09/2018,30193201,2682.85,Revenue,PC Homes,Boarding Out Allowances
Peterborough City Council,Children's & Safeguarding,Access to Resources & Specialist Commissioning,Services,07/09/2018,30193206,1422.85,Revenue,PC Homes,Boarding Out Allowances
Peterborough City Council,Children's & Safeguarding,Access to Resources & Specialist Commissioning,Services,07/09/2018,30193221,-895.71,Revenue,PC Homes,Boarding Out Allowances
Peterborough City Council,Adults,Block Contracts,Third Party Payments,07/09/2018,30193237,4836.07,Revenue,ABOUT ME CARE AND SUPPORT LTD,Third Party Payments - Contract
Peterborough City Council,Children's & Safeguarding,Access to Resources & Specialist Commissioning,Services,07/09/2018,30193238,840.00,Revenue,Florinee Homes Ltd,Boarding Out Allowances
Peterborough City Council,Children's & Safeguarding,Access to Resources & Specialist Commissioning,Services,07/09/2018,30193253,1980.00,Revenue,Florinee Homes Ltd,Boarding Out Allowances
Peterborough City Council,Children's & Safeguarding,Access to Resources & Specialist Commissioning,Services,07/09/2018,30193254,840.00,Revenue,Florinee Homes Ltd,Boarding Out Allowances
Peterborough City Council,Adults,Independent Sector Placements,Services,07/09/2018,30193255,2231.68,Revenue,Hales Group Ltd,Home Care
Peterborough City Council,Adults,Independent Sector Placements,Services,07/09/2018,30193257,1512.75,Revenue,Hales Group Ltd,Home Care
Peterborough City Council,Children's & Safeguarding,Access to Resources & Specialist Commissioning,Services,07/09/2018,30193258,840.00,Revenue,Florinee Homes Ltd,Boarding Out Allowances
Peterborough City Council,Adults,Independent Sector Placements,Services,07/09/2018,30193259,1286.85,Revenue,Hales Group Ltd,Home Care
Peterborough City Council,Adults,Independent Sector Placements,Services,07/09/2018,30193261,865.20,Revenue,Hales Group Ltd,Home Care
Peterborough City Council,Adults,Independent Sector Placements,Services,07/09/2018,30193267,814.29,Revenue,HC-One Oval Limited,Residential Care
Peterborough City Council,Adults,Independent Sector Placements,Services,07/09/2018,30193268,950.00,Revenue,HC-One Oval Limited,Residential Care
Peterborough City Council,Adults,Independent Sector Placements,Services,07/09/2018,30193269,950.00,Revenue,HC-One Oval Limited,Residential Care
Peterborough City Council,Adults,Independent Sector Placements,Services,07/09/2018,30193270,950.00,Revenue,HC-One Oval Limited,Residential Care
Peterborough City Council,Adults,Independent Sector Placements,Services,07/09/2018,30193271,950.00,Revenue,HC-One Oval Limited,Residential Care
Peterborough City Council,Adults,Independent Sector Placements,Services,07/09/2018,30193272,950.00,Revenue,HC-One Oval Limited,Residential Care
Peterborough City Council,Adults,Independent Sector Placements,Services,07/09/2018,30193273,950.00,Revenue,HC-One Oval Limited,Residential Care
Peterborough City Council,Adults,Independent Sector Placements,Services,07/09/2018,30193274,-542.86,Revenue,HC-One Oval Limited,Residential Care
Peterborough City Council,Corporate Property,Office Accomodation,Cleaning & Domestic Supplies,07/09/2018,30193284,810.07,Revenue,PHS Group Plc,Hygiene Supplies
Peterborough City Council,Corporate,Corporate,Non Revenue,07/09/2018,30193288,9275.00,Capital,NPS Peterborough Ltd,Consultants Fees
Peterborough City Council,Peterborough Highway Services,Highway & Drainage Control,Direct Transport Costs,07/09/2018,30193299,500.00,Revenue,Nationwide Gladwins Repair Centres,Vehicle Repairs
Peterborough City Council,Chief Executive,Chief Executive,Services,07/09/2018,30193302,10000.00,Revenue,Local Government Information Unit (LGIU),Subscriptions
Peterborough City Council,Communities,Housing,Services,07/09/2018,30193305,1000.00,Revenue,Progressive Lets,Financial Assistance
Peterborough City Council,Communities,Housing,Services,07/09/2018,30193306,1300.00,Revenue,Key Lettings,Financial Assistance
Peterborough City Council,Adults,Independent Sector Placements,Services,07/09/2018,30193323,1490.37,Revenue,Athena (Ashlynn Grange),Residential Care
Peterborough City Council,Adults,Independent Sector Placements,Services,07/09/2018,30193335,1826.26,Revenue,Voyage,Home Care
Peterborough City Council,Adults,Independent Sector Placements,Services,07/09/2018,30193336,1876.59,Revenue,Voyage,Home Care
Peterborough City Council,Adults,Independent Sector Placements,Services,07/09/2018,30193337,1876.59,Revenue,Voyage,Home Care
Peterborough City Council,Adults,Independent Sector Placements,Services,07/09/2018,30193338,4186.96,Revenue,Voyage,Home Care
Peterborough City Council,Adults,Independent Sector Placements,Services,07/09/2018,30193339,4925.36,Revenue,Voyage,Home Care
Peterborough City Council,Adults,Independent Sector Placements,Services,07/09/2018,30193340,4186.96,Revenue,Voyage,Home Care
Peterborough City Council,Adults,Independent Sector Placements,Services,07/09/2018,30193341,3952.40,Revenue,Voyage,Home Care
Peterborough City Council,Adults,Independent Sector Placements,Services,07/09/2018,30193342,3952.40,Revenue,Voyage,Home Care
Peterborough City Council,Adults,Independent Sector Placements,Services,07/09/2018,30193343,4925.36,Revenue,Voyage,Home Care
Peterborough City Council,Adults,Independent Sector Placements,Services,07/09/2018,30193344,4186.96,Revenue,Voyage,Home Care
Peterborough City Council,Adults,Independent Sector Placements,Services,07/09/2018,30193345,3952.40,Revenue,Voyage,Home Care
Peterborough City Council,Adults,Independent Sector Placements,Services,07/09/2018,30193346,3952.40,Revenue,Voyage,Home Care
Peterborough City Council,Adults,Independent Sector Placements,Services,07/09/2018,30193347,4925.36,Revenue,Voyage,Home Care
Peterborough City Council,Adults,Independent Sector Placements,Services,07/09/2018,30193349,822.04,Revenue,Voyage,Home Care
Peterborough City Council,Adults,Independent Sector Placements,Services,07/09/2018,30193350,916.15,Revenue,Voyage,Home Care
Peterborough City Council,Commissioning and Commercial Operations,Clare Lodge,Agency Staff,07/09/2018,30193394,960.00,Revenue,Wrixon Care Services,External Temporary Staff
Peterborough City Council,ICT,ICT,Agency Staff,10/09/2018,30190489,641.41,Revenue,Reed Specialist Recruitment Limited,External Temporary Staff
Peterborough City Council,Westcombe Engineering,Westcombe Engineering,"Tools, Equipment, Furniture & Materials",10/09/2018,30190802,7500.00,Revenue,SMW Autoblok Telbrook Ltd,Equipment Repairs
Peterborough City Council,ICT,ICT,Agency Staff,10/09/2018,30190807,2500.00,Revenue,Cranford Solutions Ltd,External Temporary Staff
Peterborough City Council,Children's & Safeguarding,External Education Placements,Services,10/09/2018,30190947,9380.42,Revenue,Lincolnshire County Council,Education Expenses
Peterborough City Council,Parking Services,Parking Services,Services,10/09/2018,30190975,2384.00,Revenue,BemroseBooth Paragon Ltd,Tickets
Peterborough City Council,Corporate,Corporate,Non Revenue,10/09/2018,30191344,2885.52,Capital,Dolphin Mobility East Midlands Ltd,Grant Payment
Peterborough City Council,Westcombe Engineering,Westcombe Engineering,"Tools, Equipment, Furniture & Materials",10/09/2018,30191487,988.95,Revenue,Carillon Industrial Services Ltd,Tools
Peterborough City Council,Commissioning and Commercial Operations,Clare Lodge,Agency Staff,10/09/2018,30191493,944.00,Revenue,Wrixon Care Services,External Temporary Staff
Peterborough City Council,Commissioning and Commercial Operations,Clare Lodge,Agency Staff,10/09/2018,30191494,968.00,Revenue,Wrixon Care Services,External Temporary Staff
Peterborough City Council,Commissioning and Commercial Operations,Clare Lodge,Agency Staff,10/09/2018,30191495,1016.00,Revenue,Wrixon Care Services,External Temporary Staff
Peterborough City Council,Commissioning and Commercial Operations,Clare Lodge,Agency Staff,10/09/2018,30191496,1664.00,Revenue,Wrixon Care Services,External Temporary Staff
Peterborough City Council,Commissioning and Commercial Operations,Clare Lodge,Agency Staff,10/09/2018,30191497,2136.00,Revenue,Wrixon Care Services,External Temporary Staff
Peterborough City Council,Commissioning and Commercial Operations,Clare Lodge,Agency Staff,10/09/2018,30191498,1016.00,Revenue,Wrixon Care Services,External Temporary Staff
Peterborough City Council,Commissioning and Commercial Operations,Clare Lodge,Agency Staff,10/09/2018,30191499,912.00,Revenue,Wrixon Care Services,External Temporary Staff
Peterborough City Council,Commissioning and Commercial Operations,Clare Lodge,Agency Staff,10/09/2018,30191504,1568.00,Revenue,Wrixon Care Services,External Temporary Staff
Peterborough City Council,Adults,Independent Sector Placements,Services,10/09/2018,30191831,1137.48,Revenue,Oakhouse Home Care Cambs Ltd,Day Care
Peterborough City Council,Adults,Independent Sector Placements,Services,10/09/2018,30191832,1205.68,Revenue,Oakhouse Home Care Cambs Ltd,Residential Care
Peterborough City Council,Adults,Independent Sector Placements,Services,10/09/2018,30191833,984.32,Revenue,Oakhouse Home Care Cambs Ltd,Residential Care
Peterborough City Council,Adults,Independent Sector Placements,Services,10/09/2018,30191875,2181.60,Revenue,Southwark Park Nursing Homes - Blenheim Care Centre,Residential Care
Peterborough City Council,Corporate,Corporate,Non Revenue,10/09/2018,30192190,2583.60,Capital,Reed Specialist Recruitment Limited,Consultants Fees
Peterborough City Council,Westcombe Engineering,Westcombe Engineering,"Tools, Equipment, Furniture & Materials",10/09/2018,30192310,715.20,Revenue,Barron Clark Castings Ltd,Items For Resale
Peterborough City Council,Westcombe Engineering,Westcombe Engineering,"Tools, Equipment, Furniture & Materials",10/09/2018,30192312,644.80,Revenue,Barron Clark Castings Ltd,Items For Resale
Peterborough City Council,Peterborough Serco Strategic Partnership,PSSP Retained Services,Services,10/09/2018,30192386,909.73,Revenue,Whistl UK Ltd,Postage
Peterborough City Council,Sustainable Growth Strategy,Natural & Historic Environment,Services,10/09/2018,30192409,3000.00,Revenue,Natural Capital Solutions Ltd,Hired Services
Peterborough City Council,Corporate,Corporate,Non Revenue,10/09/2018,30192434,11056.00,Capital,Casbon Building Services,Grant Payment
Peterborough City Council,Corporate,Corporate,Non Revenue,10/09/2018,30192445,3789.00,Capital,Casbon Building Services,Grant Payment
Peterborough City Council,"Cemeteries, Cremation & Registrars",Bereavement Service,"Tools, Equipment, Furniture & Materials",10/09/2018,30192470,550.00,Revenue,Nene Engineering (Peterborough) Ltd,Memorials
Peterborough City Council,"Cemeteries, Cremation & Registrars",Bereavement Service,Repair & Maintenance of Buildings,10/09/2018,30192471,1555.55,Revenue,Facultatieve Technologies Ltd,Cremators
Peterborough City Council,Adults,Day opportunities - Older People,Cleaning & Domestic Supplies,10/09/2018,30192640,676.81,Revenue,Eastern Shires Purchasing Organisation,Hygiene Supplies
Peterborough City Council,ICT,ICT,Agency Staff,10/09/2018,30192789,538.57,Revenue,Reed Specialist Recruitment Limited,External Temporary Staff
Peterborough City Council,Commissioning and Commercial Operations,Early Years & Quality Improvement,Services,10/09/2018,30193353,615.00,Revenue,Bright Star's day Nursery,Grant Payment
Peterborough City Council,Commissioning and Commercial Operations,Early Years & Quality Improvement,Services,10/09/2018,30193354,44167.28,Revenue,St Johns C of E Pre-School,Grant Payment
Peterborough City Council,Commissioning and Commercial Operations,Early Years & Quality Improvement,Services,10/09/2018,30193355,29381.94,Revenue,Stars Pre-School Ravensthorpe,Grant Payment
Peterborough City Council,Commissioning and Commercial Operations,Early Years & Quality Improvement,Services,10/09/2018,30193356,9361.80,Revenue,Smiley Faces Day Nursery,Grant Payment
Peterborough City Council,Commissioning and Commercial Operations,Early Years & Quality Improvement,Services,10/09/2018,30193357,647.64,Revenue,Redacted Personal Data,Grant Payment
Peterborough City Council,Commissioning and Commercial Operations,Early Years & Quality Improvement,Services,10/09/2018,30193358,14148.54,Revenue,Millfield Pre-School,Grant Payment
Peterborough City Council,Commissioning and Commercial Operations,Early Years & Quality Improvement,Services,10/09/2018,30193360,647.64,Revenue,Redacted Personal Data,Grant Payment
Peterborough City Council,Adults,Independent Sector Placements,Services,10/09/2018,30193369,1260.00,Revenue,THE HELPING HANDS GROUP,Day Care
Peterborough City Council,Adults,Independent Sector Placements,Services,10/09/2018,30193370,1593.00,Revenue,THE HELPING HANDS GROUP,Day Care
Peterborough City Council,Adults,Independent Sector Placements,Services,10/09/2018,30193372,3837.50,Revenue,THE HELPING HANDS GROUP,Day Care
Peterborough City Council,Adults,Independent Sector Placements,Services,10/09/2018,30193373,1062.00,Revenue,THE HELPING HANDS GROUP,Day Care
Peterborough City Council,Adults,Independent Sector Placements,Services,10/09/2018,30193374,1389.00,Revenue,THE HELPING HANDS GROUP,Day Care
Peterborough City Council,Adults,Independent Sector Placements,Services,10/09/2018,30193375,1260.00,Revenue,THE HELPING HANDS GROUP,Day Care
Peterborough City Council,Adults,Independent Sector Placements,Services,10/09/2018,30193377,2655.00,Revenue,THE HELPING HANDS GROUP,Day Care
Peterborough City Council,Adults,Independent Sector Placements,Services,10/09/2018,30193378,1593.00,Revenue,THE HELPING HANDS GROUP,Day Care
Peterborough City Council,Adults,Independent Sector Placements,Services,10/09/2018,30193379,2440.00,Revenue,THE HELPING HANDS GROUP,Day Care
Peterborough City Council,Adults,Independent Sector Placements,Services,10/09/2018,30193380,976.00,Revenue,THE HELPING HANDS GROUP,Day Care
Peterborough City Council,Adults,Independent Sector Placements,Services,10/09/2018,30193381,2440.00,Revenue,THE HELPING HANDS GROUP,Day Care
Peterborough City Council,Adults,Independent Sector Placements,Services,10/09/2018,30193382,1952.00,Revenue,THE HELPING HANDS GROUP,Day Care
Peterborough City Council,Adults,Independent Sector Placements,Services,10/09/2018,30193384,1260.00,Revenue,THE HELPING HANDS GROUP,Day Care
Peterborough City Council,Adults,Independent Sector Placements,Services,10/09/2018,30193386,999.75,Revenue,THE HELPING HANDS GROUP,Day Care
Peterborough City Council,Adults,Independent Sector Placements,Services,10/09/2018,30193387,1008.00,Revenue,THE HELPING HANDS GROUP,Day Care
Peterborough City Council,Adults,Independent Sector Placements,Services,10/09/2018,30193388,1260.00,Revenue,THE HELPING HANDS GROUP,Day Care
Peterborough City Council,Adults,Independent Sector Placements,Services,10/09/2018,30193389,756.00,Revenue,THE HELPING HANDS GROUP,Day Care
Peterborough City Council,Adults,Independent Sector Placements,Services,10/09/2018,30193390,2440.00,Revenue,THE HELPING HANDS GROUP,Day Care
Peterborough City Council,Adults,Independent Sector Placements,Services,10/09/2018,30193395,1490.24,Revenue,STAR RESIDENTIAL HOME LTD,Residential Care
Peterborough City Council,Adults,Independent Sector Placements,Services,10/09/2018,30193396,2651.80,Revenue,STAR RESIDENTIAL HOME LTD,Residential Care
Peterborough City Council,Adults,Independent Sector Placements,Services,10/09/2018,30193397,2354.56,Revenue,STAR RESIDENTIAL HOME LTD,Residential Care
Peterborough City Council,Adults,Independent Sector Placements,Services,10/09/2018,30193398,2867.96,Revenue,STAR RESIDENTIAL HOME LTD,Residential Care
Peterborough City Council,Adults,Independent Sector Placements,Services,10/09/2018,30193399,3232.64,Revenue,STAR RESIDENTIAL HOME LTD,Residential Care
Peterborough City Council,Adults,Independent Sector Placements,Services,10/09/2018,30193400,828.48,Revenue,STAR RESIDENTIAL HOME LTD,Residential Care
Peterborough City Council,Adults,Independent Sector Placements,Services,10/09/2018,30193401,3233.44,Revenue,STAR RESIDENTIAL HOME LTD,Residential Care
Peterborough City Council,Adults,Independent Sector Placements,Services,10/09/2018,30193402,828.48,Revenue,STAR RESIDENTIAL HOME LTD,Residential Care
Peterborough City Council,Adults,Independent Sector Placements,Services,10/09/2018,30193403,946.83,Revenue,STAR RESIDENTIAL HOME LTD,Residential Care
Peterborough City Council,Peterborough Highway Services,Transport & Infrastructure Commissioning,Services,10/09/2018,30193406,951.00,Revenue,Unicard Ltd,Computer Software
Peterborough City Council,Peterborough Highway Services,Transport & Infrastructure Commissioning,Services,10/09/2018,30193408,950.70,Revenue,Unicard Ltd,Computer Software
Peterborough City Council,Adults,Independent Sector Placements,Services,10/09/2018,30193409,1407.58,Revenue,Athena (Ashlynn Grange),Residential Care
Peterborough City Council,Communities,Housing,Services,10/09/2018,30193432,9726.50,Revenue,Eastfield Guesthouse,Temporary Accommodation Costs
Peterborough City Council,Communities,Housing,Services,10/09/2018,30193433,9726.50,Revenue,Eastfield Guesthouse,Temporary Accommodation Costs
Peterborough City Council,Communities,Housing,Services,10/09/2018,30193434,10982.00,Revenue,Eastfield Guesthouse,Temporary Accommodation Costs
Peterborough City Council,Corporate,Corporate,Non Revenue,10/09/2018,30193439,168716.88,Capital,Eastern Shires Purchasing Organisation,Furniture And Equipment Purchase
Peterborough City Council,Corporate,Corporate,Non Revenue,10/09/2018,30193440,10000.00,Capital,Eastern Shires Purchasing Organisation,Consultants Fees
Peterborough City Council,Adults,Other Services,Third Party Payments,10/09/2018,30193447,9548.85,Revenue,P'Boro Council For Voluntary Srvs (PCVS),Third Party Payments - Contract
Peterborough City Council,Children's & Safeguarding,Access to Resources & Specialist Commissioning,Services,10/09/2018,30193455,1422.85,Revenue,PC Homes,Boarding Out Allowances
Peterborough City Council,Development and Construction,Development Management,Services,10/09/2018,30193462,955.00,Revenue,Ray Worsley Education Consultancy,Consultants Fees
Peterborough City Council,Adults,Mental Health,Contract Hire and Operating Leases,10/09/2018,30193488,3473.42,Revenue,Northumbria Healthcare NHS Foundation Trust,Leasing Charges
Peterborough City Council,Corporate Items,Corporate Services,Employee Costs,10/09/2018,30193489,79937.19,Revenue,LGSS Cambridgeshire Pension Fund,Pensions
Peterborough City Council,Adults,Home Services Delivery Model,Third Party Payments,10/09/2018,30193496,5017.14,Revenue,Peterborough Womens Aid,Grant-Third Party
Peterborough City Council,Adults,Independent Sector Placements,Services,10/09/2018,30193500,5092.86,Revenue,PSYCARE LIMITED,Residential Care
Peterborough City Council,Adults,Independent Sector Placements,Services,10/09/2018,30193503,2767.86,Revenue,PSYCARE LIMITED,Residential Care
Peterborough City Council,ICT,ICT,Services,10/09/2018,30193504,74653.61,Revenue,Amazon Web Services Inc.,Computer Software
Peterborough City Council,Children's & Safeguarding,Access to Resources & Specialist Commissioning,Services,10/09/2018,30193507,1970.71,Revenue,Sixteen Plus Limited,Boarding Out Allowances
Peterborough City Council,Adults,Independent Sector Placements,Services,10/09/2018,30193509,1826.79,Revenue,PSYCARE LIMITED,Residential Care
Peterborough City Council,Financial Services,Finance,Agency Staff,10/09/2018,30193514,817.02,Revenue,Reed Specialist Recruitment Limited,External Temporary Staff
Peterborough City Council,Adults,Strategic Commissioning - Management,Agency Staff,10/09/2018,30193531,836.88,Revenue,Reed Specialist Recruitment Limited,External Temporary Staff
Peterborough City Council,Children's & Safeguarding,Children's Social Care,Contract Hire and Operating Leases,10/09/2018,30193540,973.70,Revenue,Northumbria Healthcare NHS Foundation Trust,Leasing Charges
Peterborough City Council,Adults,Independent Sector Placements,Services,10/09/2018,30193541,2364.72,Revenue,PHILIA LODGE REST HOME,Residential Care
Peterborough City Council,Children's & Safeguarding,Access to Resources & Specialist Commissioning,Services,10/09/2018,30193552,20533.50,Revenue,Horizon Care & Education Group,Boarding Out Allowances
Peterborough City Council,Children's & Safeguarding,Access to Resources & Specialist Commissioning,Services,10/09/2018,30193557,12400.00,Revenue,Horizon Care & Education Group,Boarding Out Allowances
Peterborough City Council,Corporate,Corporate,Non Revenue,10/09/2018,30193568,10280.92,Balance Sheet,The Prudential Assurance Company Ltd,Pensions
Peterborough City Council,Corporate,Corporate,Non Revenue,10/09/2018,30193571,2735.21,Balance Sheet,The Prudential Assurance Company Ltd,Pensions
Peterborough City Council,Children's & Safeguarding,Access to Resources & Specialist Commissioning,Services,10/09/2018,30193628,610.00,Revenue,Maze Independent Care Ltd,Boarding Out Allowances
Peterborough City Council,Children's & Safeguarding,Access to Resources & Specialist Commissioning,Services,10/09/2018,30193629,610.00,Revenue,Maze Independent Care Ltd,Boarding Out Allowances
Peterborough City Council,Children's & Safeguarding,Access to Resources & Specialist Commissioning,Services,10/09/2018,30193634,7465.00,Revenue,Sixteen Plus Limited,Boarding Out Allowances
Peterborough City Council,Communities,Housing,Services,10/09/2018,30193637,9584.50,Revenue,Eastfield Guesthouse,Temporary Accommodation Costs
Peterborough City Council,Communities,Housing,Services,10/09/2018,30193639,9489.50,Revenue,Eastfield Guesthouse,Temporary Accommodation Costs
Peterborough City Council,Communities,Housing,Services,10/09/2018,30193641,10901.00,Revenue,Eastfield Guesthouse,Temporary Accommodation Costs
Peterborough City Council,Corporate,Corporate,Non Revenue,10/09/2018,30193643,152128.87,Capital,Kier Construction Ltd,Building And Site Works
Peterborough City Council,Communities,Housing,Services,10/09/2018,30193644,11198.00,Revenue,Eastfield Guesthouse,Temporary Accommodation Costs
Peterborough City Council,Education,HTS & CSC Transport,Contract Hire and Operating Leases,10/09/2018,8000124631,544.00,Revenue,A2B Euro Cars,Hired Transport
Peterborough City Council,Education,HTS & CSC Transport,Contract Hire and Operating Leases,10/09/2018,8000124632,700.00,Revenue,A2B Euro Cars,Hired Transport
Peterborough City Council,Education,HTS & CSC Transport,Contract Hire and Operating Leases,10/09/2018,8000124634,956.44,Revenue,R T Enterprises Ltd T/A Royal Taxis,Hired Transport
Peterborough City Council,Education,HTS & CSC Transport,Contract Hire and Operating Leases,10/09/2018,8000124635,1070.99,Revenue,R T Enterprises Ltd T/A Royal Taxis,Hired Transport
Peterborough City Council,Education,HTS & CSC Transport,Contract Hire and Operating Leases,10/09/2018,8000124636,1969.60,Revenue,Peterborough Cars,Hired Transport
Peterborough City Council,Education,HTS & CSC Transport,Contract Hire and Operating Leases,10/09/2018,8000124637,1098.44,Revenue,Peterborough Cars,Hired Transport
Peterborough City Council,Education,HTS & CSC Transport,Contract Hire and Operating Leases,10/09/2018,8000124638,1620.15,Revenue,Peterborough Cars,Hired Transport
Peterborough City Council,Education,HTS & CSC Transport,Contract Hire and Operating Leases,10/09/2018,8000124639,1168.90,Revenue,Peterborough Cars,Hired Transport
Peterborough City Council,Education,HTS & CSC Transport,Contract Hire and Operating Leases,10/09/2018,8000124640,1385.59,Revenue,Peterborough Cars,Hired Transport
Peterborough City Council,Education,HTS & CSC Transport,Contract Hire and Operating Leases,10/09/2018,8000124641,788.95,Revenue,Peterborough Cars,Hired Transport
Peterborough City Council,Education,HTS & CSC Transport,Contract Hire and Operating Leases,10/09/2018,8000124642,1980.00,Revenue,Goldstar Cabs Ltd,Hired Transport
Peterborough City Council,Education,HTS & CSC Transport,Contract Hire and Operating Leases,10/09/2018,8000124648,600.00,Revenue,City Cabs Pboro Ltd,Hired Transport
Peterborough City Council,Education,HTS & CSC Transport,Contract Hire and Operating Leases,10/09/2018,8000124649,540.00,Revenue,City Cabs Pboro Ltd,Hired Transport
Peterborough City Council,Education,HTS & CSC Transport,Contract Hire and Operating Leases,10/09/2018,8000124650,510.00,Revenue,City Cabs Pboro Ltd,Hired Transport
Peterborough City Council,Education,HTS & CSC Transport,Contract Hire and Operating Leases,10/09/2018,8000124651,570.00,Revenue,City Cabs Pboro Ltd,Hired Transport
Peterborough City Council,Education,HTS & CSC Transport,Contract Hire and Operating Leases,10/09/2018,8000124652,797.20,Revenue,City Cabs Pboro Ltd,Hired Transport
Peterborough City Council,Education,HTS & CSC Transport,Contract Hire and Operating Leases,10/09/2018,8000124653,1290.60,Revenue,City Cabs Pboro Ltd,Hired Transport
Peterborough City Council,Education,HTS & CSC Transport,Contract Hire and Operating Leases,10/09/2018,8000124654,1354.60,Revenue,City Cabs Pboro Ltd,Hired Transport
Peterborough City Council,Education,HTS & CSC Transport,Contract Hire and Operating Leases,10/09/2018,8000124655,1062.60,Revenue,City Cabs Pboro Ltd,Hired Transport
Peterborough City Council,Education,HTS & CSC Transport,Contract Hire and Operating Leases,10/09/2018,8000124656,816.00,Revenue,City Cabs Pboro Ltd,Hired Transport
Peterborough City Council,Education,HTS & CSC Transport,Contract Hire and Operating Leases,10/09/2018,8000124657,773.51,Revenue,The Taxi Firm Limited,Hired Transport
Peterborough City Council,Legal & Democratic,Democratic Services,Contract Hire and Operating Leases,11/09/2018,8000124948,534.32,Revenue,Lex Autolease Ltd,Leasing Charges
Peterborough City Council,Financial Services,Insurance,Premises Insurances,12/09/2018,30182838,614623.49,Revenue,Zurich Insurance Company,Insurance Premiums
Peterborough City Council,Children's & Safeguarding,Children's Social Care,Services,12/09/2018,30188233,689.13,Revenue,Cross Keys Homes,Financial Assistance
Peterborough City Council,Adults,Independent Sector Placements,Services,12/09/2018,30188793,2015.00,Revenue,Klair House Residential Care Homes,Residential Care
Peterborough City Council,Other - Exclude,Other,"Other Grants, reimbursements and contributions",12/09/2018,30189207,66000.00,Revenue,East of England Agricultural Society,Refunds
Peterborough City Council,Financial Services,Insurance,Premises Insurances,12/09/2018,30189364,-8511.05,Revenue,Zurich Insurance Company,Insurance Premiums
Peterborough City Council,Children's & Safeguarding,Child Health,Services,12/09/2018,30189421,13750.00,Revenue,Scope,Hired Services
Peterborough City Council,Communities,Housing,Services,12/09/2018,30189542,40744.00,Revenue,Stef & Philips Ltd,Temporary Accommodation Costs
Peterborough City Council,Adults,Block Contracts,Third Party Payments,12/09/2018,30190571,5693.30,Revenue,Axiom Housing Association Ltd,Third Party Payments - Contract
Peterborough City Council,Adults,Block Contracts,Third Party Payments,12/09/2018,30190576,5693.30,Revenue,Axiom Housing Association Ltd,Third Party Payments - Contract
Peterborough City Council,Adults,Block Contracts,Third Party Payments,12/09/2018,30190583,2009.40,Revenue,Axiom Housing Association Ltd,Third Party Payments - Contract
Peterborough City Council,Adults,Community Team,Services,12/09/2018,30191202,506.80,Revenue,CAPITA Translation and Interpreting,Interpretation Expenses
Peterborough City Council,Legal Services,Legal Services,Services,12/09/2018,30191206,550.00,Revenue,"Bramwell, Mr Christopher",Legal Costs
Peterborough City Council,Legal Services,Legal Services,Services,12/09/2018,30191207,550.00,Revenue,"Hunt, Miss Alison",Legal Costs
Peterborough City Council,Adults,Independent Sector Placements,Services,12/09/2018,30191238,692.86,Revenue,Goldcare Homes t/a The Tudors Care Home,Residential Care
Peterborough City Council,ICT,ICT,Services,12/09/2018,30191295,952.97,Revenue,Serco Ltd,Computer Software
Peterborough City Council,Children's & Safeguarding,Children's Social Care,"Tools, Equipment, Furniture & Materials",12/09/2018,30191296,747.05,Revenue,Serco Ltd,Computer Consumables
Peterborough City Council,Development and Construction,Development Management,Services,12/09/2018,30191298,804.63,Revenue,Johnston Press Midlands Division,Advertising
Peterborough City Council,ICT,ICT,Services,12/09/2018,30191300,1026.19,Revenue,Serco Ltd,Computer Software
Peterborough City Council,Peterborough Highway Services,Network and Traffic Management,Services,12/09/2018,30191302,862.11,Revenue,Johnston Press Midlands Division,Advertising
Peterborough City Council,ICT,ICT,Services,12/09/2018,30191305,2209.20,Revenue,Serco Ltd,Computer Software
Peterborough City Council,ICT,ICT,Services,12/09/2018,30191307,27617.77,Revenue,Serco Ltd,Computer Software
Peterborough City Council,ICT,ICT,Services,12/09/2018,30191308,60092.36,Revenue,Serco Ltd,Computer Software
Peterborough City Council,Communities,Housing,Services,12/09/2018,30191309,2175.00,Revenue,Liam Varnam,Legal Costs
Peterborough City Council,Corporate,Corporate,Non Revenue,12/09/2018,30191325,3607.00,Capital,A W Morley T/A Morley Building Services,Grant Payment
Peterborough City Council,Corporate,Corporate,Non Revenue,12/09/2018,30191340,2055.66,Capital,Richard Masham Building Services,Grant Payment
Peterborough City Council,Corporate,Corporate,Non Revenue,12/09/2018,30191342,3195.00,Capital,Obam Domestic Lift Services Ltd,Grant Payment
Peterborough City Council,Corporate,Corporate,Non Revenue,12/09/2018,30191343,1875.00,Capital,Dolphin Mobility East Midlands Ltd,Grant Payment
Peterborough City Council,Corporate,Corporate,Non Revenue,12/09/2018,30191347,1419.00,Capital,Obam Domestic Lift Services Ltd,Grant Payment
Peterborough City Council,Legal Services,Legal Services,Services,12/09/2018,30191433,825.00,Revenue,"Bramwell, Mr Christopher",Legal Costs
Peterborough City Council,Commissioning and Commercial Operations,Clare Lodge,Agency Staff,12/09/2018,30191500,1952.00,Revenue,Wrixon Care Services,External Temporary Staff
Peterborough City Council,Commissioning and Commercial Operations,Clare Lodge,Agency Staff,12/09/2018,30191502,1888.00,Revenue,Wrixon Care Services,External Temporary Staff
Peterborough City Council,Corporate,Corporate,Non Revenue,12/09/2018,30191545,4739.00,Capital,A W Morley T/A Morley Building Services,Grant Payment
Peterborough City Council,Corporate,Corporate,Non Revenue,12/09/2018,30191549,4800.00,Capital,Casbon Building Services,Grant Payment
Peterborough City Council,Adults,Independent Sector Placements,Services,12/09/2018,30191560,8823.48,Revenue,Home From Home Care Limited,Residential Care
Peterborough City Council,"Cemeteries, Cremation & Registrars",Bereavement Service,Services,12/09/2018,30191651,1289.00,Revenue,Anglia Co-operative Funerals,Contract Funerals
Peterborough City Council,Education,Special Educational Needs / Inclusion,Agency Staff,12/09/2018,30191669,3705.63,Revenue,Protocol National Ltd,External Temporary Staff
Peterborough City Council,Adults,Independent Sector Placements,Services,12/09/2018,30191702,2015.00,Revenue,Klair House Residential Care Homes,Residential Care
Peterborough City Council,Legal Services,Legal Services,Agency Staff,12/09/2018,30191796,2062.50,Revenue,Venn Group Ltd,External Temporary Staff
Peterborough City Council,Westcombe Engineering,Westcombe Engineering,"Tools, Equipment, Furniture & Materials",12/09/2018,30191849,1406.00,Revenue,AALCO,Items For Resale
Peterborough City Council,ICT,ICT,Services,12/09/2018,30191852,1361.75,Revenue,Serco Ltd,Computer Software
Peterborough City Council,ICT,ICT,Services,12/09/2018,30191853,17045.78,Revenue,Serco Ltd,Computer Software
Peterborough City Council,ICT,ICT,"Tools, Equipment, Furniture & Materials",12/09/2018,30191855,515.70,Revenue,Serco Ltd,Computer Hardware
Peterborough City Council,Adults,Independent Sector Placements,Services,12/09/2018,30191877,1821.88,Revenue,Maxey House Res Home,Residential Care
Peterborough City Council,Adults,Independent Sector Placements,Services,12/09/2018,30191878,5267.85,Revenue,Maxey House Res Home,Residential Care
Peterborough City Council,Adults,Independent Sector Placements,Services,12/09/2018,30191897,1215.16,Revenue,Maxey House Res Home,Residential Care
Peterborough City Council,Adults,Independent Sector Placements,Services,12/09/2018,30191898,1037.16,Revenue,Maxey House Res Home,Residential Care
Peterborough City Council,Adults,Independent Sector Placements,Services,12/09/2018,30191899,1236.92,Revenue,Maxey House Res Home,Residential Care
Peterborough City Council,Adults,Independent Sector Placements,Services,12/09/2018,30191901,1576.24,Revenue,Maxey House Res Home,Residential Care
Peterborough City Council,Adults,Independent Sector Placements,Services,12/09/2018,30191903,1225.20,Revenue,Maxey House Res Home,Residential Care
Peterborough City Council,Peterborough Highway Services,Network and Traffic Management,Services,12/09/2018,30191904,775.89,Revenue,Johnston Press Midlands Division,Advertising
Peterborough City Council,Adults,Independent Sector Placements,Services,12/09/2018,30191905,914.56,Revenue,Maxey House Res Home,Residential Care
Peterborough City Council,Adults,Independent Sector Placements,Services,12/09/2018,30191906,1821.88,Revenue,Maxey House Res Home,Residential Care
Peterborough City Council,Peterborough Highway Services,Network and Traffic Management,Services,12/09/2018,30191907,775.89,Revenue,Johnston Press Midlands Division,Advertising
Peterborough City Council,Peterborough Highway Services,Network and Traffic Management,Services,12/09/2018,30191909,775.89,Revenue,Johnston Press Midlands Division,Advertising
Peterborough City Council,Adults,Independent Sector Placements,Services,12/09/2018,30191910,1301.48,Revenue,Maxey House Res Home,Residential Care
Peterborough City Council,Adults,Independent Sector Placements,Services,12/09/2018,30191911,996.68,Revenue,Maxey House Res Home,Residential Care
Peterborough City Council,Adults,Independent Sector Placements,Services,12/09/2018,30191912,1679.96,Revenue,Maxey House Res Home,Residential Care
Peterborough City Council,Legal Services,Legal Services,Services,12/09/2018,30191916,762.00,Revenue,"Walji, Miss Shabnam",Legal Costs
Peterborough City Council,Education,PFI,Services,12/09/2018,30191920,5438.15,Revenue,IIC by Education (P'boro) Ltd,Service Charge
Peterborough City Council,Parking Services,Parking Services,"Tools, Equipment, Furniture & Materials",12/09/2018,30191934,1131.75,Revenue,Parkeon Limited,Equipment Maintenance
Peterborough City Council,Communities,Cultural Services,Services,12/09/2018,30191938,5000.00,Revenue,Suffolk County Council,Hired Services
Peterborough City Council,Peterborough Highway Services,Transport & Infrastructure Commissioning,Services,12/09/2018,30191950,1153.84,Revenue,Stagecoach in Peterborough,Contractors
Peterborough City Council,Peterborough Highway Services,Transport & Infrastructure Commissioning,Services,12/09/2018,30191951,1153.85,Revenue,Stagecoach in Peterborough,Contractors
Peterborough City Council,Peterborough Highway Services,Transport & Infrastructure Commissioning,Services,12/09/2018,30191952,1153.84,Revenue,Stagecoach in Peterborough,Contractors
Peterborough City Council,Peterborough Highway Services,Transport & Infrastructure Commissioning,Services,12/09/2018,30191953,1153.85,Revenue,Stagecoach in Peterborough,Contractors
Peterborough City Council,Peterborough Highway Services,Transport & Infrastructure Commissioning,Services,12/09/2018,30191954,1153.85,Revenue,Stagecoach in Peterborough,Contractors
Peterborough City Council,Peterborough Highway Services,Transport & Infrastructure Commissioning,Services,12/09/2018,30191955,1153.85,Revenue,Stagecoach in Peterborough,Contractors
Peterborough City Council,Peterborough Highway Services,Transport & Infrastructure Commissioning,Services,12/09/2018,30191956,1153.85,Revenue,Stagecoach in Peterborough,Contractors
Peterborough City Council,Peterborough Highway Services,Transport & Infrastructure Commissioning,Services,12/09/2018,30191957,1153.85,Revenue,Stagecoach in Peterborough,Contractors
Peterborough City Council,Peterborough Highway Services,Transport & Infrastructure Commissioning,Services,12/09/2018,30191958,1153.84,Revenue,Stagecoach in Peterborough,Contractors
Peterborough City Council,Peterborough Highway Services,Transport & Infrastructure Commissioning,Services,12/09/2018,30191959,1153.85,Revenue,Stagecoach in Peterborough,Contractors
Peterborough City Council,Peterborough Highway Services,Transport & Infrastructure Commissioning,Services,12/09/2018,30191960,1153.85,Revenue,Stagecoach in Peterborough,Contractors
Peterborough City Council,Peterborough Highway Services,Transport & Infrastructure Commissioning,Services,12/09/2018,30191961,1153.84,Revenue,Stagecoach in Peterborough,Contractors
Peterborough City Council,Communities,Housing,Services,12/09/2018,30191975,11067.79,Revenue,DA Rosalia Hotel,Temporary Accommodation Costs
Peterborough City Council,Parking Services,Parking Services,Services,12/09/2018,30191977,1956.00,Revenue,British Parking Association,Subscriptions
Peterborough City Council,Education,PFI,Services,12/09/2018,30192013,13413.40,Revenue,IIC by Education (P'boro) Ltd,Service Charge
Peterborough City Council,Adults,Independent Sector Placements,Services,12/09/2018,30192041,1192.80,Revenue,Mencap,Home Care
Peterborough City Council,Commissioning and Commercial Operations,Clare Lodge,Agency Staff,12/09/2018,30192088,880.00,Revenue,Wrixon Care Services,External Temporary Staff
Peterborough City Council,Adults,Strategic Commissioning - Management,Agency Staff,12/09/2018,30192217,8529.48,Revenue,Badenoch & Clark Ltd,External Temporary Staff
Peterborough City Council,Westcombe Engineering,Westcombe Engineering,"Tools, Equipment, Furniture & Materials",12/09/2018,30192313,877.60,Revenue,Barron Clark Castings Ltd,Items For Resale
Peterborough City Council,Westcombe Engineering,Westcombe Engineering,"Tools, Equipment, Furniture & Materials",12/09/2018,30192315,836.40,Revenue,Barron Clark Castings Ltd,Items For Resale
Peterborough City Council,Children's & Safeguarding,Access to Resources & Specialist Commissioning,Agency Staff,12/09/2018,30192382,932.80,Revenue,HCL Social Care Ltd,External Temporary Staff
Peterborough City Council,Legal Services,Legal Services,Services,12/09/2018,30192405,550.00,Revenue,"Elliott, Ms Margot",Legal Costs
Peterborough City Council,Commissioning and Commercial Operations,Commissioning,Services,12/09/2018,30192410,525.00,Revenue,121 Social Care Limited,Hired Services
Peterborough City Council,ICT,ICT,Services,12/09/2018,30192413,45780.00,Revenue,PITNEY BOWES SOFTWARE EUROPE LTD,Computer Software
Peterborough City Council,Peterborough Highway Services,Transport & Infrastructure Commissioning,Services,12/09/2018,30192414,595.00,Revenue,UK Power Networks (operations) Ltd,Contractors
Peterborough City Council,Corporate,Corporate,Non Revenue,12/09/2018,30192436,7244.00,Capital,Casbon Building Services,Grant Payment
Peterborough City Council,Corporate,Corporate,Non Revenue,12/09/2018,30192446,91133.18,Capital,R G Carter Cambridge Ltd,Building And Site Works
Peterborough City Council,Commissioning and Commercial Operations,Clare Lodge,Agency Staff,12/09/2018,30192447,4264.67,Revenue,Southview Building Solutions Ltd,External Temporary Staff
Peterborough City Council,Commissioning and Commercial Operations,Clare Lodge,Agency Staff,12/09/2018,30192482,2083.00,Revenue,Southview Building Solutions Ltd,External Temporary Staff
Peterborough City Council,Corporate,Corporate,Non Revenue,12/09/2018,30192517,94575.15,Capital,R G Carter Cambridge Ltd,Building And Site Works
Peterborough City Council,Communities,Targeted Youth Service,Services,12/09/2018,30192614,2893.20,Revenue,Cambridgeshire County Council,Hired Services
Peterborough City Council,Legal Services,Legal Services,Agency Staff,12/09/2018,30192651,913.00,Revenue,Giant Professional Limited,External Temporary Staff
Peterborough City Council,Development and Construction,Development Management,Agency Staff,12/09/2018,30192779,1365.01,Revenue,Reed Specialist Recruitment Limited,External Temporary Staff
Peterborough City Council,Commissioning and Commercial Operations,Commissioning Team,Agency Staff,12/09/2018,30192780,2243.60,Revenue,Reed Specialist Recruitment Limited,External Temporary Staff
Peterborough City Council,Adults,Finance,Agency Staff,12/09/2018,30192782,2433.60,Revenue,Reed Specialist Recruitment Limited,External Temporary Staff
Peterborough City Council,Adults,Strategic Commissioning - Management,Agency Staff,12/09/2018,30192817,689.29,Revenue,Reed Specialist Recruitment Limited,External Temporary Staff
Peterborough City Council,Communities,Housing,Services,12/09/2018,30192830,2264.72,Revenue,Longhurst and Havelock,Financial Assistance
Peterborough City Council,Communities,Cultural Services,Repair & Maintenance of Buildings,12/09/2018,30192877,515.00,Revenue,Jones Lang LaSalle,Service Charges - Premises
Peterborough City Council,Legal Services,Legal Services,Agency Staff,12/09/2018,30192930,2025.38,Revenue,Reed Specialist Recruitment Limited,External Temporary Staff
Peterborough City Council,Communities,Housing,Services,12/09/2018,30192971,2419.27,Revenue,BPHA Limited,Financial Assistance
Peterborough City Council,Adults,Independent Sector Placements,Services,12/09/2018,30193011,2634.28,Revenue,HC-One Oval Limited,Residential Care
Peterborough City Council,Adults,Independent Sector Placements,Services,12/09/2018,30193012,1574.20,Revenue,HC-One Oval Limited,Residential Care
Peterborough City Council,Adults,Independent Sector Placements,Services,12/09/2018,30193013,2575.00,Revenue,HC-One Oval Limited,Residential Care
Peterborough City Council,Adults,Independent Sector Placements,Services,12/09/2018,30193014,1574.20,Revenue,HC-One Oval Limited,Residential Care
Peterborough City Council,Adults,Independent Sector Placements,Services,12/09/2018,30193015,2575.00,Revenue,HC-One Oval Limited,Residential Care
Peterborough City Council,Adults,Independent Sector Placements,Services,12/09/2018,30193016,1574.20,Revenue,HC-One Oval Limited,Residential Care
Peterborough City Council,Adults,Independent Sector Placements,Services,12/09/2018,30193017,1561.76,Revenue,HC-One Oval Limited,Residential Care
Peterborough City Council,Adults,Independent Sector Placements,Services,12/09/2018,30193019,2562.56,Revenue,HC-One Oval Limited,Residential Care
Peterborough City Council,Adults,Independent Sector Placements,Services,12/09/2018,30193021,2590.99,Revenue,HC-One Oval Limited,Residential Care
Peterborough City Council,Adults,Independent Sector Placements,Services,12/09/2018,30193022,1590.19,Revenue,HC-One Oval Limited,Residential Care
Peterborough City Council,Adults,Independent Sector Placements,Services,12/09/2018,30193023,2575.00,Revenue,HC-One Oval Limited,Residential Care
Peterborough City Council,Adults,Independent Sector Placements,Services,12/09/2018,30193024,1574.20,Revenue,HC-One Oval Limited,Residential Care
Peterborough City Council,Adults,Independent Sector Placements,Services,12/09/2018,30193026,1574.20,Revenue,HC-One Oval Limited,Residential Care
Peterborough City Council,Adults,Independent Sector Placements,Services,12/09/2018,30193027,2575.00,Revenue,HC-One Oval Limited,Residential Care
Peterborough City Council,Adults,Independent Sector Placements,Services,12/09/2018,30193028,1574.20,Revenue,HC-One Oval Limited,Residential Care
Peterborough City Council,Adults,Independent Sector Placements,Services,12/09/2018,30193029,2575.00,Revenue,HC-One Oval Limited,Residential Care
Peterborough City Council,Adults,Independent Sector Placements,Services,12/09/2018,30193034,1574.20,Revenue,HC-One Oval Limited,Residential Care
Peterborough City Council,Adults,Independent Sector Placements,Services,12/09/2018,30193035,3175.00,Revenue,HC-One Oval Limited,Residential Care
Peterborough City Council,Adults,Independent Sector Placements,Services,12/09/2018,30193036,2634.28,Revenue,HC-One Oval Limited,Residential Care
Peterborough City Council,Adults,Independent Sector Placements,Services,12/09/2018,30193037,3175.00,Revenue,HC-One Oval Limited,Residential Care
Peterborough City Council,Adults,Independent Sector Placements,Services,12/09/2018,30193038,3162.56,Revenue,HC-One Oval Limited,Residential Care
Peterborough City Council,Adults,Independent Sector Placements,Services,12/09/2018,30193042,2604.44,Revenue,HC-One Oval Limited,Residential Care
Peterborough City Council,Adults,Independent Sector Placements,Services,12/09/2018,30193044,3190.99,Revenue,HC-One Oval Limited,Residential Care
Peterborough City Council,Adults,Independent Sector Placements,Services,12/09/2018,30193045,2632.87,Revenue,HC-One Oval Limited,Residential Care
Peterborough City Council,Adults,Independent Sector Placements,Services,12/09/2018,30193046,3175.00,Revenue,HC-One Oval Limited,Residential Care
Peterborough City Council,Adults,Independent Sector Placements,Services,12/09/2018,30193047,2616.88,Revenue,HC-One Oval Limited,Residential Care
Peterborough City Council,Adults,Independent Sector Placements,Services,12/09/2018,30193048,3175.00,Revenue,HC-One Oval Limited,Residential Care
Peterborough City Council,Adults,Independent Sector Placements,Services,12/09/2018,30193049,2616.88,Revenue,HC-One Oval Limited,Residential Care
Peterborough City Council,Adults,Independent Sector Placements,Services,12/09/2018,30193050,3175.00,Revenue,HC-One Oval Limited,Residential Care
Peterborough City Council,Adults,Independent Sector Placements,Services,12/09/2018,30193051,2616.88,Revenue,HC-One Oval Limited,Residential Care
Peterborough City Council,Adults,Independent Sector Placements,Services,12/09/2018,30193087,2096.12,Revenue,Mayfield Residential Home,Residential Care
Peterborough City Council,Communities,Housing,Services,12/09/2018,30193310,525.00,Revenue,Quantum Lettings,Financial Assistance
Peterborough City Council,Communities,Housing,Services,12/09/2018,30193312,560.00,Revenue,RWP Property Management Ltd,Financial Assistance
Peterborough City Council,Communities,Housing,Services,12/09/2018,30193313,550.00,Revenue,Redacted Personal Data,Financial Assistance
Peterborough City Council,Communities,Housing,Services,12/09/2018,30193314,560.00,Revenue,Property Squires,Financial Assistance
Peterborough City Council,Communities,Housing,Services,12/09/2018,30193315,750.00,Revenue,M L Mills Trade,Financial Assistance
Peterborough City Council,Communities,Housing,Services,12/09/2018,30193316,650.00,Revenue,Redacted Personal Data,Financial Assistance
Peterborough City Council,Communities,Housing,Services,12/09/2018,30193317,575.00,Revenue,Redacted Personal Data,Financial Assistance
Peterborough City Council,Communities,Housing,Services,12/09/2018,30193318,500.00,Revenue,English Estates Property Agents,Financial Assistance
Peterborough City Council,Communities,Housing,Services,12/09/2018,30193319,650.00,Revenue,Redacted Personal Data,Financial Assistance
Peterborough City Council,Communities,Housing,Services,12/09/2018,30193320,550.00,Revenue,Hometime 2020 Ltd,Financial Assistance
Peterborough City Council,Communities,Housing,Services,12/09/2018,30193321,750.00,Revenue,Bee Lettings Ltd,Financial Assistance
Peterborough City Council,Communities,Housing,Services,12/09/2018,30193352,1535.00,Revenue,Belgravia Block Management,Financial Assistance
Peterborough City Council,Constitutional Services,Democratic Services,Services,12/09/2018,30193438,500.00,Revenue,Frontline Consulting Associates,Subscriptions
Peterborough City Council,City Centre Management,"Markets, Tourism & Events","Tools, Equipment, Furniture & Materials",12/09/2018,30193448,1200.00,Revenue,Redacted Personal Data,Items For Resale
Peterborough City Council,Adults,Block Contracts,Third Party Payments,12/09/2018,30193492,14849.25,Revenue,Cross Keys Homes,Third Party Payments - Contract
Peterborough City Council,Corporate Property,Commercial Propety,Repair & Maintenance of Buildings,12/09/2018,30193502,1000.00,Revenue,Stanground Community Space CIC,Service Charges - Premises
Peterborough City Council,Legal Services,Legal Services,Agency Staff,12/09/2018,30193517,1264.90,Revenue,Reed Specialist Recruitment Limited,External Temporary Staff
Peterborough City Council,Financial Services,Finance,Agency Staff,12/09/2018,30193520,624.78,Revenue,Reed Specialist Recruitment Limited,External Temporary Staff
Peterborough City Council,Financial Services,Finance,Agency Staff,12/09/2018,30193526,524.52,Revenue,Reed Specialist Recruitment Limited,External Temporary Staff
Peterborough City Council,Development and Construction,Planning Compliance,Agency Staff,12/09/2018,30193530,801.33,Revenue,Reed Specialist Recruitment Limited,External Temporary Staff
Peterborough City Council,Development and Construction,Development Management,Agency Staff,12/09/2018,30193532,1568.80,Revenue,Reed Specialist Recruitment Limited,External Temporary Staff
Peterborough City Council,Corporate Property,Commercial Propety,Rents,12/09/2018,30193533,32735.97,Revenue,DVS Management Ltd,Rent
Peterborough City Council,HR,HR,Services,12/09/2018,30193547,12553.51,Revenue,Edenred,Childcare
Peterborough City Council,Adults,Independent Sector Placements,Services,12/09/2018,30193572,1569.74,Revenue,Fins Care Ltd t/a St Margarets Rest Home,Residential Care
Peterborough City Council,Adults,Independent Sector Placements,Services,12/09/2018,30193573,517.50,Revenue,Merit Home Care Ltd,Home Care
Peterborough City Council,Adults,Independent Sector Placements,Services,12/09/2018,30193574,3290.12,Revenue,SOCIAL CARE SOLUTIONS LTD,Home Care
Peterborough City Council,Corporate,Corporate,Non Revenue,12/09/2018,30193594,6808.20,Capital,Nadeem Construction Ltd,Grant Payment
Peterborough City Council,Corporate,Corporate,Non Revenue,12/09/2018,30193595,14620.00,Capital,M J Greaves,Grant Payment
Peterborough City Council,Commissioning and Commercial Operations,Early Years & Quality Improvement,Services,12/09/2018,30193609,615.00,Revenue,Busy Bunnies Braybrook,Grant Payment
Peterborough City Council,Adults,Strategic Commissioning - Management,Agency Staff,12/09/2018,30193617,1181.44,Revenue,Reed Specialist Recruitment Limited,External Temporary Staff
Peterborough City Council,Communities,Cultural Services,Water Services,12/09/2018,30193630,1219.43,Revenue,Anglian Water Business National,Water
Peterborough City Council,Communities,Service Director - Adults & Communities,Water Services,12/09/2018,30193630,1760.07,Revenue,Anglian Water Business National,Water
Peterborough City Council,Education,PFI,Water Services,12/09/2018,30193630,7072.76,Revenue,Anglian Water Business National,Water
Peterborough City Council,Adults,Independent Sector Placements,Services,12/09/2018,30193656,2737.04,Revenue,Alysia Caring Ltd T/a Cherry Blossom care Home,Residential Care
Peterborough City Council,Adults,Independent Sector Placements,Services,12/09/2018,30193657,1883.32,Revenue,Alysia Caring Ltd T/a Cherry Blossom care Home,Residential Care
Peterborough City Council,Adults,Independent Sector Placements,Services,12/09/2018,30193658,3100.00,Revenue,Alysia Caring Ltd T/a Cherry Blossom care Home,Residential Care
Peterborough City Council,Adults,Independent Sector Placements,Services,12/09/2018,30193659,3100.00,Revenue,Alysia Caring Ltd T/a Cherry Blossom care Home,Residential Care
Peterborough City Council,Corporate,Corporate,Non Revenue,12/09/2018,30193666,15875.00,Capital,NPS Peterborough Ltd,Consultants Fees
Peterborough City Council,Corporate Property,Strategic Projects,Services,12/09/2018,30193670,2083.34,Revenue,NPS Peterborough Ltd,Consultants Fees
Peterborough City Council,Corporate,Corporate,Non Revenue,12/09/2018,30193673,4628.66,Capital,NPS Peterborough Ltd,Consultants Fees
Peterborough City Council,Corporate,Corporate,Non Revenue,12/09/2018,30193675,13900.00,Capital,NPS Peterborough Ltd,Consultants Fees
Peterborough City Council,Adults,Independent Sector Placements,Services,12/09/2018,30193680,1847.60,Revenue,Alysia Caring Ltd T/a Cherry Blossom care Home,Residential Care
Peterborough City Council,Adults,Independent Sector Placements,Services,12/09/2018,30193681,2825.04,Revenue,Alysia Caring Ltd T/a Cherry Blossom care Home,Residential Care
Peterborough City Council,Adults,Independent Sector Placements,Services,12/09/2018,30193684,1023.84,Revenue,Alysia Caring Ltd T/a Cherry Blossom care Home,Residential Care
Peterborough City Council,Adults,Independent Sector Placements,Services,12/09/2018,30193687,3600.00,Revenue,Alysia Caring Ltd T/a Cherry Blossom care Home,Residential Care
Peterborough City Council,Adults,Independent Sector Placements,Services,12/09/2018,30193688,2547.88,Revenue,Alysia Caring Ltd T/a Cherry Blossom care Home,Residential Care
Peterborough City Council,Adults,Independent Sector Placements,Services,12/09/2018,30193690,1900.40,Revenue,Alysia Caring Ltd T/a Cherry Blossom care Home,Residential Care
Peterborough City Council,Adults,Independent Sector Placements,Services,12/09/2018,30193691,589.44,Revenue,Alysia Caring Ltd T/a Cherry Blossom care Home,Residential Care
Peterborough City Council,Adults,Independent Sector Placements,Services,12/09/2018,30193692,825.88,Revenue,Alysia Caring Ltd T/a Cherry Blossom care Home,Residential Care
Peterborough City Council,Adults,Independent Sector Placements,Services,12/09/2018,30193693,2930.04,Revenue,Alysia Caring Ltd T/a Cherry Blossom care Home,Residential Care
Peterborough City Council,Adults,Independent Sector Placements,Services,12/09/2018,30193694,2460.04,Revenue,Alysia Caring Ltd T/a Cherry Blossom care Home,Residential Care
Peterborough City Council,Adults,Independent Sector Placements,Services,12/09/2018,30193696,3463.32,Revenue,Alysia Caring Ltd T/a Cherry Blossom care Home,Residential Care
Peterborough City Council,Adults,Independent Sector Placements,Services,12/09/2018,30193697,1334.80,Revenue,Augusta Care Ltd,Home Care
Peterborough City Council,Adults,Independent Sector Placements,Services,12/09/2018,30193698,2537.04,Revenue,Augusta Care Ltd,Home Care
Peterborough City Council,Adults,Independent Sector Placements,Services,12/09/2018,30193699,1334.80,Revenue,Augusta Care Ltd,Home Care
Peterborough City Council,Adults,Independent Sector Placements,Services,12/09/2018,30193700,2537.04,Revenue,Augusta Care Ltd,Home Care
Peterborough City Council,Adults,Independent Sector Placements,Services,12/09/2018,30193701,1773.88,Revenue,Alysia Caring Ltd T/a Cherry Blossom care Home,Residential Care
Peterborough City Council,Adults,Independent Sector Placements,Services,12/09/2018,30193702,2128.00,Revenue,Alysia Caring Ltd T/a Cherry Blossom care Home,Residential Care
Peterborough City Council,Adults,Independent Sector Placements,Services,12/09/2018,30193703,589.44,Revenue,Alysia Caring Ltd T/a Cherry Blossom care Home,Residential Care
Peterborough City Council,Education,PFI,Water Services,12/09/2018,30193706,1319.38,Revenue,Anglian Water Business National,Water
Peterborough City Council,Education,PFI,Water Services,12/09/2018,30193706,2599.45,Revenue,Anglian Water Business National,Water
Peterborough City Council,Communities,Cultural Services,Water Services,12/09/2018,30193706,573.12,Revenue,Anglian Water Business National,Water
Peterborough City Council,Adults,Independent Sector Placements,Services,12/09/2018,30193714,2927.04,Revenue,Boulevard Care Limited,Residential Care
Peterborough City Council,Communities,Housing,Services,12/09/2018,30193721,1550.00,Revenue,Wilson & Co Homes,Financial Assistance
Peterborough City Council,Legal Services,Legal Services,Agency Staff,12/09/2018,30193725,1633.80,Revenue,Reed Specialist Recruitment Limited,External Temporary Staff
Peterborough City Council,Adults,Independent Sector Placements,Services,12/09/2018,30193727,1003.23,Revenue,Voyage,Home Care
Peterborough City Council,Communities,Housing,Services,12/09/2018,30193733,3150.00,Revenue,Singh and Sons Property Management Ltd,Temporary Accommodation Costs
Peterborough City Council,Communities,Housing,Services,12/09/2018,30193734,2165.00,Revenue,Singh and Sons Property Management Ltd,Temporary Accommodation Costs
Peterborough City Council,Communities,Housing,Services,12/09/2018,30193737,2885.00,Revenue,Singh and Sons Property Management Ltd,Temporary Accommodation Costs
Peterborough City Council,Communities,Housing,Services,12/09/2018,30193738,3220.00,Revenue,Singh and Sons Property Management Ltd,Temporary Accommodation Costs
Peterborough City Council,Communities,Housing,Services,12/09/2018,30193739,1750.00,Revenue,Singh and Sons Property Management Ltd,Temporary Accommodation Costs
Peterborough City Council,Communities,Housing,Services,12/09/2018,30193740,2975.00,Revenue,Singh and Sons Property Management Ltd,Temporary Accommodation Costs
Peterborough City Council,Communities,Housing,Services,12/09/2018,30193741,2840.00,Revenue,Singh and Sons Property Management Ltd,Temporary Accommodation Costs
Peterborough City Council,Communities,Housing,Services,12/09/2018,30193742,3220.00,Revenue,Singh and Sons Property Management Ltd,Temporary Accommodation Costs
Peterborough City Council,Communities,Housing,Services,12/09/2018,30193743,2955.00,Revenue,Singh and Sons Property Management Ltd,Temporary Accommodation Costs
Peterborough City Council,Communities,Housing,Services,12/09/2018,30193744,1650.00,Revenue,Singh and Sons Property Management Ltd,Temporary Accommodation Costs
Peterborough City Council,Commissioning and Commercial Operations,Clare Lodge,Agency Staff,12/09/2018,30193749,776.39,Revenue,Reed Specialist Recruitment Limited,External Temporary Staff
Peterborough City Council,Commissioning and Commercial Operations,Clare Lodge,Agency Staff,12/09/2018,30193750,795.56,Revenue,Reed Specialist Recruitment Limited,External Temporary Staff
Peterborough City Council,Development and Construction,Development Management,Agency Staff,12/09/2018,30193752,543.22,Revenue,Reed Specialist Recruitment Limited,External Temporary Staff
Peterborough City Council,Peterborough Highway Services,Highway Services - HoS,Agency Staff,12/09/2018,30193754,751.51,Revenue,Reed Specialist Recruitment Limited,External Temporary Staff
Peterborough City Council,Regulatory Services,Regulatory Services,Agency Staff,12/09/2018,30193756,552.42,Revenue,Reed Specialist Recruitment Limited,External Temporary Staff
Peterborough City Council,Corporate,Corporate,Non Revenue,12/09/2018,30193780,61094.20,Capital,Serco Ltd,IT Equipment
Peterborough City Council,Children's & Safeguarding,Access to Resources & Specialist Commissioning,Services,12/09/2018,30193787,4185.00,Revenue,Sixteen Plus Limited,Boarding Out Allowances
Peterborough City Council,Children's & Safeguarding,Access to Resources & Specialist Commissioning,Services,12/09/2018,30193788,7284.99,Revenue,Sixteen Plus Limited,Boarding Out Allowances
Peterborough City Council,"Cemeteries, Cremation & Registrars",Bereavement Service,Services,12/09/2018,30193790,1722.81,Revenue,Anglia Co-operative Funerals,Contract Funerals
Peterborough City Council,Education,Special Educational Needs / Inclusion,Services,12/09/2018,30193792,720.00,Revenue,Families First Peterborough,Education Expenses
Peterborough City Council,Corporate,Corporate,Non Revenue,12/09/2018,30193822,198636.97,Balance Sheet,LGSS Cambridgeshire Pension Fund,Pensions
Peterborough City Council,Corporate,Corporate,Non Revenue,12/09/2018,30193823,65230.28,Balance Sheet,LGSS Cambridgeshire Pension Fund,Pensions
Peterborough City Council,Corporate,Corporate,Non Revenue,12/09/2018,30193824,16055.41,Balance Sheet,LGSS Cambridgeshire Pension Fund,Pensions
Peterborough City Council,Corporate,Corporate,Non Revenue,12/09/2018,30193825,1116.69,Balance Sheet,NHS Pensions,Pensions
Peterborough City Council,Corporate,Corporate,Non Revenue,12/09/2018,30193826,486873.41,Balance Sheet,LGSS Cambridgeshire Pension Fund,Pensions
Peterborough City Council,Corporate,Corporate,Non Revenue,12/09/2018,30193827,5035.95,Balance Sheet,NHS Pensions,Pensions
Peterborough City Council,Corporate,Corporate,Non Revenue,12/09/2018,30193828,9492.60,Balance Sheet,NHS Pensions,Pensions
Peterborough City Council,Corporate,Corporate,Non Revenue,12/09/2018,30193829,1545.75,Balance Sheet,NHS Pensions,Pensions
Peterborough City Council,Commissioning and Commercial Operations,Commissioning,Services,12/09/2018,30193841,787.52,Revenue,Anglian Water Business National,Hired Services
Peterborough City Council,Adults,Independent Sector Placements,Services,12/09/2018,30193901,-1731.66,Revenue,Alysia Caring Ltd T/a Cherry Blossom care Home,Residential Care
Peterborough City Council,Peterborough Highway Services,Transport & Infrastructure Commissioning,Services,12/09/2018,30193912,15229.00,Revenue,First Eastern Counties Buses Ltd,Contractors
Peterborough City Council,Adults,Independent Sector Placements,Services,12/09/2018,30193917,5061.84,Revenue,Turning Point Services Ltd,Home Care
Peterborough City Council,Adults,Independent Sector Placements,Services,12/09/2018,30193918,6172.88,Revenue,Turning Point Services Ltd,Home Care
Peterborough City Council,Adults,Independent Sector Placements,Services,12/09/2018,30193920,5046.20,Revenue,Turning Point Services Ltd,Home Care
Peterborough City Council,Adults,Independent Sector Placements,Services,12/09/2018,30193921,6473.88,Revenue,Turning Point Services Ltd,Home Care
Peterborough City Council,Adults,Independent Sector Placements,Services,12/09/2018,30193922,6886.68,Revenue,Turning Point Services Ltd,Home Care
Peterborough City Council,Adults,Independent Sector Placements,Services,12/09/2018,30193923,4677.96,Revenue,Turning Point Services Ltd,Home Care
Peterborough City Council,Adults,Independent Sector Placements,Services,12/09/2018,30193924,5449.76,Revenue,Turning Point Services Ltd,Home Care
Peterborough City Council,Adults,Independent Sector Placements,Services,12/09/2018,30193925,5078.04,Revenue,Turning Point Services Ltd,Home Care
Peterborough City Council,Adults,Independent Sector Placements,Services,12/09/2018,30193926,6939.08,Revenue,Turning Point Services Ltd,Home Care
Peterborough City Council,Adults,Independent Sector Placements,Services,12/09/2018,30193927,500.80,Revenue,Turning Point Services Ltd,Home Care
Peterborough City Council,Adults,Independent Sector Placements,Services,12/09/2018,30193929,5635.20,Revenue,Turning Point Services Ltd,Home Care
Peterborough City Council,Adults,Independent Sector Placements,Services,12/09/2018,30193933,5635.20,Revenue,Turning Point Services Ltd,Home Care
Peterborough City Council,Adults,Independent Sector Placements,Services,12/09/2018,30193934,4101.64,Revenue,Turning Point Services Ltd,Home Care
Peterborough City Council,Adults,Independent Sector Placements,Services,12/09/2018,30193936,3808.44,Revenue,Fins Care Ltd t/a St Margarets Rest Home,Residential Care
Peterborough City Council,Adults,Independent Sector Placements,Services,12/09/2018,30193937,7281.55,Revenue,Fins Care Ltd t/a St Margarets Rest Home,Residential Care
Peterborough City Council,Adults,Independent Sector Placements,Services,12/09/2018,30193939,3005.40,Revenue,Fins Care Ltd t/a St Margarets Rest Home,Residential Care
Peterborough City Council,Adults,Independent Sector Placements,Services,12/09/2018,30193941,4003.44,Revenue,Longueville Court (Barchester),Residential Care
Peterborough City Council,Adults,Independent Sector Placements,Services,12/09/2018,30193942,5200.00,Revenue,Longueville Court (Barchester),Residential Care
Peterborough City Council,Commissioning and Commercial Operations,Commissioning,Water Services,12/09/2018,30193943,785.25,Revenue,Anglian Water Business National,Water
Peterborough City Council,"Cemeteries, Cremation & Registrars",Registration Service,Water Services,12/09/2018,30193943,647.98,Revenue,Anglian Water Business National,Water
Peterborough City Council,Adults,Independent Sector Placements,Services,12/09/2018,30193944,1100.00,Revenue,Longueville Court (Barchester),Residential Care
Peterborough City Council,Adults,Independent Sector Placements,Services,12/09/2018,30193945,4003.44,Revenue,Longueville Court (Barchester),Residential Care
Peterborough City Council,Adults,Independent Sector Placements,Services,12/09/2018,30193946,5200.00,Revenue,Longueville Court (Barchester),Residential Care
Peterborough City Council,Education,PFI,Energy Costs,12/09/2018,30193949,4282.33,Revenue,Southern Electric,Electricity
Peterborough City Council,Education,PFI,Energy Costs,12/09/2018,30193949,1672.24,Revenue,Southern Electric,Electricity
Peterborough City Council,Education,PFI,Energy Costs,12/09/2018,30193949,1036.70,Revenue,Southern Electric,Electricity
Peterborough City Council,Education,PFI,Energy Costs,12/09/2018,30193949,7909.10,Revenue,Southern Electric,Electricity
Peterborough City Council,Education,PFI,Energy Costs,12/09/2018,30193949,2093.94,Revenue,Southern Electric,Electricity
Peterborough City Council,Education,PFI,Energy Costs,12/09/2018,30193949,4355.89,Revenue,Southern Electric,Electricity
Peterborough City Council,Corporate Property,Commercial Propety,Energy Costs,12/09/2018,30193949,547.98,Revenue,Southern Electric,Electricity
Peterborough City Council,Corporate Property,Commercial Propety,Energy Costs,12/09/2018,30193949,1216.89,Revenue,Southern Electric,Electricity
Peterborough City Council,Corporate Property,Commercial Propety,Energy Costs,12/09/2018,30193949,-1216.89,Revenue,Southern Electric,Electricity
Peterborough City Council,Corporate Property,Commercial Propety,Energy Costs,12/09/2018,30193949,-547.98,Revenue,Southern Electric,Electricity
Peterborough City Council,Communities,Cultural Services,Energy Costs,12/09/2018,30193949,3180.46,Revenue,Southern Electric,Electricity
Peterborough City Council,Adults,Independent Sector Placements,Services,12/09/2018,30194005,6473.88,Revenue,Turning Point Services Ltd,Home Care
Peterborough City Council,Children's & Safeguarding,Access to Resources & Specialist Commissioning,Services,12/09/2018,30194011,20944.42,Revenue,Blue Mountain Homes,Boarding Out Allowances
Peterborough City Council,Peterborough Highway Services,Highway & Drainage Control,Agency Staff,12/09/2018,30194028,1252.51,Revenue,Reed Specialist Recruitment Limited,External Temporary Staff
Peterborough City Council,Corporate,Corporate,Non Revenue,12/09/2018,30194030,4701.34,Capital,Stamford Traditional Builders Ltd,Grant Payment
Peterborough City Council,Communities,Other Enforcement,Services,12/09/2018,30194041,13531.50,Revenue,Kingdom Services Group Limited,Contractors
Peterborough City Council,Corporate,Corporate,Non Revenue,12/09/2018,30194078,600.00,Capital,Friends of St George's Hydrotherapy Pool,Grant Payment
Peterborough City Council,Adults,Independent Sector Placements,Services,12/09/2018,30194088,-534.86,Revenue,Augusta Care Ltd,Home Care
Peterborough City Council,Adults,Independent Sector Placements,Services,12/09/2018,8000123668,1153.92,Revenue,Hales Group Ltd,Home Care
Peterborough City Council,Adults,Independent Sector Placements,Services,12/09/2018,8000123669,865.96,Revenue,Hales Group Ltd,Home Care
Peterborough City Council,Adults,Independent Sector Placements,Services,12/09/2018,8000123671,1005.59,Revenue,Hales Group Ltd,Home Care
Peterborough City Council,Adults,Independent Sector Placements,Services,12/09/2018,8000123672,773.98,Revenue,Hales Group Ltd,Home Care
Peterborough City Council,Adults,Independent Sector Placements,Services,12/09/2018,8000123673,1294.83,Revenue,Hales Group Ltd,Home Care
Peterborough City Council,Adults,Independent Sector Placements,Services,12/09/2018,8000123674,1303.29,Revenue,Hales Group Ltd,Home Care
Peterborough City Council,Adults,Independent Sector Placements,Services,12/09/2018,8000123676,624.49,Revenue,Hales Group Ltd,Home Care
Peterborough City Council,Adults,Independent Sector Placements,Services,12/09/2018,8000123678,502.79,Revenue,Hales Group Ltd,Home Care
Peterborough City Council,Adults,Independent Sector Placements,Services,12/09/2018,8000123680,815.61,Revenue,Hales Group Ltd,Home Care
Peterborough City Council,Adults,Independent Sector Placements,Services,12/09/2018,8000124699,749.70,Revenue,Axiom Housing Association Ltd,Home Care
Peterborough City Council,Adults,Independent Sector Placements,Services,12/09/2018,8000124700,856.80,Revenue,Axiom Housing Association Ltd,Home Care
Peterborough City Council,Adults,Independent Sector Placements,Services,12/09/2018,8000124702,833.00,Revenue,Axiom Housing Association Ltd,Home Care
Peterborough City Council,Adults,Independent Sector Placements,Services,12/09/2018,8000124703,780.00,Revenue,Axiom Housing Association Ltd,Home Care
Peterborough City Council,Adults,Independent Sector Placements,Services,12/09/2018,8000124709,529.20,Revenue,Axiom Housing Association Ltd,Home Care
Peterborough City Council,Adults,Independent Sector Placements,Services,12/09/2018,8000124714,588.00,Revenue,Axiom Housing Association Ltd,Home Care
Peterborough City Council,Adults,Independent Sector Placements,Services,12/09/2018,8000124716,617.40,Revenue,Axiom Housing Association Ltd,Home Care
Peterborough City Council,Adults,Independent Sector Placements,Services,12/09/2018,8000124726,588.00,Revenue,Axiom Housing Association Ltd,Home Care
Peterborough City Council,Adults,Independent Sector Placements,Services,12/09/2018,8000124730,737.94,Revenue,Axiom Housing Association Ltd,Home Care
Peterborough City Council,Adults,Independent Sector Placements,Services,12/09/2018,8000124732,940.80,Revenue,Axiom Housing Association Ltd,Home Care
Peterborough City Council,Adults,Independent Sector Placements,Services,12/09/2018,8000124734,823.20,Revenue,Axiom Housing Association Ltd,Home Care
Peterborough City Council,Adults,Independent Sector Placements,Services,12/09/2018,8000124736,632.10,Revenue,Axiom Housing Association Ltd,Home Care
Peterborough City Council,Education,HTS & CSC Transport,Contract Hire and Operating Leases,12/09/2018,8000124837,721.87,Revenue,Redacted Personal Data,Hired Transport
Peterborough City Council,Education,HTS & CSC Transport,Contract Hire and Operating Leases,12/09/2018,8000124840,572.71,Revenue,Redacted Personal Data,Hired Transport
Peterborough City Council,Adults,Independent Sector Placements,Services,14/09/2018,30191602,2139.24,Revenue,HC-One Beamish Limited - St Clares Court,Residential Care
Peterborough City Council,Legal Services,Legal Services,Services,14/09/2018,30191621,2450.00,Revenue,"Cassidy, Mr Francis",Legal Costs
Peterborough City Council,Adults,Independent Sector Placements,Services,14/09/2018,30191885,2592.04,Revenue,Athena (Ashlynn Grange),Residential Care
Peterborough City Council,Adults,Independent Sector Placements,Services,14/09/2018,30191894,2735.48,Revenue,Kemps Place Ltd,Residential Care
Peterborough City Council,Adults,Independent Sector Placements,Services,14/09/2018,30191895,2535.48,Revenue,Kemps Place Ltd,Residential Care
Peterborough City Council,Adults,Independent Sector Placements,Services,14/09/2018,30191896,1094.56,Revenue,Kemps Place Ltd,Residential Care
Peterborough City Council,ICT,ICT,Services,14/09/2018,30191973,680.00,Revenue,Opportunity Peterborough,Computer Software
Peterborough City Council,Adults,Independent Sector Placements,Services,14/09/2018,30192042,4896.60,Revenue,Mencap,Residential Care
Peterborough City Council,Adults,Independent Sector Placements,Services,14/09/2018,30192044,3991.00,Revenue,Mencap,Residential Care
Peterborough City Council,Adults,Independent Sector Placements,Services,14/09/2018,30192045,4591.60,Revenue,Mencap,Residential Care
Peterborough City Council,Commissioning and Commercial Operations,Clare Lodge,Agency Staff,14/09/2018,30192100,560.00,Revenue,Wrixon Care Services,External Temporary Staff
Peterborough City Council,Commissioning and Commercial Operations,Clare Lodge,Agency Staff,14/09/2018,30192105,2400.00,Revenue,Wrixon Care Services,External Temporary Staff
Peterborough City Council,Parking Services,Parking Services,Agency Staff,14/09/2018,30192178,531.57,Revenue,Reed Specialist Recruitment Limited,External Temporary Staff
Peterborough City Council,Corporate,Corporate,Non Revenue,14/09/2018,30192216,11800.00,Capital,Badenoch & Clark Ltd,Consultants Fees
Peterborough City Council,Adults,Strategic Commissioning - Management,Agency Staff,14/09/2018,30192218,2352.96,Revenue,Badenoch & Clark Ltd,External Temporary Staff
Peterborough City Council,Adults,Strategic Commissioning - Management,Agency Staff,14/09/2018,30192219,13000.00,Revenue,Badenoch & Clark Ltd,External Temporary Staff
Peterborough City Council,Peterborough Serco Strategic Partnership,PSSP Retained Services,Services,14/09/2018,30192389,1961.82,Revenue,Whistl UK Ltd,Postage
Peterborough City Council,Corporate Items,Corporate Services,Services,14/09/2018,30192418,3902.50,Revenue,Pinsent Masons,Legal Costs
Peterborough City Council,Corporate,Corporate,Non Revenue,14/09/2018,30192518,423272.59,Capital,R G Carter Cambridge Ltd,Building And Site Works
Peterborough City Council,Westcombe Engineering,Westcombe Engineering,"Tools, Equipment, Furniture & Materials",14/09/2018,30192939,596.00,Revenue,Barron Clark Castings Ltd,Items For Resale
Peterborough City Council,Westcombe Engineering,Westcombe Engineering,"Tools, Equipment, Furniture & Materials",14/09/2018,30192940,516.60,Revenue,Barron Clark Castings Ltd,Items For Resale
Peterborough City Council,Westcombe Engineering,Westcombe Engineering,"Tools, Equipment, Furniture & Materials",14/09/2018,30192942,878.40,Revenue,Barron Clark Castings Ltd,Items For Resale
Peterborough City Council,Westcombe Engineering,Westcombe Engineering,"Tools, Equipment, Furniture & Materials",14/09/2018,30192944,531.36,Revenue,Barron Clark Castings Ltd,Items For Resale
Peterborough City Council,Children's & Safeguarding,Access to Resources & Specialist Commissioning,Services,14/09/2018,30193245,840.00,Revenue,Florinee Homes Ltd,Boarding Out Allowances
Peterborough City Council,Children's & Safeguarding,Access to Resources & Specialist Commissioning,Services,14/09/2018,30193256,1980.00,Revenue,Florinee Homes Ltd,Boarding Out Allowances
Peterborough City Council,Children's & Safeguarding,Access to Resources & Specialist Commissioning,Services,14/09/2018,30193260,1980.00,Revenue,Florinee Homes Ltd,Boarding Out Allowances
Peterborough City Council,Children's & Safeguarding,Access to Resources & Specialist Commissioning,Services,14/09/2018,30193262,840.00,Revenue,Florinee Homes Ltd,Boarding Out Allowances
Peterborough City Council,HR,HR,Services,14/09/2018,30193539,1408.00,Revenue,Disclosure and Barring Service,Criminal Record Check
Peterborough City Council,Communities,Cultural Services,"Tools, Equipment, Furniture & Materials",14/09/2018,30193550,573.77,Revenue,Vivacity Culture and Leisure,It Equipment
Peterborough City Council,Adults,Independent Sector Placements,Services,14/09/2018,30193587,1827.32,Revenue,Ashmere,Residential Care
Peterborough City Council,Adults,Independent Sector Placements,Services,14/09/2018,30193601,643.56,Revenue,AMBER BLOSSOM LTD,Residential Care
Peterborough City Council,Regulatory Services,Regulatory Services,Agency Staff,14/09/2018,30193755,1243.77,Revenue,Reed Specialist Recruitment Limited,External Temporary Staff
Peterborough City Council,Development and Construction,Development Management,Agency Staff,14/09/2018,30193761,1292.21,Revenue,Reed Specialist Recruitment Limited,External Temporary Staff
Peterborough City Council,Education,Service Director Education,Employee Costs,14/09/2018,30193830,27320.53,Revenue,Teachers Pensions,Pensions
Peterborough City Council,Commissioning and Commercial Operations,Early Years & Quality Improvement,Services,14/09/2018,30193858,722.47,Revenue,Redacted Personal Data,Grant Payment
Peterborough City Council,Commissioning and Commercial Operations,Early Years & Quality Improvement,Services,14/09/2018,30193860,539.70,Revenue,Redacted Personal Data,Grant Payment
Peterborough City Council,Commissioning and Commercial Operations,Early Years & Quality Improvement,Services,14/09/2018,30193867,968.24,Revenue,Redacted Personal Data,Grant Payment
Peterborough City Council,Commissioning and Commercial Operations,Early Years & Quality Improvement,Services,14/09/2018,30193868,974.80,Revenue,Little Tykes Childcare,Grant Payment
Peterborough City Council,Commissioning and Commercial Operations,Early Years & Quality Improvement,Services,14/09/2018,30193871,1506.75,Revenue,Redacted Personal Data,Grant Payment
Peterborough City Council,Commissioning and Commercial Operations,Early Years & Quality Improvement,Services,14/09/2018,30193872,2280.60,Revenue,Barnack Pre-School,Grant Payment
Peterborough City Council,Commissioning and Commercial Operations,Early Years & Quality Improvement,Services,14/09/2018,30193873,8351.42,Revenue,Bee Bright Day Nursery,Grant Payment
Peterborough City Council,Commissioning and Commercial Operations,Early Years & Quality Improvement,Services,14/09/2018,30193874,692.83,Revenue,Redacted Personal Data,Grant Payment
Peterborough City Council,Commissioning and Commercial Operations,Early Years & Quality Improvement,Services,14/09/2018,30193875,11963.44,Revenue,PSLA,Grant Payment
Peterborough City Council,Commissioning and Commercial Operations,Early Years & Quality Improvement,Services,14/09/2018,30193876,6100.50,Revenue,Discovery Pre School,Grant Payment
Peterborough City Council,Commissioning and Commercial Operations,Early Years & Quality Improvement,Services,14/09/2018,30193878,9840.18,Revenue,PSLA,Grant Payment
Peterborough City Council,Commissioning and Commercial Operations,Early Years & Quality Improvement,Services,14/09/2018,30193879,1905.23,Revenue,Little Angels,Grant Payment
Peterborough City Council,Commissioning and Commercial Operations,Early Years & Quality Improvement,Services,14/09/2018,30193881,674.31,Revenue,Redacted Personal Data,Grant Payment
Peterborough City Council,Commissioning and Commercial Operations,Early Years & Quality Improvement,Services,14/09/2018,30193887,1803.10,Revenue,Redacted Personal Data,Grant Payment
Peterborough City Council,Commissioning and Commercial Operations,Early Years & Quality Improvement,Services,14/09/2018,30193892,980.59,Revenue,Redacted Personal Data,Grant Payment
Peterborough City Council,Commissioning and Commercial Operations,Early Years & Quality Improvement,Services,14/09/2018,30193897,3805.37,Revenue,Newborough Pre-School Playgroup,Grant Payment
Peterborough City Council,Commissioning and Commercial Operations,Early Years & Quality Improvement,Services,14/09/2018,30193898,4440.45,Revenue,Little Owls Day Nursery,Grant Payment
Peterborough City Council,Commissioning and Commercial Operations,Early Years & Quality Improvement,Services,14/09/2018,30193900,6244.87,Revenue,Play House Pre-School & Out of School Club,Grant Payment
Peterborough City Council,Commissioning and Commercial Operations,Early Years & Quality Improvement,Services,14/09/2018,30193903,7610.93,Revenue,Orton Wistow Under Fives,Grant Payment
Peterborough City Council,Commissioning and Commercial Operations,Early Years & Quality Improvement,Services,14/09/2018,30193906,8211.28,Revenue,The Voyager Nursery,Grant Payment
Peterborough City Council,Commissioning and Commercial Operations,Early Years & Quality Improvement,Services,14/09/2018,30193909,8937.60,Revenue,Little Bees Pre-School,Grant Payment
Peterborough City Council,Commissioning and Commercial Operations,Early Years & Quality Improvement,Services,14/09/2018,30193910,10997.70,Revenue,Rise & Shine Day Nursery,Grant Payment
Peterborough City Council,Commissioning and Commercial Operations,Early Years & Quality Improvement,Services,14/09/2018,30193911,923.78,Revenue,Redacted Personal Data,Grant Payment
Peterborough City Council,Adults,Independent Sector Placements,Services,14/09/2018,30193914,13650.00,Revenue,CYGNET CARE SERVICES LTD,Residential Care
Peterborough City Council,Adults,Independent Sector Placements,Services,14/09/2018,30193915,14105.00,Revenue,CYGNET CARE SERVICES LTD,Residential Care
Peterborough City Council,Adults,Independent Sector Placements,Services,14/09/2018,30193919,13650.00,Revenue,CYGNET CARE SERVICES LTD,Residential Care
Peterborough City Council,Education,Financing - Resources,Services,14/09/2018,30193928,28747.24,Revenue,CYGNET CARE SERVICES LTD,Education Expenses
Peterborough City Council,Education,Financing - Resources,Services,14/09/2018,30193930,-16248.44,Revenue,CYGNET CARE SERVICES LTD,Education Expenses
Peterborough City Council,Adults,Independent Sector Placements,Services,14/09/2018,30193931,11632.60,Revenue,Turning Point Services Ltd,Home Care
Peterborough City Council,Adults,Independent Sector Placements,Services,14/09/2018,30193932,16651.60,Revenue,Turning Point Services Ltd,Home Care
Peterborough City Council,Adults,Independent Sector Placements,Services,14/09/2018,30193940,12442.86,Revenue,Longueville Court (Barchester),Residential Care
Peterborough City Council,Children's & Safeguarding,Access to Resources & Specialist Commissioning,Services,14/09/2018,30193963,1680.00,Revenue,Florinee Homes Ltd,Boarding Out Allowances
Peterborough City Council,Adults,Independent Sector Placements,Services,14/09/2018,30194006,14105.00,Revenue,CYGNET CARE SERVICES LTD,Residential Care
Peterborough City Council,Commissioning and Commercial Operations,Early Years & Quality Improvement,Services,14/09/2018,30194016,788.55,Revenue,Redacted Personal Data,Grant Payment
Peterborough City Council,Corporate,Corporate,Non Revenue,14/09/2018,30194074,5168.66,Capital,Stamford Traditional Builders Ltd,Grant Payment
Peterborough City Council,Corporate,Corporate,Non Revenue,14/09/2018,30194081,545.35,Capital,InBuild Solutions Limited,Grant Payment
Peterborough City Council,Corporate,Corporate,Non Revenue,14/09/2018,30194100,621.13,Capital,InBuild Solutions Limited,Grant Payment
Peterborough City Council,Children's & Safeguarding,Access to Resources & Specialist Commissioning,Services,14/09/2018,30194129,895.71,Revenue,PC Homes,Boarding Out Allowances
Peterborough City Council,Adults,Other Services,Third Party Payments,14/09/2018,30194132,12791.00,Revenue,Healthwatch Cambridgeshire and Peterborough,Third Party Payments - Contract
Peterborough City Council,Children's & Safeguarding,Adult & Children Safeguarding Board,Services,14/09/2018,30194143,2875.00,Revenue,RJW Associates Ltd,Consultants Fees
Peterborough City Council,Adults,Independent Sector Placements,Services,14/09/2018,30194180,1776.24,Revenue,Goldcare Homes t/a The Tudors Care Home,Residential Care
Peterborough City Council,Corporate Property,Office Accomodation,Rents,14/09/2018,30194181,9900.00,Revenue,Beeson Wright Ltd,Rent
Peterborough City Council,Adults,Independent Sector Placements,Services,14/09/2018,30194182,2300.00,Revenue,Goldcare Homes t/a The Tudors Care Home,Residential Care
Peterborough City Council,Education,School Standards & Effectiveness,Services,14/09/2018,30194183,750.00,Revenue,Farcet C.E. (C) Primary School,Consultants Fees
Peterborough City Council,Adults,Independent Sector Placements,Services,14/09/2018,30194185,6473.88,Revenue,Turning Point Services Ltd,Home Care
Peterborough City Council,Adults,Independent Sector Placements,Services,14/09/2018,30194187,1703.04,Revenue,Goldcare Homes t/a The Tudors Care Home,Residential Care
Peterborough City Council,Adults,Independent Sector Placements,Services,14/09/2018,30194188,1517.28,Revenue,Goldcare Homes t/a The Tudors Care Home,Residential Care
Peterborough City Council,Adults,Independent Sector Placements,Services,14/09/2018,30194192,2021.88,Revenue,Goldcare Homes t/a The Tudors Care Home,Residential Care
Peterborough City Council,Adults,Independent Sector Placements,Services,14/09/2018,30194193,1020.04,Revenue,Goldcare Homes t/a The Tudors Care Home,Residential Care
Peterborough City Council,Adults,Independent Sector Placements,Services,14/09/2018,30194195,982.12,Revenue,Goldcare Homes t/a The Tudors Care Home,Residential Care
Peterborough City Council,Children's & Safeguarding,Access to Resources & Specialist Commissioning,Services,14/09/2018,30194196,1506.85,Revenue,PC Homes,Boarding Out Allowances
Peterborough City Council,Legal Services,Legal Services,Agency Staff,14/09/2018,30194199,615.60,Revenue,Ten-Percent.co.uk Limited,External Temporary Staff
Peterborough City Council,Children's & Safeguarding,Access to Resources & Specialist Commissioning,Services,14/09/2018,30194201,2475.00,Revenue,Maze Independent Care Ltd,Boarding Out Allowances
Peterborough City Council,Children's & Safeguarding,Access to Resources & Specialist Commissioning,Services,14/09/2018,30194202,2475.00,Revenue,Maze Independent Care Ltd,Boarding Out Allowances
Peterborough City Council,Children's & Safeguarding,Access to Resources & Specialist Commissioning,Services,14/09/2018,30194203,2475.00,Revenue,Maze Independent Care Ltd,Boarding Out Allowances
Peterborough City Council,Adults,Independent Sector Placements,Services,14/09/2018,30194212,18018.00,Revenue,Atlas Care Services Ltd,Home Care
Peterborough City Council,Corporate,Corporate,Non Revenue,14/09/2018,30194213,316575.53,Capital,Kier Construction Ltd,Building And Site Works
Peterborough City Council,Children's & Safeguarding,Access to Resources & Specialist Commissioning,Services,14/09/2018,30194215,12400.00,Revenue,Horizon Care & Education Group,Boarding Out Allowances
Peterborough City Council,Children's & Safeguarding,Access to Resources & Specialist Commissioning,Services,14/09/2018,30194216,2720.00,Revenue,Horizon Care & Education Group,Boarding Out Allowances
Peterborough City Council,Children's & Safeguarding,Access to Resources & Specialist Commissioning,Services,14/09/2018,30194217,1920.00,Revenue,Horizon Care & Education Group,Boarding Out Allowances
Peterborough City Council,Children's & Safeguarding,Access to Resources & Specialist Commissioning,Services,14/09/2018,30194218,6480.00,Revenue,Horizon Care & Education Group,Boarding Out Allowances
Peterborough City Council,Children's & Safeguarding,Access to Resources & Specialist Commissioning,Services,14/09/2018,30194219,1600.00,Revenue,Horizon Care & Education Group,Boarding Out Allowances
Peterborough City Council,Adults,Home Services Delivery Model,Services,14/09/2018,30194222,2550.00,Revenue,Rawheat Heating & Plumbing Eng.,Contractors
Peterborough City Council,HR,HR,Services,14/09/2018,30194235,877.90,Revenue,Heales Health Services Ltd,Consultants Fees
Peterborough City Council,Parking Services,Parking Services,Services,14/09/2018,30194240,5222.04,Revenue,Cobalt Telephone Technologies Ltd,Contractors
Peterborough City Council,Communities,Housing,Services,14/09/2018,30194241,11438.00,Revenue,Eastfield Guesthouse,Temporary Accommodation Costs
Peterborough City Council,Communities,Housing,Services,14/09/2018,30194243,9726.50,Revenue,Eastfield Guesthouse,Temporary Accommodation Costs
Peterborough City Council,Communities,Targeted Youth Service,Services,14/09/2018,30194245,5306.00,Revenue,Hilltop Outdoor Centre,Programmes
Peterborough City Council,Corporate Items,Corporate Services,Services,14/09/2018,30194255,921.37,Revenue,Ailsworth Parish Council,Precept Charges
Peterborough City Council,Corporate Items,Corporate Services,Services,14/09/2018,30194256,2445.00,Revenue,Ailsworth Parish Council,Precept Charges
Peterborough City Council,Corporate Items,Corporate Services,Third Party Payments,14/09/2018,30194257,3693.12,Revenue,Ailsworth Parish Council,Contributions
Peterborough City Council,Corporate Items,Corporate Services,Third Party Payments,14/09/2018,30194259,3579.96,Revenue,Bainton & Ashton Parish Council,Contributions
Peterborough City Council,Corporate Items,Corporate Services,Services,14/09/2018,30194260,3926.49,Revenue,Barnack Parish Council,Precept Charges
Peterborough City Council,Corporate Items,Corporate Services,Third Party Payments,14/09/2018,30194261,6610.08,Revenue,Barnack Parish Council,Contributions
Peterborough City Council,Corporate Items,Corporate Services,Third Party Payments,14/09/2018,30194262,45000.00,Revenue,Bretton Parish Council,Contributions
Peterborough City Council,Adults,Independent Sector Placements,Services,14/09/2018,30194263,737.55,Revenue,Hales Group Ltd,Home Care
Peterborough City Council,Corporate Items,Corporate Services,Services,14/09/2018,30194264,1125.00,Revenue,Castor Parish Council,Precept Charges
Peterborough City Council,Adults,Independent Sector Placements,Services,14/09/2018,30194265,5671.72,Revenue,Voyage,Home Care
Peterborough City Council,Adults,Independent Sector Placements,Services,14/09/2018,30194267,5671.72,Revenue,Voyage,Home Care
Peterborough City Council,Corporate Items,Corporate Services,Third Party Payments,14/09/2018,30194268,15983.00,Revenue,Castor Parish Council,Contributions
Peterborough City Council,Adults,Independent Sector Placements,Services,14/09/2018,30194269,4535.72,Revenue,Voyage,Home Care
Peterborough City Council,Adults,Independent Sector Placements,Services,14/09/2018,30194271,4535.72,Revenue,Voyage,Home Care
Peterborough City Council,Adults,Independent Sector Placements,Services,14/09/2018,30194272,5671.72,Revenue,Voyage,Home Care
Peterborough City Council,Corporate Items,Corporate Services,Services,14/09/2018,30194273,1762.50,Revenue,Eye Parish Council,Precept Charges
Peterborough City Council,Corporate Items,Corporate Services,Services,14/09/2018,30194275,3000.00,Revenue,Eye Parish Council,Precept Charges
Peterborough City Council,Adults,Independent Sector Placements,Services,14/09/2018,30194276,5671.72,Revenue,Voyage,Home Care
Peterborough City Council,Adults,Independent Sector Placements,Services,14/09/2018,30194277,4535.72,Revenue,Voyage,Home Care
Peterborough City Council,Corporate Items,Corporate Services,Third Party Payments,14/09/2018,30194278,27237.50,Revenue,Eye Parish Council,Contributions
Peterborough City Council,Adults,Independent Sector Placements,Services,14/09/2018,30194279,5354.44,Revenue,Accomplish Group Limited (Orchard Hill),Residential Care
Peterborough City Council,Adults,Independent Sector Placements,Services,14/09/2018,30194281,5354.44,Revenue,Accomplish Group Limited (Orchard Hill),Residential Care
Peterborough City Council,Adults,Independent Sector Placements,Services,14/09/2018,30194282,5671.72,Revenue,Voyage,Home Care
Peterborough City Council,Adults,Independent Sector Placements,Services,14/09/2018,30194283,4535.72,Revenue,Voyage,Home Care
Peterborough City Council,Corporate Items,Corporate Services,Services,14/09/2018,30194285,937.50,Revenue,Glinton Parish Council,Precept Charges
Peterborough City Council,Adults,Independent Sector Placements,Services,14/09/2018,30194286,4535.72,Revenue,Voyage,Home Care
Peterborough City Council,Corporate Items,Corporate Services,Services,14/09/2018,30194287,2450.00,Revenue,Glinton Parish Council,Precept Charges
Peterborough City Council,Adults,Independent Sector Placements,Services,14/09/2018,30194288,5671.72,Revenue,Voyage,Home Care
Peterborough City Council,Corporate Items,Corporate Services,Third Party Payments,14/09/2018,30194289,8064.63,Revenue,Glinton Parish Council,Contributions
Peterborough City Council,Adults,Independent Sector Placements,Services,14/09/2018,30194291,574.00,Revenue,Sahara Community Care Services Limited,Home Care
Peterborough City Council,Adults,Independent Sector Placements,Services,14/09/2018,30194312,2217.86,Revenue,Goldcare Homes t/a The Tudors Care Home,Residential Care
Peterborough City Council,Corporate Items,Corporate Services,Third Party Payments,14/09/2018,30194316,48500.00,Revenue,Hampton Parish Council,Contributions
Peterborough City Council,Corporate Items,Corporate Services,Services,14/09/2018,30194318,3089.98,Revenue,Helpston Parish Council,Precept Charges
Peterborough City Council,Corporate Items,Corporate Services,Third Party Payments,14/09/2018,30194320,5200.33,Revenue,Helpston Parish Council,Contributions
Peterborough City Council,Corporate Items,Corporate Services,Services,14/09/2018,30194330,675.00,Revenue,Maxey Parish Council,Precept Charges
Peterborough City Council,Corporate Items,Corporate Services,Third Party Payments,14/09/2018,30194332,2150.00,Revenue,Maxey Parish Council,Contributions
Peterborough City Council,Corporate Items,Corporate Services,Services,14/09/2018,30194336,3375.00,Revenue,Newborough & Borough Fen Parish Council,Precept Charges
Peterborough City Council,Corporate Items,Corporate Services,Services,14/09/2018,30194338,1500.00,Revenue,Newborough & Borough Fen Parish Council,Precept Charges
Peterborough City Council,Corporate Items,Corporate Services,Third Party Payments,14/09/2018,30194340,11817.50,Revenue,Newborough & Borough Fen Parish Council,Contributions
Peterborough City Council,Corporate Items,Corporate Services,Services,14/09/2018,30194344,1330.87,Revenue,Northborough Parish Council,Precept Charges
Peterborough City Council,Corporate Items,Corporate Services,Services,14/09/2018,30194345,2789.00,Revenue,Northborough Parish Council,Precept Charges
Peterborough City Council,Corporate Items,Corporate Services,Third Party Payments,14/09/2018,30194346,10393.62,Revenue,Northborough Parish Council,Contributions
Peterborough City Council,Corporate Items,Corporate Services,Services,14/09/2018,30194348,1847.50,Revenue,Orton Longueville Parish Council,Precept Charges
Peterborough City Council,Corporate Items,Corporate Services,Third Party Payments,14/09/2018,30194349,17257.50,Revenue,Orton Longueville Parish Council,Contributions
Peterborough City Council,Corporate Items,Corporate Services,Services,14/09/2018,30194351,1147.50,Revenue,Orton Waterville Parish Council,Precept Charges
Peterborough City Council,Corporate Items,Corporate Services,Third Party Payments,14/09/2018,30194352,23904.62,Revenue,Orton Waterville Parish Council,Contributions
Peterborough City Council,Corporate Items,Corporate Services,Services,14/09/2018,30194354,875.00,Revenue,Peakirk Parish Council,Precept Charges
Peterborough City Council,Corporate Items,Corporate Services,Third Party Payments,14/09/2018,30194355,2880.00,Revenue,Peakirk Parish Council,Contributions
Peterborough City Council,Corporate Items,Corporate Services,Services,14/09/2018,30194358,10500.00,Revenue,Thorney Parish Council,Precept Charges
Peterborough City Council,Adults,Independent Sector Placements,Services,14/09/2018,30194359,-1193.44,Revenue,Goldcare Homes t/a The Tudors Care Home,Residential Care
Peterborough City Council,Corporate Items,Corporate Services,Services,14/09/2018,30194360,1500.00,Revenue,Thorney Parish Council,Precept Charges
Peterborough City Council,Corporate Items,Corporate Services,Third Party Payments,14/09/2018,30194361,20677.00,Revenue,Thorney Parish Council,Contributions
Peterborough City Council,Corporate Items,Corporate Services,Services,14/09/2018,30194362,562.50,Revenue,Thornhaugh Parish Council,Precept Charges
Peterborough City Council,Corporate Items,Corporate Services,Third Party Payments,14/09/2018,30194363,2537.50,Revenue,Thornhaugh Parish Council,Contributions
Peterborough City Council,Corporate Items,Corporate Services,Third Party Payments,14/09/2018,30194364,3934.28,Revenue,Ufford Parish Council,Contributions
Peterborough City Council,Corporate Items,Corporate Services,Services,14/09/2018,30194365,750.00,Revenue,Wansford Parish Council,Precept Charges
Peterborough City Council,Corporate Items,Corporate Services,Third Party Payments,14/09/2018,30194367,5242.50,Revenue,Wansford Parish Council,Contributions
Peterborough City Council,Corporate Items,Corporate Services,Services,14/09/2018,30194369,945.00,Revenue,Wittering Parish Council,Precept Charges
Peterborough City Council,Corporate Items,Corporate Services,Services,14/09/2018,30194370,1500.00,Revenue,Wittering Parish Council,Precept Charges
Peterborough City Council,Corporate Items,Corporate Services,Services,14/09/2018,30194372,1587.00,Revenue,Wittering Parish Council,Precept Charges
Peterborough City Council,Corporate Items,Corporate Services,Third Party Payments,14/09/2018,30194375,23468.00,Revenue,Wittering Parish Council,Contributions
Peterborough City Council,Children's & Safeguarding,External Education Placements,Services,14/09/2018,30194396,2220.23,Revenue,Farcet C.E. (C) Primary School,Out Of Area Education Costs
Peterborough City Council,Adults,Independent Sector Placements,Services,14/09/2018,30194405,686.00,Revenue,Sahara Community Care Services Limited,Home Care
Peterborough City Council,Adults,Independent Sector Placements,Services,14/09/2018,30194409,1246.00,Revenue,Sahara Community Care Services Limited,Home Care
Peterborough City Council,Adults,Independent Sector Placements,Services,14/09/2018,30194411,672.00,Revenue,Sahara Community Care Services Limited,Home Care
Peterborough City Council,Adults,Independent Sector Placements,Services,14/09/2018,30194434,1800.00,Revenue,FIELD HOUSE (EYE) LTD,Residential Care
Peterborough City Council,Adults,Independent Sector Placements,Services,14/09/2018,30194444,1100.00,Revenue,FIELD HOUSE (EYE) LTD,Residential Care
Peterborough City Council,Adults,Independent Sector Placements,Services,14/09/2018,30194449,1800.00,Revenue,FIELD HOUSE (EYE) LTD,Residential Care
Peterborough City Council,Peterborough Highway Services,Highway & Drainage Control,Agency Staff,14/09/2018,30194465,1132.81,Revenue,Reed Specialist Recruitment Limited,External Temporary Staff
Peterborough City Council,Adults,Independent Sector Placements,Services,14/09/2018,30194468,4779.40,Revenue,Voyage,Home Care
Peterborough City Council,Adults,Independent Sector Placements,Services,14/09/2018,30194472,2409.40,Revenue,Peterborough Care  The Maltings,Residential Care
Peterborough City Council,Adults,Home Services Delivery Model,Services,14/09/2018,30194542,3139.00,Revenue,Casbon Building Services,Special Projects
Peterborough City Council,Regulatory Services,Regulatory Services,Agency Staff,14/09/2018,30194592,697.11,Revenue,Reed Specialist Recruitment Limited,External Temporary Staff
Peterborough City Council,Adults,Strategic Commissioning - Management,Agency Staff,14/09/2018,30194597,637.61,Revenue,Reed Specialist Recruitment Limited,External Temporary Staff
Peterborough City Council,Children's & Safeguarding,Commissioning - CSC,Third Party Payments,14/09/2018,8000126297,102510.45,Revenue,IAS TACT,Third Party Payments - Contract
Peterborough City Council,Adults,Independent Sector Placements,Services,17/09/2018,30188337,-532.00,Revenue,Carers Trust Cambridgeshire,Home Care
Peterborough City Council,Education,PFI,Services,17/09/2018,30191922,615.40,Revenue,IIC by Education (P'boro) Ltd,Service Charge
Peterborough City Council,Marketing & Communications,Marketing & Communications,Services,17/09/2018,30191949,517.84,Revenue,Signs Express,Printing
Peterborough City Council,Legal Services,Legal Services,Services,17/09/2018,30191983,1480.40,Revenue,Redacted Personal Data,Legal Costs
Peterborough City Council,Legal Services,Legal Services,Services,17/09/2018,30191984,500.00,Revenue,Redacted Personal Data,Legal Costs
Peterborough City Council,Corporate Property,Commercial Propety,Services,17/09/2018,30192586,1720.00,Revenue,Barker Storey Matthews,Professional Services
Peterborough City Council,City Centre Management,"Markets, Tourism & Events",Services,17/09/2018,30192615,1300.00,Revenue,APMS Ambulance Service Limited,Conferences/Events
Peterborough City Council,Adults,Independent Sector Placements,Services,17/09/2018,30192707,544.32,Revenue,Carers Trust Cambridgeshire,Home Care
Peterborough City Council,Adults,Independent Sector Placements,Services,17/09/2018,30192710,529.20,Revenue,Carers Trust Cambridgeshire,Home Care
Peterborough City Council,Adults,Independent Sector Placements,Services,17/09/2018,30192717,532.98,Revenue,Carers Trust Cambridgeshire,Home Care
Peterborough City Council,Adults,Independent Sector Placements,Services,17/09/2018,30192733,597.24,Revenue,Carers Trust Cambridgeshire,Home Care
Peterborough City Council,Adults,Independent Sector Placements,Services,17/09/2018,30192740,635.04,Revenue,Carers Trust Cambridgeshire,Home Care
Peterborough City Council,Adults,Independent Sector Placements,Services,17/09/2018,30192750,532.98,Revenue,Carers Trust Cambridgeshire,Home Care
Peterborough City Council,Adults,Independent Sector Placements,Services,17/09/2018,30192759,514.08,Revenue,Carers Trust Cambridgeshire,Home Care
Peterborough City Council,Adults,Independent Sector Placements,Services,17/09/2018,30192765,544.32,Revenue,Carers Trust Cambridgeshire,Home Care
Peterborough City Council,Adults,Independent Sector Placements,Services,17/09/2018,30192768,529.20,Revenue,Carers Trust Cambridgeshire,Home Care
Peterborough City Council,Adults,Independent Sector Placements,Services,17/09/2018,30192803,567.00,Revenue,Carers Trust Cambridgeshire,Home Care
Peterborough City Council,Adults,Independent Sector Placements,Services,17/09/2018,30192859,3581.50,Revenue,Carers Trust Cambridgeshire,Home Care
Peterborough City Council,Regulatory Services,Regulatory Services,Services,17/09/2018,30192919,1300.00,Revenue,"Corbino, Mr David",Legal Costs
Peterborough City Council,Regulatory Services,Regulatory Services,Services,17/09/2018,30192919,550.00,Revenue,"Corbino, Mr David",Legal Costs
Peterborough City Council,Westcombe Engineering,Westcombe Engineering,"Tools, Equipment, Furniture & Materials",17/09/2018,30192946,556.36,Revenue,Barron Clark Castings Ltd,Items For Resale
Peterborough City Council,HR,HR,Services,17/09/2018,30193285,1000.00,Revenue,Kealey-HR,Consultants Fees
Peterborough City Council,HR,HR,Services,17/09/2018,30193286,1000.00,Revenue,Kealey-HR,Consultants Fees
Peterborough City Council,Communities,Other Enforcement,Services,17/09/2018,30193899,992.50,Revenue,Quadrant Security Group Ltd,Cctv
Peterborough City Council,Peterborough Highway Services,Transport & Infrastructure Commissioning,Services,17/09/2018,30193916,15228.00,Revenue,First Eastern Counties Buses Ltd,Contractors
Peterborough City Council,Communities,Housing,Services,17/09/2018,30194070,1491.00,Revenue,Sharman Quinney,Financial Assistance
Peterborough City Council,Communities,Housing,Services,17/09/2018,30194116,500.00,Revenue,English Estates Property Agents,Financial Assistance
Peterborough City Council,Communities,Housing,Services,17/09/2018,30194119,550.00,Revenue,Redacted Personal Data,Financial Assistance
Peterborough City Council,Communities,Housing,Services,17/09/2018,30194121,750.00,Revenue,Record Property Solutions,Financial Assistance
Peterborough City Council,Communities,Housing,Services,17/09/2018,30194207,936.18,Revenue,Cross Keys Homes,Financial Assistance
Peterborough City Council,Communities,Housing,Services,17/09/2018,30194210,1450.00,Revenue,Redacted Personal Data,Financial Assistance
Peterborough City Council,Communities,Housing,Services,17/09/2018,30194211,559.30,Revenue,Cross Keys Homes,Financial Assistance
Peterborough City Council,Parking Services,Parking Services,Services,17/09/2018,30194237,5162.44,Revenue,Cobalt Telephone Technologies Ltd,Contractors
Peterborough City Council,Parking Services,Parking Services,Services,17/09/2018,30194239,5140.05,Revenue,Cobalt Telephone Technologies Ltd,Contractors
Peterborough City Council,Commissioning and Commercial Operations,Early Years & Quality Improvement,Services,17/09/2018,30194296,3354.00,Revenue,Bright Star's day Nursery,Grant Payment
Peterborough City Council,Commissioning and Commercial Operations,Early Years & Quality Improvement,Services,17/09/2018,30194297,4004.00,Revenue,The Voyager Nursery,Grant Payment
Peterborough City Council,Commissioning and Commercial Operations,Early Years & Quality Improvement,Services,17/09/2018,30194298,3068.00,Revenue,Little Stars Day Nursery,Grant Payment
Peterborough City Council,Commissioning and Commercial Operations,Early Years & Quality Improvement,Services,17/09/2018,30194299,2047.50,Revenue,Acorn Academy Day Nursery Ltd,Grant Payment
Peterborough City Council,Commissioning and Commercial Operations,Early Years & Quality Improvement,Services,17/09/2018,30194300,2099.50,Revenue,Little Tigers Day Nursery,Grant Payment
Peterborough City Council,Commissioning and Commercial Operations,Early Years & Quality Improvement,Services,17/09/2018,30194302,546.00,Revenue,St Michaels Playgroup,Grant Payment
Peterborough City Council,Commissioning and Commercial Operations,Early Years & Quality Improvement,Services,17/09/2018,30194303,828.75,Revenue,Bright Bambini  Montessori,Grant Payment
Peterborough City Council,Commissioning and Commercial Operations,Early Years & Quality Improvement,Services,17/09/2018,30194304,682.50,Revenue,Bretton Community Pre-School,Grant Payment
Peterborough City Council,Commissioning and Commercial Operations,Early Years & Quality Improvement,Services,17/09/2018,30194305,910.00,Revenue,Family Action,Grant Payment
Peterborough City Council,Commissioning and Commercial Operations,Early Years & Quality Improvement,Services,17/09/2018,30194306,682.50,Revenue,Stars Pre-School Dogsthorpe,Grant Payment
Peterborough City Council,Commissioning and Commercial Operations,Early Years & Quality Improvement,Services,17/09/2018,30194311,682.50,Revenue,South Bretton Pre School,Grant Payment
Peterborough City Council,Communities,Housing,Services,17/09/2018,30194412,1500.00,Revenue,Cross Keys Homes,Financial Assistance
Peterborough City Council,Communities,Housing,Services,17/09/2018,30194414,1000.00,Revenue,Cross Keys Homes,Financial Assistance
Peterborough City Council,Communities,Housing,Services,17/09/2018,30194416,940.00,Revenue,Smartmove Property Solutions,Financial Assistance
Peterborough City Council,Communities,Housing,Services,17/09/2018,30194417,1220.00,Revenue,Redacted Personal Data,Financial Assistance
Peterborough City Council,Adults,Independent Sector Placements,Services,17/09/2018,30194473,15883.77,Revenue,Augusta Care Ltd,Home Care
Peterborough City Council,Adults,Independent Sector Placements,Services,17/09/2018,30194474,17774.00,Revenue,Augusta Care Ltd,Home Care
Peterborough City Council,Adults,Independent Sector Placements,Services,17/09/2018,30194478,17774.40,Revenue,Augusta Care Ltd,Home Care
Peterborough City Council,Adults,Independent Sector Placements,Services,17/09/2018,30194479,17774.40,Revenue,Augusta Care Ltd,Home Care
Peterborough City Council,Adults,Independent Sector Placements,Services,17/09/2018,30194566,3400.00,Revenue,EXCELCARE GLENNFIELD HOUSE,Residential Care
Peterborough City Council,Development and Construction,Development Management,Services,17/09/2018,30194594,3275.60,Revenue,Weightmans LLP,Legal Costs
Peterborough City Council,Adults,Strategic Commissioning - Management,Agency Staff,17/09/2018,30194613,646.54,Revenue,Reed Specialist Recruitment Limited,External Temporary Staff
Peterborough City Council,Education,School Standards & Effectiveness,Services,17/09/2018,30194616,2330.00,Revenue,National Governance Association  (NGA),Subscriptions
Peterborough City Council,Adults,Independent Sector Placements,Services,17/09/2018,30194622,1028.02,Revenue,Voyage,Home Care
Peterborough City Council,Adults,Independent Sector Placements,Services,17/09/2018,30194623,916.15,Revenue,Voyage,Home Care
Peterborough City Council,Legal Services,Legal Services,Services,17/09/2018,30194650,1074.85,Revenue,The Psychological Service,Expert Witnesses
Peterborough City Council,Adults,Independent Sector Placements,Services,17/09/2018,30194657,2638.29,Revenue,Voyage,Home Care
Peterborough City Council,Adults,Independent Sector Placements,Services,17/09/2018,30194658,3809.31,Revenue,Voyage,Home Care
Peterborough City Council,Adults,Independent Sector Placements,Services,17/09/2018,30194659,1926.92,Revenue,Voyage,Home Care
Peterborough City Council,Adults,Independent Sector Placements,Services,17/09/2018,30194660,2754.80,Revenue,Voyage,Home Care
Peterborough City Council,Adults,Independent Sector Placements,Services,17/09/2018,30194662,4559.00,Revenue,Voyage,Home Care
Peterborough City Council,Adults,Independent Sector Placements,Services,17/09/2018,30194664,1876.59,Revenue,Voyage,Home Care
Peterborough City Council,Adults,Block Contracts,Third Party Payments,17/09/2018,30194678,4836.07,Revenue,ABOUT ME CARE AND SUPPORT LTD,Third Party Payments - Contract
Peterborough City Council,Adults,Community Team,Agency Staff,17/09/2018,30194685,1221.00,Revenue,Medicare First Ltd,External Temporary Staff
Peterborough City Council,Corporate Property,Office Accomodation,Repair & Maintenance of Buildings,17/09/2018,30194721,640.00,Revenue,Abbott-Wade Ltd,Premises Maintenance
Peterborough City Council,Westcombe Engineering,Westcombe Engineering,"Tools, Equipment, Furniture & Materials",17/09/2018,30194737,1794.00,Revenue,Westland Casting Company Ltd,Items For Resale
Peterborough City Council,Corporate Property,Office Accomodation,Repair & Maintenance of Buildings,17/09/2018,30194746,10896.00,Revenue,Abbott-Wade Ltd,Premises Repairs
Peterborough City Council,Education,Special Educational Needs / Inclusion,Agency Staff,17/09/2018,30194753,4488.00,Revenue,Sanctuary Personnel Ltd,External Temporary Staff
Peterborough City Council,Children's & Safeguarding,External Education Placements,Services,17/09/2018,30194761,33333.00,Revenue,Gretton School,Boarding Out Allowances
Peterborough City Council,Children's & Safeguarding,Commissioning - CSC,Third Party Payments,17/09/2018,8000126297,738372.50,Revenue,IAS TACT,Third Party Payments - Contract
Peterborough City Council,ICT,ICT,Services,19/09/2018,30185795,2854.44,Revenue,Vodafone Ltd,Internet
Peterborough City Council,Children's & Safeguarding,Child Health,Services,19/09/2018,30186200,2380.63,Revenue,Circles Network,Purchased Social Care Services
Peterborough City Council,Children's & Safeguarding,External Education Placements,Services,19/09/2018,30187744,41499.99,Revenue,Norfolk County Council,Boarding Out Allowances
Peterborough City Council,Communities,Housing,Services,19/09/2018,30187983,1380.00,Revenue,Redacted Personal Data,Financial Assistance
Peterborough City Council,Peterborough Highway Services,Transport & Infrastructure Commissioning,Services,19/09/2018,30190772,2328.75,Revenue,Electric Pedals,Events
Peterborough City Council,Corporate,Corporate,Non Revenue,19/09/2018,30191349,1121.80,Capital,Reed Specialist Recruitment Limited,Consultants Fees
Peterborough City Council,Corporate,Corporate,Non Revenue,19/09/2018,30191357,1121.80,Capital,Reed Specialist Recruitment Limited,Consultants Fees
Peterborough City Council,Legal Services,Legal Services,Services,19/09/2018,30191622,635.00,Revenue,"Walji, Miss Shabnam",Legal Costs
Peterborough City Council,City Centre Management,"Markets, Tourism & Events",Services,19/09/2018,30191789,685.50,Revenue,Cresset Leisure Services Ltd,Tickets
Peterborough City Council,Legal Services,Legal Services,Services,19/09/2018,30191985,720.00,Revenue,"Elliott, Ms Margot",Legal Costs
Peterborough City Council,Corporate,Corporate,Non Revenue,19/09/2018,30192022,500.00,Capital,Family Voice Peterborough,Grant Payment
Peterborough City Council,Commissioning and Commercial Operations,Clare Lodge,Agency Staff,19/09/2018,30192109,2008.00,Revenue,Wrixon Care Services,External Temporary Staff
Peterborough City Council,Commissioning and Commercial Operations,Clare Lodge,Agency Staff,19/09/2018,30192110,1776.00,Revenue,Wrixon Care Services,External Temporary Staff
Peterborough City Council,Commissioning and Commercial Operations,Clare Lodge,Agency Staff,19/09/2018,30192112,1744.00,Revenue,Wrixon Care Services,External Temporary Staff
Peterborough City Council,Commissioning and Commercial Operations,Clare Lodge,Agency Staff,19/09/2018,30192116,928.00,Revenue,Wrixon Care Services,External Temporary Staff
Peterborough City Council,Commissioning and Commercial Operations,Clare Lodge,Agency Staff,19/09/2018,30192117,560.00,Revenue,Wrixon Care Services,External Temporary Staff
Peterborough City Council,Commissioning and Commercial Operations,Clare Lodge,Agency Staff,19/09/2018,30192119,520.00,Revenue,Wrixon Care Services,External Temporary Staff
Peterborough City Council,Children's & Safeguarding,External Education Placements,Services,19/09/2018,30192137,3800.00,Revenue,Kirkstone House School,Boarding Out Allowances
Peterborough City Council,Children's & Safeguarding,External Education Placements,Services,19/09/2018,30192138,3166.00,Revenue,Kirkstone House School,Boarding Out Allowances
Peterborough City Council,Children's & Safeguarding,External Education Placements,Services,19/09/2018,30192139,3800.00,Revenue,Kirkstone House School,Boarding Out Allowances
Peterborough City Council,Children's & Safeguarding,External Education Placements,Services,19/09/2018,30192140,3800.00,Revenue,Kirkstone House School,Boarding Out Allowances
Peterborough City Council,Children's & Safeguarding,External Education Placements,Services,19/09/2018,30192141,4800.00,Revenue,Kirkstone House School,Boarding Out Allowances
Peterborough City Council,Children's & Safeguarding,External Education Placements,Services,19/09/2018,30192142,3800.00,Revenue,Kirkstone House School,Boarding Out Allowances
Peterborough City Council,Children's & Safeguarding,External Education Placements,Services,19/09/2018,30192143,3800.00,Revenue,Kirkstone House School,Boarding Out Allowances
Peterborough City Council,Children's & Safeguarding,External Education Placements,Services,19/09/2018,30192144,900.00,Revenue,Kirkstone House School,Boarding Out Allowances
Peterborough City Council,Children's & Safeguarding,External Education Placements,Services,19/09/2018,30192145,2990.14,Revenue,Kirkstone House School,Boarding Out Allowances
Peterborough City Council,Children's & Safeguarding,External Education Placements,Services,19/09/2018,30192150,3800.00,Revenue,Kirkstone House School,Boarding Out Allowances
Peterborough City Council,Children's & Safeguarding,External Education Placements,Services,19/09/2018,30192151,3800.00,Revenue,Kirkstone House School,Boarding Out Allowances
Peterborough City Council,Adults,Independent Sector Placements,Services,19/09/2018,30192197,21432.88,Revenue,Action on Hearing Loss,Residential Care
Peterborough City Council,Adults,Strategic Commissioning - Management,Agency Staff,19/09/2018,30192220,5294.10,Revenue,Badenoch & Clark Ltd,External Temporary Staff
